ServiceArea,Service,ResponsibleUnit,ExpensesType,Narrative,DatePaid,Invoice,TransactionReference,NetAmount,CapitalRevenue,SupplierID,SupplierName,Postcode,UnrecoveredVAT
Director Digital & Customer En,Communications,Communications,Consultancy Fees,SOCIAL MEDIA MANAGEMENT,16/04/2021,REDACTED INVOICE NUMBER,141242,2600,Revenue,27915,24 Fingers Ltd,CM15 9BP,0
Director Of Environment,Vehicle Fleet Management,Vehicle Fleet Management,Vehicle Replacement Parts,VEHICLE PARTS,27/04/2021,REDACTED INVOICE NUMBER,142266,-25.32,Revenue,28542,727 Truck Parts Ltd,E17 5DU,0
Director Of Environment,Vehicle Fleet Management,Vehicle Fleet Management,Vehicle Replacement Parts,VEHICLE PARTS,27/04/2021,REDACTED INVOICE NUMBER,142265,25.32,Revenue,28542,727 Truck Parts Ltd,E17 5DU,0
Director Of Environment,Vehicle Fleet Management,Vehicle Fleet Management,Vehicle Replacement Parts,VEHICLE PARTS,27/04/2021,REDACTED INVOICE NUMBER,142267,171.32,Revenue,28542,727 Truck Parts Ltd,E17 5DU,0
Director Of Environment,Vehicle Fleet Management,Vehicle Fleet Management,Vehicle Replacement Parts,VEHICLE PARTS,27/04/2021,REDACTED INVOICE NUMBER,142264,16.8,Revenue,28542,727 Truck Parts Ltd,E17 5DU,0
Director Of Environment,Open Spaces,Sports Pitches,Purchases - General Equipment,MOLE CONTROL - LARKINS,31/03/2021,REDACTED INVOICE NUMBER,140629,240,Revenue,29,A1 Environmental Pest Control,CM13 1LH,0
Director Of Environment,Open Spaces,Sports Pitches,Purchases - Materials,MOLE CONTROL - LARKINS,23/04/2021,REDACTED INVOICE NUMBER,141368,260,Revenue,29,A1 Environmental Pest Control,CM13 1LH,0
Director Of Environment,Open Spaces,Recreation Areas,Purchases - Materials,PEST CONTROL  - KGPF,23/04/2021,REDACTED INVOICE NUMBER,141366,440,Revenue,29,A1 Environmental Pest Control,CM13 1LH,0
Director Of Environment,Depot Management & Admin,Depot Management & Admin,R&M Bldgs - General,PEST CONTROL - DEPOT,23/04/2021,REDACTED INVOICE NUMBER,141367,70,Revenue,29,A1 Environmental Pest Control,CM13 1LH,0
Director Of Environment,Depot Management & Admin,Depot Management & Admin,Plant & Mcy - Repairs & Maint,60d Burner,16/04/2021,REDACTED INVOICE NUMBER,140714,508.79,Revenue,31,A1 Pressure Washers Ltd,IP5 3RH,0
Director Of Environment,Open Spaces,Buildings & Stakeholders,R&M Bldgs - General,INTRUDER ALARM - GOLF PRO SHOP,23/04/2021,REDACTED INVOICE NUMBER,141306,612.43,Revenue,83,Adt Fire And Security Plc,ME19 4DQ,0
Director Of Environment,Open Spaces,Buildings & Stakeholders,R&M Bldgs - General,INTRUDER SYSTEM - CAFE - KGPF,27/04/2021,REDACTED INVOICE NUMBER,141305,64,Revenue,83,Adt Fire And Security Plc,ME19 4DQ,0
Director Of Environment,Env Health & Licensing Admin,Env Health & Licensing Admin,Vehicle Hire,VAN HIRE,27/04/2021,REDACTED INVOICE NUMBER,141491,75,Revenue,1257,Ahl Fleet,RM14 3NX,0
Director Of Environment,Env Health & Licensing Admin,Env Health & Licensing Admin,Vehicle Hire,VAN HIRE,20/04/2021,REDACTED INVOICE NUMBER,140982,75,Revenue,1257,Ahl Fleet,RM14 3NX,0
Director Housing & Enforcement,Community Safety,Corporate Enforcement,Vehicle Hire,VAN HIRE,20/04/2021,REDACTED INVOICE NUMBER,140980,75,Revenue,1257,Ahl Fleet,RM14 3NX,0
Director Of Environment,Street Services,Street Cleansing,Vehicle Hire,VAN HIRE,27/04/2021,REDACTED INVOICE NUMBER,141494,180,Revenue,1257,Ahl Fleet,RM14 3NX,0
Hra Expenditure,Special Services,Caretaking,Vehicle Hire,VEHICLE HIRE,23/04/2021,REDACTED INVOICE NUMBER,140709,135,Revenue,1257,Ahl Fleet,RM14 3NX,0
Director Housing & Enforcement,Community Safety,Corporate Enforcement,Vehicle Hire,VEHICLE HIRE,27/04/2021,REDACTED INVOICE NUMBER,141492,75,Revenue,1257,Ahl Fleet,RM14 3NX,0
Director Of Environment,Parking,Parking Services,Bank Charges,TRANSACTION CHARGES - FEBRUARY '21,6/4/2021,REDACTED INVOICE NUMBER,141160,63.3,Revenue,28063,Aib Merchant Services (Pg Payments),.,0
Director Of Environment,Parking,Parking Services,Bank Charges,TRANSACTION CHARGES - MARCH '21,30/04/2021,REDACTED INVOICE NUMBER,142522,81.12,Revenue,28063,Aib Merchant Services (Pg Payments),.,0
Director Of Environment,Vehicle Fleet Management,Vehicle Fleet Management,Purchases - General Equipment,CYLINDER RENTAL - MAR '21,30/04/2021,REDACTED INVOICE NUMBER,141330,136.15,Revenue,95,Air Liquide Uk Limited,B46 1JY,0
Capex Director Of Environment,Corporate Services,King George'S Redevelopment,Enhancements,King George Plating Fields,20/04/2021,REDACTED INVOICE NUMBER,141503,385762.01,Capital,27165,Alliance Leisure Services Limited,TA6 3EW,0
Hra Expenditure,Supervision And Management,Rent Collection & Recovery,Bank Charges,PAYMENT PROCESSING,16/04/2021,REDACTED INVOICE NUMBER,141498,126.82,Revenue,132,Allpay.Net Limited,HR1 3SE,0
Hra Expenditure,Supervision And Management,Rent Collection & Recovery,Bank Charges,PAYMENT PROCESSING,16/04/2021,REDACTED INVOICE NUMBER,141497,515.9,Revenue,132,Allpay.Net Limited,HR1 3SE,0
Balance Sheet,Balance Sheet,Balance Sheet,Contractor Retentions Account,APPLICATION NO. 6,30/04/2021,REDACTED INVOICE NUMBER,142078,-2165.1,Revenue,28374,Amelio Utilities (Gloucester) Ltd,GL1 4JJ,0
Capex Director Of Housing,Housing - Hra,Sewerage & Water Treatment Pla,Enhancements,APPLICATION NO. 6,30/04/2021,REDACTED INVOICE NUMBER,142078,43302.04,Capital,28374,Amelio Utilities (Gloucester) Ltd,GL1 4JJ,0
Chief Executive,Executive Board,Senior Leadership Team,Project Management Support,PROFESSIONAL SERVICES,20/04/2021,REDACTED INVOICE NUMBER,141320,10350,Revenue,28188,Appletons Surveyors Ltd,TS18 1LS,0
Capex Director Of C Resources,Asset Management,Asset Management Strategy,Enhancements,PROFESSIONAL SERVICES - HUTTON FC STADIU,30/04/2021,REDACTED INVOICE NUMBER,141224,1875,Capital,27906,Arcus Consulting Llp,M33 7AR,0
Director Of Environment,"Communities, Health & Leisure",Sports & Social Venues,Contracted Services,DEVELOPMENT  REGENERATION,23/04/2021,REDACTED INVOICE NUMBER,141620,1466.76,Revenue,28277,Ark Consultancy Ltd,B18 6DS,0
Hra Expenditure,Special Services,Sheltered Welfare Services,Contracted Services,DEVELOPMENT  REGENERATION,23/04/2021,REDACTED INVOICE NUMBER,141619,403.1,Revenue,28277,Ark Consultancy Ltd,B18 6DS,0
Capex Director Of Housing,Housing - Affordable Housing,Garage Site Development,Enhancements,HOUSING DEVELOPMENT PROGRAMME,23/04/2021,REDACTED INVOICE NUMBER,141618,6587.5,Capital,28277,Ark Consultancy Ltd,B18 6DS,0
Capex Director Of Housing,Housing - Affordable Housing,Garage Site Development,Enhancements,HOUSING DEVELOPMENT PROGRAMME,23/04/2021,REDACTED INVOICE NUMBER,141617,1604.25,Capital,28277,Ark Consultancy Ltd,B18 6DS,0
Hra Expenditure,Supervision And Management,Policy And Management,Contracted Services,HOUSING STRATEGIC SUPPORT,23/04/2021,REDACTED INVOICE NUMBER,141636,10500,Revenue,28277,Ark Consultancy Ltd,B18 6DS,0
Hra Expenditure,Supervision And Management,Policy And Management,Contracted Services,SOCIAL IMPACT FRAMEWORK,23/04/2021,REDACTED INVOICE NUMBER,141563,545,Revenue,28277,Ark Consultancy Ltd,B18 6DS,0
Director Of Environment,Open Spaces,Recreation Areas,R&M Grounds - Treework,TREE WORKS,23/04/2021,REDACTED INVOICE NUMBER,142084,3610,Revenue,24920,Ascending Arbs Tree Services Ltd,CM4 0BL,0
Director Of Environment,Open Spaces,Recreation Areas,R&M Grounds - Treework,TREE WORKS,27/04/2021,REDACTED INVOICE NUMBER,142083,2300,Revenue,24920,Ascending Arbs Tree Services Ltd,CM4 0BL,0
Capex Director Of Environment,Corporate Services,King George'S Redevelopment,Enhancements,CLEARED SITE - KPF CAR PARK,23/04/2021,REDACTED INVOICE NUMBER,140798,3500,Capital,220,Ashe Green Civil Engineers Ltd,CM3 3PF,0
Capex Director Of Environment,Parking Services,Car Park Improvements,Enhancements,ROAD LANINGS - LARKINS FIELDS,23/04/2021,REDACTED INVOICE NUMBER,140811,2935,Capital,220,Ashe Green Civil Engineers Ltd,CM3 3PF,0
Director Of Environment,Vehicle Fleet Management,Vehicle Fleet Management,Vehicle R&M - External,VEHICLE REPAIRS,13/04/2021,REDACTED INVOICE NUMBER,140425,225,Revenue,26506,Asm Truck Diagnostics Ltd,SS14 3EU,0
Director Of Environment,Vehicle Fleet Management,Vehicle Fleet Management,Vehicle R&M - External,VEHICLE REPAIRS,27/04/2021,REDACTED INVOICE NUMBER,140950,600,Revenue,26506,Asm Truck Diagnostics Ltd,SS14 3EU,0
Director Corporate Resources,Asset Management,Asset Management,R&M Bldgs - General,HUTTONS POPLARS GROUND FLOOR,20/04/2021,REDACTED INVOICE NUMBER,142075,200,Revenue,26600,Asmatt Limited,CM11 2YL,0
Director Corporate Resources,Human Resources,Human Resources,Training Expenses,ELECTION TRAINING,20/04/2021,REDACTED INVOICE NUMBER,141356,462,Revenue,232,Association Of Electoral Administrators,L16 5HH,0
Capex Director Of Housing,Housing - Hra,Boiler/ Heating  Replacement,Enhancements,BOILER INSTALLS -MARCH '21,23/04/2021,REDACTED INVOICE NUMBER,141268,68366.11,Capital,27759,Axis Europe,E15 4PN,0
Hra Expenditure,Repairs And Maintenance,Responsive Repairs Management,R&M Fix & Fit - Gas Repairs,COMMERCIAL GAS - MARCH '21,23/04/2021,REDACTED INVOICE NUMBER,141267,8443.62,Revenue,27759,Axis Europe,E15 4PN,0
Capex Director Of Housing,Housing - Hra,Housing Stock -Health & Safety,Enhancements,COMMUNAL - MARCH '21,30/04/2021,REDACTED INVOICE NUMBER,141264,1355.04,Capital,27759,Axis Europe,E15 4PN,0
Capex Director Of Housing,Housing - Hra,Housing Stock Rewiring,Enhancements,COMMUNAL - MARCH '21,30/04/2021,REDACTED INVOICE NUMBER,141264,4224.85,Capital,27759,Axis Europe,E15 4PN,0
Hra Expenditure,Repairs And Maintenance,Responsive Repairs Management,R&M Fix & Fit - Communal,COMMUNAL - MARCH '21,30/04/2021,REDACTED INVOICE NUMBER,141264,38388.8,Revenue,27759,Axis Europe,E15 4PN,0
Hra Expenditure,Repairs And Maintenance,Responsive Repairs Management,R&M Fix & Fit - Door Entry,COMMUNAL - MARCH '21,30/04/2021,REDACTED INVOICE NUMBER,141264,3950.83,Revenue,27759,Axis Europe,E15 4PN,0
Hra Expenditure,Special Services,Waste Collection,Waste Disposal,COMMUNAL - MARCH '21,30/04/2021,REDACTED INVOICE NUMBER,141264,203.5,Revenue,27759,Axis Europe,E15 4PN,0
Capex Director Of Housing,Housing - Hra,Housing Stock Rewiring,R&M Fix & Fit - Electrical,EICR - MARCH '21,23/04/2021,REDACTED INVOICE NUMBER,141270,2070.11,Capital,27759,Axis Europe,E15 4PN,0
Hra Expenditure,Repairs And Maintenance,Planned Maintenance,R&M Fix & Fit - Electrical,EICR - MARCH '21,23/04/2021,REDACTED INVOICE NUMBER,141270,3311.24,Revenue,27759,Axis Europe,E15 4PN,0
Hra Expenditure,Repairs And Maintenance,Planned Maintenance,R&M Other - Testing,EICR - MARCH '21,23/04/2021,REDACTED INVOICE NUMBER,141270,1441.79,Revenue,27759,Axis Europe,E15 4PN,0
Hra Expenditure,Repairs And Maintenance,Responsive Repairs Management,R&M Fix & Fit - Electrical,EICR - MARCH '21,23/04/2021,REDACTED INVOICE NUMBER,141270,13140.01,Revenue,27759,Axis Europe,E15 4PN,0
Hra Expenditure,Repairs And Maintenance,Planned Maintenance,R&M Fix & Fit - Electrical,EMERGENCY LIGHTING - MAR '21,30/04/2021,REDACTED INVOICE NUMBER,141271,47382.48,Revenue,27759,Axis Europe,E15 4PN,0
Hra Expenditure,Repairs And Maintenance,Responsive Repairs Management,R&M Fix & Fit - Gas Repairs,GAS EXCLUSIONS - MARCH '21,23/04/2021,REDACTED INVOICE NUMBER,141266,3239.85,Revenue,27759,Axis Europe,E15 4PN,0
Hra Expenditure,Repairs And Maintenance,Responsive Repairs Management,R&M Fix & Fit - Communal,PPG EXCLUSIONS - MARCH '21,23/04/2021,REDACTED INVOICE NUMBER,141263,419.27,Revenue,27759,Axis Europe,E15 4PN,0
Hra Expenditure,Repairs And Maintenance,Responsive Repairs Management,R&M Bldgs - Ppp,PPG GARAGES - MAR '21,9/4/2021,REDACTED INVOICE NUMBER,140084,1457.32,Revenue,27759,Axis Europe,E15 4PN,0
Capex Director Of Housing,Housing - Hra,Boiler/ Heating  Replacement,Enhancements,PPP EXCLUSIONS - MARCH '21,23/04/2021,REDACTED INVOICE NUMBER,141262,1537.63,Capital,27759,Axis Europe,E15 4PN,0
Capex Director Of Housing,Housing - Hra,Disabled Adaptations,Enhancements,PPP EXCLUSIONS - MARCH '21,23/04/2021,REDACTED INVOICE NUMBER,141262,37507.83,Capital,27759,Axis Europe,E15 4PN,0
Capex Director Of Housing,Housing - Hra,Housing Stock - Doors,Enhancements,PPP EXCLUSIONS - MARCH '21,23/04/2021,REDACTED INVOICE NUMBER,141262,1861,Capital,27759,Axis Europe,E15 4PN,0
Capex Director Of Housing,Housing - Hra,Ventilation Installs,Enhancements,PPP EXCLUSIONS - MARCH '21,23/04/2021,REDACTED INVOICE NUMBER,141262,1791.61,Capital,27759,Axis Europe,E15 4PN,0
Capex Director Of Housing,Housing - Hra,Window Replacement,Enhancements,PPP EXCLUSIONS - MARCH '21,23/04/2021,REDACTED INVOICE NUMBER,141262,1984.54,Capital,27759,Axis Europe,E15 4PN,0
Hra Expenditure,Repairs And Maintenance,Responsive Repairs Management,R&M Bldgs - General,PPP EXCLUSIONS - MARCH '21,23/04/2021,REDACTED INVOICE NUMBER,141262,14143.89,Revenue,27759,Axis Europe,E15 4PN,0
Hra Expenditure,Repairs And Maintenance,Responsive Repairs Management,R&M Fix & Fit - Electrical,PPP EXCLUSIONS - MARCH '21,23/04/2021,REDACTED INVOICE NUMBER,141262,580.23,Revenue,27759,Axis Europe,E15 4PN,0
Capex Director Of Housing,Housing - Hra,Housing Stock -Health & Safety,Enhancements,VALUATION - MAR '21 - FRA,23/04/2021,REDACTED INVOICE NUMBER,141201,60658.65,Capital,27759,Axis Europe,E15 4PN,0
Capex Director Of Housing,Housing - Hra,Major Voids,Enhancements,VOIDS - FEB '21,31/03/2021,REDACTED INVOICE NUMBER,139658,102614.88,Capital,27759,Axis Europe,E15 4PN,0
Hra Expenditure,Repairs And Maintenance,Responsive Void Repairs,R&M Bldgs - General,VOIDS - FEB '21,31/03/2021,REDACTED INVOICE NUMBER,139658,24388.24,Revenue,27759,Axis Europe,E15 4PN,0
Hra Expenditure,Repairs And Maintenance,Responsive Void Repairs,R&M Bldgs - Ppp,VOIDS - FEB '21,31/03/2021,REDACTED INVOICE NUMBER,139658,5390,Revenue,27759,Axis Europe,E15 4PN,0
Capex Director Of Housing,Housing - Hra,Asbestos,Enhancements,VOIDS - MARCH '21,23/04/2021,REDACTED INVOICE NUMBER,141265,2232.56,Capital,27759,Axis Europe,E15 4PN,0
Capex Director Of Housing,Housing - Hra,Major Voids,Enhancements,VOIDS - MARCH '21,23/04/2021,REDACTED INVOICE NUMBER,141265,56402.03,Capital,27759,Axis Europe,E15 4PN,0
Hra Expenditure,Repairs And Maintenance,Responsive Void Repairs,Electricity,ELECTRICITY SUPPLY,23/04/2021,REDACTED INVOICE NUMBER,141265,149.6,Revenue,27759,Axis Europe,E15 4PN,0
Hra Expenditure,Repairs And Maintenance,Responsive Void Repairs,R&M Bldgs - General,VOIDS - MARCH '21,23/04/2021,REDACTED INVOICE NUMBER,141265,24755.96,Revenue,27759,Axis Europe,E15 4PN,0
Hra Expenditure,Repairs And Maintenance,Responsive Void Repairs,R&M Bldgs - Ppp,VOIDS - MARCH '21,23/04/2021,REDACTED INVOICE NUMBER,141265,3920,Revenue,27759,Axis Europe,E15 4PN,0
Capex Director Of Housing,Housing - Hra,Housing Stock - Water,Enhancements,WATER HYGIENE PROGRAMME - MAR '21,23/04/2021,REDACTED INVOICE NUMBER,141269,2083.83,Capital,27759,Axis Europe,E15 4PN,0
Hra Expenditure,Repairs And Maintenance,Planned Maintenance,R&M Fix & Fit - Tanks,WATER HYGIENE PROGRAMME - MAR '21,23/04/2021,REDACTED INVOICE NUMBER,141269,2693.79,Revenue,27759,Axis Europe,E15 4PN,0
Capex Director Of Housing,Housing - Affordable Housing,Brookfield Project,Enhancements,BROOKFIELD CLOSE,30/04/2021,REDACTED INVOICE NUMBER,141959,3000,Capital,305,Barton Willmore,RG1 3BE,0
Director Of Environment,Depot Management & Admin,Depot Management & Admin,R&M Bldgs - General,DUSTMATS - LIFT AND LAY - MAY '21,23/04/2021,REDACTED INVOICE NUMBER,141232,173.92,Revenue,4767,Berendsen Uk Ltd,RG24 8NE,0
Director Of Environment,Open Spaces,Countryside Recreation Mtnce,R&M Grounds - Treework,FRONTBOWL LTD,23/04/2021,REDACTED INVOICE NUMBER,137106,110,Revenue,347,Bibby Factors Leicester Limited,LE1 3GS,0
Director Of Environment,Golf Course,Golf Course,Purchases - Materials,TARMAC PLANNINGS,9/4/2021,REDACTED INVOICE NUMBER,140601,300,Revenue,355,Binder Loams Ltd,CM5 0HY,0
Director Of Environment,Golf Course,Golf Course,Purchases - Materials,TARMAC PLANNINGS,13/04/2021,REDACTED INVOICE NUMBER,140602,300,Revenue,355,Binder Loams Ltd,CM5 0HY,0
Hra Expenditure,Supervision And Management,Rent Collection & Recovery,Other Professional Fees,PROFESSIONAL CHARES - MAR '21,23/04/2021,REDACTED INVOICE NUMBER,141239,275,Revenue,359,Birketts Llp,CM2 0AP,0
Director Of Law & Governance,Legal Services & Data Protect,Legal Services & Data Protect,Legal Fees,PROFESSIONAL CHARGES,9/4/2021,REDACTED INVOICE NUMBER,141443,210,Revenue,359,Birketts Llp,CM2 0AP,0
Director Of Law & Governance,Legal Services & Data Protect,Legal Services & Data Protect,Legal Fees,PROFESSIONAL CHARGES,9/4/2021,REDACTED INVOICE NUMBER,141448,2714,Revenue,359,Birketts Llp,CM2 0AP,0
Director Of Law & Governance,Legal Services & Data Protect,Legal Services & Data Protect,Legal Fees,PROFESSIONAL CHARGES,9/4/2021,REDACTED INVOICE NUMBER,140416,484.5,Revenue,359,Birketts Llp,CM2 0AP,0
Director Of Law & Governance,Legal Services & Data Protect,Legal Services & Data Protect,Legal Fees,PROFESSIONAL CHARGES,13/04/2021,REDACTED INVOICE NUMBER,141449,460,Revenue,359,Birketts Llp,CM2 0AP,0
Director Of Law & Governance,Legal Services & Data Protect,Legal Services & Data Protect,Legal Fees,PROFESSIONAL CHARGES,13/04/2021,REDACTED INVOICE NUMBER,141445,1015,Revenue,359,Birketts Llp,CM2 0AP,0
Director Of Law & Governance,Legal Services & Data Protect,Legal Services & Data Protect,Legal Fees,PROFESSIONAL CHARGES,19/04/2021,REDACTED INVOICE NUMBER,135812,15513.6,Revenue,359,Birketts Llp,CM2 0AP,0
Director Corporate Resources,Asset Management,Asset Management,Other Professional Fees,PROFESSIONAL CHARGES,20/04/2021,REDACTED INVOICE NUMBER,141325,862,Revenue,359,Birketts Llp,CM2 0AP,0
Director Of Law & Governance,Legal Services & Data Protect,Legal Services & Data Protect,Legal Fees,PROFESSIONAL CHARGES,20/04/2021,REDACTED INVOICE NUMBER,141447,1912,Revenue,359,Birketts Llp,CM2 0AP,0
Director Of Law & Governance,Legal Services & Data Protect,Legal Services & Data Protect,Planning Fees,PROFESSIONAL CHARGES,20/04/2021,REDACTED INVOICE NUMBER,140749,270,Revenue,359,Birketts Llp,CM2 0AP,0
Director Of Law & Governance,Legal Services & Data Protect,Legal Services & Data Protect,Legal Fees,PROFESSIONAL CHARGES,21/04/2021,REDACTED INVOICE NUMBER,141807,-15513.6,Revenue,359,Birketts Llp,CM2 0AP,0
Director Of Law & Governance,Legal Services & Data Protect,Legal Services & Data Protect,Legal Fees,PROFESSIONAL CHARGES,23/04/2021,REDACTED INVOICE NUMBER,141815,12928,Revenue,359,Birketts Llp,CM2 0AP,0
Director Of Law & Governance,Legal Services & Data Protect,Legal Services & Data Protect,Legal Fees,PROFESSIONAL CHARGES,23/04/2021,REDACTED INVOICE NUMBER,141446,1500,Revenue,359,Birketts Llp,CM2 0AP,0
Director Of Law & Governance,Legal Services & Data Protect,Legal Services & Data Protect,Legal Fees,PROFESSIONAL CHARGES,23/04/2021,REDACTED INVOICE NUMBER,140986,1335,Revenue,359,Birketts Llp,CM2 0AP,0
Director Of Law & Governance,Legal Services & Data Protect,Legal Services & Data Protect,Legal Fees,PROFESSIONAL CHARGES,23/04/2021,REDACTED INVOICE NUMBER,141444,8022,Revenue,359,Birketts Llp,CM2 0AP,0
Hra Expenditure,Supervision And Management,Rent Collection & Recovery,Other Professional Fees,PROFESSIONAL CHARGES,27/04/2021,REDACTED INVOICE NUMBER,141302,250,Revenue,359,Birketts Llp,CM2 0AP,0
Hra Expenditure,Supervision And Management,Rent Collection & Recovery,Other Professional Fees,PROFESSIONAL CHARGES ,13/04/2021,REDACTED INVOICE NUMBER,141324,187.5,Revenue,359,Birketts Llp,CM2 0AP,0
Director Of Law & Governance,Legal Services & Data Protect,Legal Services & Data Protect,Legal Fees,PROFESSIONAL CHARGES  - ALLEN FORD,13/04/2021,REDACTED INVOICE NUMBER,141323,700,Revenue,359,Birketts Llp,CM2 0AP,0
Director Housing & Enforcement,Homelessness,Homelessness Prevention,Contracted Services,PROFESSIONAL CHARGES - MAR '21,23/04/2021,REDACTED INVOICE NUMBER,141230,775,Revenue,359,Birketts Llp,CM2 0AP,0
Hra Expenditure,Supervision And Management,Rent Collection & Recovery,Other Professional Fees,PROFESSIONAL CHARGES - MAR '21,23/04/2021,REDACTED INVOICE NUMBER,141237,1680,Revenue,359,Birketts Llp,CM2 0AP,0
Hra Expenditure,Supervision And Management,Rent Collection & Recovery,Other Professional Fees,PROFESSIONAL CHARGES - MAR '21,23/04/2021,REDACTED INVOICE NUMBER,141238,1005.5,Revenue,359,Birketts Llp,CM2 0AP,0
Hra Expenditure,Supervision And Management,Rent Collection & Recovery,Other Professional Fees,PROFESSIONAL CHARGES - MAR '21,23/04/2021,REDACTED INVOICE NUMBER,141240,300,Revenue,359,Birketts Llp,CM2 0AP,0
Director Housing & Enforcement,Homelessness,Homelessness Prevention,Contracted Services,PROFESSIONAL SERVICES,27/04/2021,REDACTED INVOICE NUMBER,141200,962.5,Revenue,359,Birketts Llp,CM2 0AP,0
Director Of Law & Governance,Legal Services & Data Protect,Legal Services & Data Protect,Legal Fees,VAT NOT INCLUDED ON 137402,6/4/2021,REDACTED INVOICE NUMBER,141192,0,Revenue,359,Birketts Llp,CM2 0AP,0
Director Of Law & Governance,Legal Services & Data Protect,Legal Services & Data Protect,Legal Fees,PROFESSIONAL SERVICES,21/04/2021,REDACTED INVOICE NUMBER,142071,15513.6,Revenue,359,Birketts Llp,CM2 0AP,0
Director Of Law & Governance,Legal Services & Data Protect,Legal Services & Data Protect,Legal Fees,PROFESSIONAL SERVICES,23/04/2021,REDACTED INVOICE NUMBER,142223,-15513.6,Revenue,359,Birketts Llp,CM2 0AP,0
Parish Precepts,Parish Precepts,Parish Precepts,Precept Payments,PRECEPT APR 21,6/4/2021,REDACTED INVOICE NUMBER,141214,48710.5,Revenue,18327,Blackmore Parish Council,CM15 0DX,0
Director Corporate Resources,Payroll,Payroll,Contracted Services,SHARED SERVICES,31/03/2021,REDACTED INVOICE NUMBER,140605,14811,Revenue,391,Braintree District Council,CM7 9HB,0
Director Corporate Resources,Payroll,Payroll,Other Fees & Service,SHARED SERVICES,23/04/2021,REDACTED INVOICE NUMBER,141556,2400,Revenue,391,Braintree District Council,CM7 9HB,0
Director Corporate Resources,Payroll,Payroll,Contracted Services,SHARED SERVICES - PAYROLL,23/04/2021,REDACTED INVOICE NUMBER,141652,10500,Revenue,391,Braintree District Council,CM7 9HB,0
Director Of Environment,"Communities, Health & Leisure",Sports & Social Venues,Purchases - General Equipment,MATERIALS - BRENTWOOD CENTRE,13/04/2021,REDACTED INVOICE NUMBER,141641,766,Revenue,189490P,Brenntag Uk Limited,SE10 0QW,0
Director Of Planning & Economy,Economic Development Total,Economic Development,Other Fees & Service,BUSINESS AWARDS SPONSOR,16/04/2021,REDACTED INVOICE NUMBER,141623,899,Revenue,412,Brentwood Chamber Of Commerce,CM14 4AJ,0
Director Of Environment,Parking,Parking Services,Telephones - General,RADIO HIRE - MSCP - MAR '21,30/04/2021,REDACTED INVOICE NUMBER,141185,104.14,Revenue,415,Brentwood Communications Ltd,CM3 8EW,0
Director Of Environment,Golf Course,Golf Course,Purchases - General Equipment,MATERIALS,16/04/2021,REDACTED INVOICE NUMBER,141388,6.4,Revenue,433,Brentwood Fencing Supplies Ltd,CM15 9JH,0
Director Of Environment,Street Services,Street Cleansing,Purchases - General Equipment,MATERIALS,16/04/2021,REDACTED INVOICE NUMBER,141386,30,Revenue,433,Brentwood Fencing Supplies Ltd,CM15 9JH,0
Director Corporate Resources,Asset Management,Asset Management,R&M Bldgs - General,KEY CUTTING,23/04/2021,REDACTED INVOICE NUMBER,141374,73.7,Revenue,444,Brentwood Lock & Safe,CM15 9DL,0
Director Of Environment,Golf Course,Golf Course,R&M Bldgs - General,"RENEW LOCK - GROUND DEPT, HARTSWOOD",30/04/2021,REDACTED INVOICE NUMBER,142052,417.76,Revenue,444,Brentwood Lock & Safe,CM15 9DL,0
Director Corporate Resources,Asset Management,Asset Management,R&M Bldgs - General,SUPPLY AND FIT KEY SAFE,23/04/2021,REDACTED INVOICE NUMBER,140637,89.95,Revenue,444,Brentwood Lock & Safe,CM15 9DL,0
Director Of Environment,Golf Course,Golf Course,R&M Bldgs - General,SUPPLY KEYS - DEPOT - KGPF,30/04/2021,REDACTED INVOICE NUMBER,141931,46.8,Revenue,444,Brentwood Lock & Safe,CM15 9DL,0
Director Corporate Resources,Asset Management,Asset Management,R&M Bldgs - General,BOILER REPAIR,23/04/2021,REDACTED INVOICE NUMBER,141932,200,Revenue,445,Brentwood M + E Services Ltd,CM6 3HT,0
Hra Expenditure,Repairs And Maintenance,Responsive Void Repairs,Electricity,ELECTRICITY SUPPLY,13/04/2021,REDACTED INVOICE NUMBER,141196,283.77,Revenue,492,British Gas Trading Limited (Please Use),GU95 1AB,0
Hra Expenditure,Repairs And Maintenance,Responsive Void Repairs,Electricity,ELECTRICITY SUPPLY,20/04/2021,REDACTED INVOICE NUMBER,141943,159.74,Revenue,492,British Gas Trading Limited (Please Use),GU95 1AB,0
Hra Expenditure,Repairs And Maintenance,Responsive Void Repairs,Gas,GAS SUPPLY,20/04/2021,REDACTED INVOICE NUMBER,141942,191.93,Revenue,492,British Gas Trading Limited (Please Use),GU95 1AB,0
Hra Expenditure,Repairs And Maintenance,Responsive Void Repairs,Gas,GAS SUPPLY,30/04/2021,REDACTED INVOICE NUMBER,142210,15.85,Revenue,492,British Gas Trading Limited (Please Use),GU95 1AB,0
Hra Expenditure,Repairs And Maintenance,Responsive Void Repairs,Electricity,ELECTRICITY SUPPLY,13/04/2021,REDACTED INVOICE NUMBER,141531,6.02,Revenue,492,British Gas Trading Limited (Please Use),GU95 1AB,0
Hra Expenditure,Repairs And Maintenance,Responsive Void Repairs,Gas,GAS SUPPLY,20/04/2021,REDACTED INVOICE NUMBER,141695,1.51,Revenue,492,British Gas Trading Limited (Please Use),GU95 1AB,0
Hra Expenditure,Repairs And Maintenance,Responsive Void Repairs,Electricity,ELECTRICITY SUPPLY,20/04/2021,REDACTED INVOICE NUMBER,141692,12.03,Revenue,492,British Gas Trading Limited (Please Use),GU95 1AB,0
Hra Expenditure,Repairs And Maintenance,Responsive Void Repairs,Gas,GAS SUPPLY,20/04/2021,REDACTED INVOICE NUMBER,141692,26.24,Revenue,492,British Gas Trading Limited (Please Use),GU95 1AB,0
Hra Expenditure,Special Services,Communal Lighting,Electricity,ELECTRICITY SUPPLY,20/04/2021,REDACTED INVOICE NUMBER,141698,2.89,Revenue,492,British Gas Trading Limited (Please Use),GU95 1AB,0
Hra Expenditure,Repairs And Maintenance,Responsive Void Repairs,Electricity,ELECTRICITY SUPPLY,23/04/2021,REDACTED INVOICE NUMBER,142128,9.28,Revenue,492,British Gas Trading Limited (Please Use),GU95 1AB,0
Hra Expenditure,Repairs And Maintenance,Responsive Void Repairs,Gas,GAS SUPPLY,23/04/2021,REDACTED INVOICE NUMBER,142128,9.84,Revenue,492,British Gas Trading Limited (Please Use),GU95 1AB,0
Hra Expenditure,Repairs And Maintenance,Responsive Void Repairs,Gas,GAS SUPPLY,23/04/2021,REDACTED INVOICE NUMBER,142127,9.2,Revenue,492,British Gas Trading Limited (Please Use),GU95 1AB,0
Hra Expenditure,Repairs And Maintenance,Responsive Void Repairs,Gas,GAS SUPPLY,13/04/2021,REDACTED INVOICE NUMBER,141195,134.74,Revenue,492,British Gas Trading Limited (Please Use),GU95 1AB,0
Hra Expenditure,Repairs And Maintenance,Responsive Void Repairs,Gas,GAS SUPPLY,20/04/2021,REDACTED INVOICE NUMBER,141694,6.59,Revenue,492,British Gas Trading Limited (Please Use),GU95 1AB,0
Hra Expenditure,Repairs And Maintenance,Responsive Void Repairs,Electricity,ELECTRICITY SUPPLY,23/04/2021,REDACTED INVOICE NUMBER,142126,24.23,Revenue,492,British Gas Trading Limited (Please Use),GU95 1AB,0
Hra Expenditure,Repairs And Maintenance,Responsive Void Repairs,Gas,GAS SUPPLY,23/04/2021,REDACTED INVOICE NUMBER,142126,2.14,Revenue,492,British Gas Trading Limited (Please Use),GU95 1AB,0
Hra Expenditure,Repairs And Maintenance,Responsive Void Repairs,Electricity,ELECTRICITY SUPPLY,20/04/2021,REDACTED INVOICE NUMBER,141693,15.56,Revenue,492,British Gas Trading Limited (Please Use),GU95 1AB,0
Hra Expenditure,Repairs And Maintenance,Responsive Void Repairs,Gas,GAS SUPPLY,13/04/2021,REDACTED INVOICE NUMBER,141166,18.31,Revenue,492,British Gas Trading Limited (Please Use),GU95 1AB,0
Director Of Environment,Vehicle Fleet Management,Vehicle Fleet Management,Vehicle R&M - External,MAINTENANCE CONTRACT - MAR '21,6/4/2021,REDACTED INVOICE NUMBER,140405,548.6,Revenue,28207,Bucher Municipal Limited,RH4 1XF,0
Director Of Environment,Health & Food Safety,Food Safety Enforcement,Agency Staff,PROJECT MANAGEMENT SUPPORT,23/04/2021,REDACTED INVOICE NUMBER,140827,781.74,Revenue,28337,Buckingham Futures,HA7 4AW,0
Director Of Environment,Health & Food Safety,Food & Health Support,Agency Staff,PROJECT MANAGEMENT SUPPORT,27/04/2021,REDACTED INVOICE NUMBER,141236,863.01,Revenue,28337,Buckingham Futures,HA7 4AW,0
Director Of Environment,Health & Food Safety,Food & Health Support,Agency Staff,PROJECT MANAGEMENT SUPPORT,23/04/2021,REDACTED INVOICE NUMBER,139488,2298.78,Revenue,28337,Buckingham Futures,HA7 4AW,0
Director Corporate Resources,Corporate Management,Corporate Management Costs,Bank Charges,ADJUSTMENT - MAR '21,16/04/2021,REDACTED INVOICE NUMBER,141187,912.14,Revenue,23084,Capita Bus. Serv Ltd (Pg Payments),DL1 9HN,0
Director Corporate Resources,Corporate Management,Corporate Management Costs,Bank Charges,ADJUSTMENT - MAR '21,16/04/2021,REDACTED INVOICE NUMBER,141199,372.11,Revenue,23084,Capita Bus. Serv Ltd (Pg Payments),DL1 9HN,0
Director Corporate Resources,Corporate Management,Corporate Management Costs,Bank Charges,Direct Debit,20/04/2021,REDACTED INVOICE NUMBER,142033,2603.06,Revenue,23084,Capita Bus. Serv Ltd (Pg Payments),DL1 9HN,0
Director Corporate Resources,Corporate Management,Corporate Management Costs,Bank Charges,TRANSACTION CHARGES,31/03/2021,REDACTED INVOICE NUMBER,140046,3924.11,Revenue,23084,Capita Bus. Serv Ltd (Pg Payments),DL1 9HN,0
Director Corporate Resources,Corporate Management,Corporate Management Costs,Bank Charges,TRANSACTION CHARGES - MAR '21,20/04/2021,REDACTED INVOICE NUMBER,141633,147.79,Revenue,23084,Capita Bus. Serv Ltd (Pg Payments),DL1 9HN,0
Director Corporate Resources,Corporate Management,Corporate Management Costs,Bank Charges,TRANSACTIONS,20/04/2021,REDACTED INVOICE NUMBER,141966,6564.81,Revenue,23084,Capita Bus. Serv Ltd (Pg Payments),DL1 9HN,0
Director Of Planning & Economy,Economic Development Total,Economic Development,Other Fees & Service,ASELA - SHARE OF FUNDING,20/04/2021,REDACTED INVOICE NUMBER,140920,5000,Revenue,579,Castle Point Borough Council,SS7 ITF,0
Director Digital & Customer En,Digital Servs & Transformation,Ict Services,Telephones - General,PHONE CHARGES,30/04/2021,REDACTED INVOICE NUMBER,142028,585,Revenue,22769,Catalyst Amc Ltd,B77 3QU,0
Director Digital & Customer En,Digital Servs & Transformation,Ict Services,Telephones - General,PHONE CHARGES - APR '21,30/04/2021,REDACTED INVOICE NUMBER,142027,3246.06,Revenue,22769,Catalyst Amc Ltd,B77 3QU,0
Director Of Environment,"Communities, Health & Leisure",Sports & Social Venues,Telephones - General,PHONE CHARGES - APR '21,30/04/2021,REDACTED INVOICE NUMBER,142029,63.57,Revenue,22769,Catalyst Amc Ltd,B77 3QU,0
Director Digital & Customer En,Digital Servs & Transformation,Ict Services,Telephones - General,PHONE CHARGES - MSCP - APR '21,30/04/2021,REDACTED INVOICE NUMBER,142026,32.21,Revenue,22769,Catalyst Amc Ltd,B77 3QU,0
Capex Director Digital & C.E,Ict Services,Ict Strategy,Enhancements,IT EQUIPMENT,13/04/2021,REDACTED INVOICE NUMBER,140509,361.52,Capital,586,Ccs Media Ltd,RM1 3PJ,0
Capex Director Digital & C.E,Ict Services,Ict Hardware,Enhancements,IT EQUIPMENT,20/04/2021,REDACTED INVOICE NUMBER,140704,2255.45,Capital,586,Ccs Media Ltd,RM1 3PJ,0
Capex Director Digital & C.E,Ict Services,Ict Strategy,Enhancements,IT EQUIPMENT,20/04/2021,REDACTED INVOICE NUMBER,140703,77.86,Capital,586,Ccs Media Ltd,RM1 3PJ,0
Capex Director Digital & C.E,Ict Services,Ict Hardware,Enhancements,IT EQUIPMENT,27/04/2021,REDACTED INVOICE NUMBER,140972,8682.94,Capital,586,Ccs Media Ltd,RM1 3PJ,0
Capex Director Digital & C.E,Ict Services,Ict Strategy,Enhancements,IT EQUIPMENT,27/04/2021,REDACTED INVOICE NUMBER,140971,426.15,Capital,586,Ccs Media Ltd,RM1 3PJ,0
Director Of Planning & Economy,Planning Policy Total,Planning Policy,Software Support & Maintenance,IT EQUIPMENT,27/04/2021,REDACTED INVOICE NUMBER,141175,1512.59,Revenue,586,Ccs Media Ltd,RM1 3PJ,0
Balance Sheet,Balance Sheet,Balance Sheet,Agency - Active Brentwood,ACTIVE BRENTWOOD,30/04/2021,REDACTED INVOICE NUMBER,142483,2500,Revenue,191349P,Chat 1st Cic,CM2 6GZ,0
Director Of Environment,"Communities, Health & Leisure",Family Fun Days,Contracted Services,CONSULTANCY CONTRIBUTION,27/04/2021,REDACTED INVOICE NUMBER,141159,250,Revenue,28247,Chelmsford City Council,CM1 1JE,0
Balance Sheet,Balance Sheet,Balance Sheet,Highways Stores,BOOTS,13/04/2021,REDACTED INVOICE NUMBER,134947,72.6,Revenue,645,Chelmsford Safety Supplies,CM1 3AG,0
Balance Sheet,Balance Sheet,Balance Sheet,Highways Stores,CLOTHING,13/04/2021,REDACTED INVOICE NUMBER,134560,78,Revenue,645,Chelmsford Safety Supplies,CM1 3AG,0
Balance Sheet,Balance Sheet,Balance Sheet,Highways Stores,CLOTHING,13/04/2021,REDACTED INVOICE NUMBER,134561,65,Revenue,645,Chelmsford Safety Supplies,CM1 3AG,0
Balance Sheet,Balance Sheet,Balance Sheet,Highways Stores,CLOTHING,13/04/2021,REDACTED INVOICE NUMBER,134911,138.93,Revenue,645,Chelmsford Safety Supplies,CM1 3AG,0
Balance Sheet,Balance Sheet,Balance Sheet,Highways Stores,CLOTHING,20/04/2021,REDACTED INVOICE NUMBER,140608,140,Revenue,645,Chelmsford Safety Supplies,CM1 3AG,0
Balance Sheet,Balance Sheet,Balance Sheet,Highways Stores,SHOES,13/04/2021,REDACTED INVOICE NUMBER,140375,80.78,Revenue,645,Chelmsford Safety Supplies,CM1 3AG,0
Balance Sheet,Balance Sheet,Balance Sheet,Highways Stores,CREDIT NOTE,13/04/2021,REDACTED INVOICE NUMBER,140732,-72.6,Revenue,645,Chelmsford Safety Supplies,CM1 3AG,0
Balance Sheet,Balance Sheet,Balance Sheet,Highways Stores,CREDIT NOTE,13/04/2021,REDACTED INVOICE NUMBER,140734,-65,Revenue,645,Chelmsford Safety Supplies,CM1 3AG,0
Balance Sheet,Balance Sheet,Balance Sheet,Highways Stores,CREDIT NOTE,13/04/2021,REDACTED INVOICE NUMBER,140733,-78,Revenue,645,Chelmsford Safety Supplies,CM1 3AG,0
Balance Sheet,Balance Sheet,Balance Sheet,Highways Stores,CREDIT NOTE,13/04/2021,REDACTED INVOICE NUMBER,140735,-138.93,Revenue,645,Chelmsford Safety Supplies,CM1 3AG,0
Director Of Environment,Parking,Parking Services,Managed Services,HOSTING FACILITIES - APR '21,30/04/2021,REDACTED INVOICE NUMBER,141332,80,Revenue,656,Chipside Limited,SN15 5FD,0
Hra Expenditure,Repairs And Maintenance,Planned Maintenance,Consultancy Fees,SURVEYS. MASEFIELD / GIBRALTAR / DRAKE,23/04/2021,REDACTED INVOICE NUMBER,141164,2000,Revenue,28470,Chpk Fire Engineering,E1 7LP,0
Director Of Environment,Env Pro. Noise & Pollution,Env Pro. Noise & Pollution,Subscriptions,ANNUAL SUBSCRIPTION - 21/22,27/04/2021,REDACTED INVOICE NUMBER,139408,257.5,Revenue,677,Cieh,SE1 8BR,0
Director Of Environment,Health & Food Safety,Food Safety Enforcement,Subscriptions,ANNUAL SUBSCRIPTION - 21/22,27/04/2021,REDACTED INVOICE NUMBER,139408,257.5,Revenue,677,Cieh,SE1 8BR,0
Director Of Law & Governance,Electoral Services,Election Services,Training Expenses,VIRTUAL USE GROUP,23/04/2021,REDACTED INVOICE NUMBER,140830,100,Revenue,693,Civica Uk Ltd,DY1 4TD,0
Director Of Environment,Street Services,Street Cleansing,Sub-Contractors,FLYTIP CLEARANCE,30/04/2021,REDACTED INVOICE NUMBER,141632,650,Revenue,28246,Cohart Asbestos Disposal Ltd,SS13 1DH,0
Balance Sheet,Balance Sheet,Balance Sheet,Assize Trust Account,8 -12 CROWN STREET,27/04/2021,REDACTED INVOICE NUMBER,142076,147.15,Revenue,165549P,Contract Natural Gas Ltd,HG1 1EL,0
Director Of Environment,Depot Management & Admin,Depot Management & Admin,Stationery - General,SCANNING / PRINTING,23/04/2021,REDACTED INVOICE NUMBER,141162,358,Revenue,753,Copyright Reprographics Ltd,CM14 4EA,0
Director Of Planning & Economy,Planning Policy Total,Planning Policy,Legal Fees,PROFESSIONAL FEES,23/04/2021,REDACTED INVOICE NUMBER,141177,56997.5,Revenue,27606,Cornerstone Barristers,WC1R 5JH,0
Balance Sheet,Balance Sheet,Balance Sheet,Assize Trust Account,8-12 CROWN STREET - MAR '21,30/04/2021,REDACTED INVOICE NUMBER,141923,38.75,Revenue,25468,Crown Gas And Power,BL9 7HY,0
Director Of Environment,Open Spaces,Countryside Recreation Mtnce,R&M Grounds - Treework,TREE WORKS,6/4/2021,REDACTED INVOICE NUMBER,140918,7090,Revenue,27170,Cut Above,CM15 0PG,0
Director Of Planning & Economy,Planning Policy Total,Planning Policy,Contracted Services,LOCAL PLAN,30/04/2021,REDACTED INVOICE NUMBER,141552,7500,Revenue,26869,D.U.P. Limited,EC2A 4NE,0
Director Digital & Customer En,Digital Servs & Transformation,Ict Services,Telephones - General,PHONE CHARGES,30/04/2021,REDACTED INVOICE NUMBER,141328,1400.95,Revenue,811,Daisy Communications Ltd,BB9 5SR,0
Director Digital & Customer En,Digital Servs & Transformation,Ict Services,Mobile Phone - General,PHONE CHARGES,30/04/2021,REDACTED INVOICE NUMBER,141481,2302.6,Revenue,23240,Daisy Updata Communications Ltd,BB9 5SR,0
Director Digital & Customer En,Digital Servs & Transformation,Ict Services,Network Maintenance,QUARTERLY RENTAL - JUL-SEP '20,30/04/2021,REDACTED INVOICE NUMBER,133898,-5906.51,Revenue,23240,Daisy Updata Communications Ltd,BB9 5SR,0
Director Digital & Customer En,Digital Servs & Transformation,Ict Services,Network Maintenance,QUARTERLY RENTAL. JUL - SEP '20,30/04/2021,REDACTED INVOICE NUMBER,129238,5906.51,Revenue,23240,Daisy Updata Communications Ltd,BB9 5SR,0
Balance Sheet,Balance Sheet,Balance Sheet,Highways Stores,LAUNDRY,20/04/2021,REDACTED INVOICE NUMBER,141514,16.88,Revenue,817,Danes Of Colchester Limited,CO4 9RY,0
Director Of Environment,Vehicle Fleet Management,Vehicle Fleet Management,Purchases - General Equipment,LAUNDRY,20/04/2021,REDACTED INVOICE NUMBER,141971,25.72,Revenue,817,Danes Of Colchester Limited,CO4 9RY,0
Director Of Environment,Vehicle Fleet Management,Vehicle Fleet Management,Purchases - General Equipment,LAUNDRY,20/04/2021,REDACTED INVOICE NUMBER,141972,13.15,Revenue,817,Danes Of Colchester Limited,CO4 9RY,0
Director Of Environment,Vehicle Fleet Management,Vehicle Fleet Management,Purchases - General Equipment,LAUNDRY,23/04/2021,REDACTED INVOICE NUMBER,141513,22.58,Revenue,817,Danes Of Colchester Limited,CO4 9RY,0
Director Of Environment,Vehicle Fleet Management,Vehicle Fleet Management,Vehicle Replacement Parts,VEHICLE PARTS,20/04/2021,REDACTED INVOICE NUMBER,140696,319.59,Revenue,25512,David Huggett Mf Ltd,EM8 7NH,0
Director Of Environment,Vehicle Fleet Management,Vehicle Fleet Management,Vehicle Replacement Parts,VEHICLE PARTS,20/04/2021,REDACTED INVOICE NUMBER,140727,329.88,Revenue,25512,David Huggett Mf Ltd,EM8 7NH,0
Director Of Environment,Vehicle Fleet Management,Vehicle Fleet Management,Vehicle Replacement Parts,VEHICLE PARTS,20/04/2021,REDACTED INVOICE NUMBER,140729,26.47,Revenue,25512,David Huggett Mf Ltd,EM8 7NH,0
Director Of Environment,Vehicle Fleet Management,Vehicle Fleet Management,Vehicle Replacement Parts,VEHICLE PARTS,20/04/2021,REDACTED INVOICE NUMBER,140962,-54,Revenue,25512,David Huggett Mf Ltd,EM8 7NH,0
Director Of Environment,Vehicle Fleet Management,Vehicle Fleet Management,Vehicle Replacement Parts,VEHICLE PARTS,20/04/2021,REDACTED INVOICE NUMBER,140963,-48.82,Revenue,25512,David Huggett Mf Ltd,EM8 7NH,0
Director Of Environment,Vehicle Fleet Management,Vehicle Fleet Management,Vehicle Replacement Parts,VEHICLE PARTS,20/04/2021,REDACTED INVOICE NUMBER,141479,54.38,Revenue,25512,David Huggett Mf Ltd,EM8 7NH,0
Director Of Environment,Vehicle Fleet Management,Vehicle Fleet Management,Vehicle Replacement Parts,VEHICLE PARTS,20/04/2021,REDACTED INVOICE NUMBER,141327,34.13,Revenue,25512,David Huggett Mf Ltd,EM8 7NH,0
Director Of Environment,Vehicle Fleet Management,Vehicle Fleet Management,Purchases - General Equipment,VEHICLE PARTS,23/04/2021,REDACTED INVOICE NUMBER,140758,94.73,Revenue,25512,David Huggett Mf Ltd,EM8 7NH,0
Director Of Environment,Vehicle Fleet Management,Vehicle Fleet Management,Vehicle Replacement Parts,VEHICLE PARTS,23/04/2021,REDACTED INVOICE NUMBER,140755,62.2,Revenue,25512,David Huggett Mf Ltd,EM8 7NH,0
Director Of Environment,Vehicle Fleet Management,Vehicle Fleet Management,Vehicle Replacement Parts,VEHICLE PARTS,23/04/2021,REDACTED INVOICE NUMBER,140754,134.8,Revenue,25512,David Huggett Mf Ltd,EM8 7NH,0
Director Of Environment,Vehicle Fleet Management,Vehicle Fleet Management,Vehicle Replacement Parts,VEHICLE PARTS,23/04/2021,REDACTED INVOICE NUMBER,140753,134.75,Revenue,25512,David Huggett Mf Ltd,EM8 7NH,0
Director Of Environment,Vehicle Fleet Management,Vehicle Fleet Management,Vehicle Replacement Parts,VEHICLE PARTS,23/04/2021,REDACTED INVOICE NUMBER,140759,1441.81,Revenue,25512,David Huggett Mf Ltd,EM8 7NH,0
Director Of Environment,Vehicle Fleet Management,Vehicle Fleet Management,Vehicle Replacement Parts,VEHICLE PARTS,23/04/2021,REDACTED INVOICE NUMBER,140752,557.58,Revenue,25512,David Huggett Mf Ltd,EM8 7NH,0
Director Of Environment,Vehicle Fleet Management,Vehicle Fleet Management,Vehicle Replacement Parts,VEHICLE PARTS,23/04/2021,REDACTED INVOICE NUMBER,140825,34.18,Revenue,25512,David Huggett Mf Ltd,EM8 7NH,0
Director Of Environment,Vehicle Fleet Management,Vehicle Fleet Management,Vehicle Replacement Parts,VEHICLE PARTS,23/04/2021,REDACTED INVOICE NUMBER,140824,34,Revenue,25512,David Huggett Mf Ltd,EM8 7NH,0
Director Of Environment,Vehicle Fleet Management,Vehicle Fleet Management,Vehicle Replacement Parts,VEHICLE PARTS,23/04/2021,REDACTED INVOICE NUMBER,140822,208,Revenue,25512,David Huggett Mf Ltd,EM8 7NH,0
Director Of Environment,Vehicle Fleet Management,Vehicle Fleet Management,Vehicle Replacement Parts,VEHICLE PARTS,23/04/2021,REDACTED INVOICE NUMBER,140823,427.25,Revenue,25512,David Huggett Mf Ltd,EM8 7NH,0
Director Of Environment,Vehicle Fleet Management,Vehicle Fleet Management,Vehicle Replacement Parts,VEHICLE PARTS,23/04/2021,REDACTED INVOICE NUMBER,140821,714.4,Revenue,25512,David Huggett Mf Ltd,EM8 7NH,0
Director Of Environment,Vehicle Fleet Management,Vehicle Fleet Management,Vehicle Replacement Parts,VEHICLE PARTS,23/04/2021,REDACTED INVOICE NUMBER,140826,265,Revenue,25512,David Huggett Mf Ltd,EM8 7NH,0
Director Of Environment,Vehicle Fleet Management,Vehicle Fleet Management,Vehicle Replacement Parts,VEHICLE PARTS,23/04/2021,REDACTED INVOICE NUMBER,140819,265,Revenue,25512,David Huggett Mf Ltd,EM8 7NH,0
Director Of Environment,Vehicle Fleet Management,Vehicle Fleet Management,Vehicle Replacement Parts,VEHICLE PARTS,23/04/2021,REDACTED INVOICE NUMBER,140820,624,Revenue,25512,David Huggett Mf Ltd,EM8 7NH,0
Director Of Environment,Vehicle Fleet Management,Vehicle Fleet Management,Vehicle Replacement Parts,VEHICLE PARTS,23/04/2021,REDACTED INVOICE NUMBER,140817,1012.8,Revenue,25512,David Huggett Mf Ltd,EM8 7NH,0
Director Of Environment,Vehicle Fleet Management,Vehicle Fleet Management,Vehicle Replacement Parts,VEHICLE PARTS,23/04/2021,REDACTED INVOICE NUMBER,140816,12,Revenue,25512,David Huggett Mf Ltd,EM8 7NH,0
Director Of Environment,Vehicle Fleet Management,Vehicle Fleet Management,Vehicle Replacement Parts,VEHICLE PARTS,23/04/2021,REDACTED INVOICE NUMBER,140818,377.37,Revenue,25512,David Huggett Mf Ltd,EM8 7NH,0
Director Of Environment,Vehicle Fleet Management,Vehicle Fleet Management,Vehicle Replacement Parts,VEHICLE PARTS,23/04/2021,REDACTED INVOICE NUMBER,140814,482.46,Revenue,25512,David Huggett Mf Ltd,EM8 7NH,0
Director Of Environment,Vehicle Fleet Management,Vehicle Fleet Management,Vehicle Replacement Parts,VEHICLE PARTS,23/04/2021,REDACTED INVOICE NUMBER,140815,72.32,Revenue,25512,David Huggett Mf Ltd,EM8 7NH,0
Director Of Environment,Vehicle Fleet Management,Vehicle Fleet Management,Vehicle Replacement Parts,VEHICLE PARTS,23/04/2021,REDACTED INVOICE NUMBER,140813,36.16,Revenue,25512,David Huggett Mf Ltd,EM8 7NH,0
Director Of Environment,Vehicle Fleet Management,Vehicle Fleet Management,Vehicle Replacement Parts,VEHICLE PARTS,23/04/2021,REDACTED INVOICE NUMBER,140812,17.42,Revenue,25512,David Huggett Mf Ltd,EM8 7NH,0
Director Of Environment,Vehicle Fleet Management,Vehicle Fleet Management,Vehicle Replacement Parts,VEHICLE PARTS,23/04/2021,REDACTED INVOICE NUMBER,140922,1065.3,Revenue,25512,David Huggett Mf Ltd,EM8 7NH,0
Director Of Environment,Vehicle Fleet Management,Vehicle Fleet Management,Vehicle Replacement Parts,VEHICLE PARTS,23/04/2021,REDACTED INVOICE NUMBER,140923,158,Revenue,25512,David Huggett Mf Ltd,EM8 7NH,0
Director Of Environment,Vehicle Fleet Management,Vehicle Fleet Management,Vehicle Replacement Parts,VEHICLE PARTS,27/04/2021,REDACTED INVOICE NUMBER,140964,100,Revenue,25512,David Huggett Mf Ltd,EM8 7NH,0
Director Of Environment,Vehicle Fleet Management,Vehicle Fleet Management,Vehicle Replacement Parts,VEHICLE PARTS,27/04/2021,REDACTED INVOICE NUMBER,140965,791.5,Revenue,25512,David Huggett Mf Ltd,EM8 7NH,0
Director Of Environment,Vehicle Fleet Management,Vehicle Fleet Management,Vehicle Replacement Parts,VEHICLE PARTS,27/04/2021,REDACTED INVOICE NUMBER,140966,191.61,Revenue,25512,David Huggett Mf Ltd,EM8 7NH,0
Director Of Environment,Vehicle Fleet Management,Vehicle Fleet Management,Vehicle Replacement Parts,VEHICLE PARTS,27/04/2021,REDACTED INVOICE NUMBER,140968,165.12,Revenue,25512,David Huggett Mf Ltd,EM8 7NH,0
Director Of Environment,Vehicle Fleet Management,Vehicle Fleet Management,Vehicle Replacement Parts,VEHICLE PARTS,27/04/2021,REDACTED INVOICE NUMBER,141174,65.49,Revenue,25512,David Huggett Mf Ltd,EM8 7NH,0
Director Of Environment,Vehicle Fleet Management,Vehicle Fleet Management,Vehicle Replacement Parts,VEHICLE PARTS,30/04/2021,REDACTED INVOICE NUMBER,141246,81.47,Revenue,25512,David Huggett Mf Ltd,EM8 7NH,0
Capex Director Digital & C.E,Ict Services,Ict Strategy,Enhancements,IT EQUIPMENT,30/04/2021,REDACTED INVOICE NUMBER,141519,6262.08,Capital,28443,Dell Emc,RG12 1LF,0
Director Of Environment,Vehicle Fleet Management,Vehicle Fleet Management,Vehicle Replacement Parts,VEHICLE PARTS,9/4/2021,REDACTED INVOICE NUMBER,140343,132.68,Revenue,861,Dennis Eagle Ltd,CV34 6TE,0
Director Of Environment,Vehicle Fleet Management,Vehicle Fleet Management,Vehicle Replacement Parts,VEHICLE PARTS,16/04/2021,REDACTED INVOICE NUMBER,140533,140.8,Revenue,861,Dennis Eagle Ltd,CV34 6TE,0
Director Of Environment,Vehicle Fleet Management,Vehicle Fleet Management,Vehicle Replacement Parts,VEHICLE PARTS,27/04/2021,REDACTED INVOICE NUMBER,140970,404.85,Revenue,861,Dennis Eagle Ltd,CV34 6TE,0
Director Of Environment,Licensing,Taxi Drivers Account,Computer Software Licences,ANNUAL LICENCE FEE,23/04/2021,REDACTED INVOICE NUMBER,140931,292.5,Revenue,872,Diamond People Ltd,HR7 4JT,0
Director Of Planning & Economy,Building Control,Building Control - Chargeable,Other Professional Fees,LABC SERVICE FEE -  2021/22,6/4/2021,REDACTED INVOICE NUMBER,140946,1898.45,Revenue,880,District Surveyors Association Ltd,SW8 1RL,0
Parish Precepts,Parish Precepts,Parish Precepts,Precept Payments,PRECEPT APR 21,6/4/2021,REDACTED INVOICE NUMBER,141215,38007,Revenue,890,Doddinghurst Parish Council,CM15 0NJ,0
Director Of Environment,Parking,Parking Services,Agency Staff,PROJECT MANAGEMENT SUPPORT,20/04/2021,REDACTED INVOICE NUMBER,141170,693,Revenue,28029,Driver Hire (Chelmsford & Harlow),CM8 1BA,0
Director Of Environment,Parking,Parking Services,Agency Staff,PROJECT MANAGEMENT SUPPORT,20/04/2021,REDACTED INVOICE NUMBER,141466,269.25,Revenue,28029,Driver Hire (Chelmsford & Harlow),CM8 1BA,0
Director Of Environment,Parking,Parking Services,Agency Staff,PROJECT MANAGEMENT SUPPORT,27/04/2021,REDACTED INVOICE NUMBER,141925,693,Revenue,28029,Driver Hire (Chelmsford & Harlow),CM8 1BA,0
Director Of Environment,Grounds Maintenance,Grounds Maintenance,Agency Staff,PROJECT MANAGEMENT SUPPORT,6/4/2021,REDACTED INVOICE NUMBER,140742,564.25,Revenue,28029,Driver Hire (Chelmsford & Harlow),CM8 1BA,0
Director Of Environment,Grounds Maintenance,Grounds Maintenance,Agency Staff,PROJECT MANAGEMENT SUPPORT,16/04/2021,REDACTED INVOICE NUMBER,141171,1090.38,Revenue,28029,Driver Hire (Chelmsford & Harlow),CM8 1BA,0
Director Of Environment,Waste Management,Waste Collection Support,Agency Staff,PROJECT MANAGEMENT SUPPORT,13/04/2021,REDACTED INVOICE NUMBER,141169,4081.43,Revenue,28029,Driver Hire (Chelmsford & Harlow),CM8 1BA,0
Director Of Environment,Waste Management,Waste Collection Support,Agency Staff,PROJECT MANAGEMENT SUPPORT,20/04/2021,REDACTED INVOICE NUMBER,141467,5341.19,Revenue,28029,Driver Hire (Chelmsford & Harlow),CM8 1BA,0
Director Of Environment,Grounds Maintenance,Grounds Maintenance,Agency Staff,PROJECT MANAGEMENT SUPPORT,23/04/2021,REDACTED INVOICE NUMBER,141468,892.14,Revenue,28029,Driver Hire (Chelmsford & Harlow),CM8 1BA,0
Director Of Environment,Golf Course,Golf Course,Agency Staff,PROJECT MANAGEMENT SUPPORT,27/04/2021,REDACTED INVOICE NUMBER,141927,480.38,Revenue,28029,Driver Hire (Chelmsford & Harlow),CM8 1BA,0
Director Of Environment,Grounds Maintenance,Grounds Maintenance,Agency Staff,PROJECT MANAGEMENT SUPPORT,27/04/2021,REDACTED INVOICE NUMBER,141927,899.76,Revenue,28029,Driver Hire (Chelmsford & Harlow),CM8 1BA,0
Director Of Environment,Waste Management,Waste Collection Support,Agency Staff,PROJECT MANAGEMENT SUPPORT,27/04/2021,REDACTED INVOICE NUMBER,141926,5455.93,Revenue,28029,Driver Hire (Chelmsford & Harlow),CM8 1BA,0
Director Of Environment,Vehicle Fleet Management,Vehicle Fleet Management,Vehicle R&M - External,VEHICLE REPAIR,20/04/2021,REDACTED INVOICE NUMBER,141163,3034.86,Revenue,28515,Dt Trucks Ltd,IG11 0SN,0
Hra Expenditure,Repairs And Maintenance,Responsive Void Repairs,Electricity,ELECTRICITY SUPPLY,30/04/2021,REDACTED INVOICE NUMBER,142209,58.41,Revenue,959,E.On,NG1 6HD,0
Hra Expenditure,Repairs And Maintenance,Responsive Void Repairs,Gas,GAS SUPPLY,30/04/2021,REDACTED INVOICE NUMBER,142209,114.86,Revenue,959,E.On,NG1 6HD,0
Hra Expenditure,Repairs And Maintenance,Responsive Void Repairs,Electricity,ELECTRICITY SUPPLY,13/04/2021,REDACTED INVOICE NUMBER,141197,47.41,Revenue,959,E.On,NG1 6HD,0
Capex Director Of Housing,Housing - Affordable Housing,Coram Green,Enhancements,PROJECT SERVICES - CORAM GREEN,23/04/2021,REDACTED INVOICE NUMBER,141935,11643.07,Capital,970,East Of England Local Government Associat,IP33 3YU,0
Director Corporate Resources,Human Resources,Human Resources,Project Management Support,TALENT BANK,20/04/2021,REDACTED INVOICE NUMBER,141939,1200,Revenue,970,East Of England Local Government Associat,IP33 3YU,0
Director Corporate Resources,Payroll,Payroll,Project Management Support,TALENT BANK,20/04/2021,REDACTED INVOICE NUMBER,141938,6000,Revenue,970,East Of England Local Government Associat,IP33 3YU,0
Director Of Law & Governance,Electoral Services,Election Services,Project Management Support,TALENT BANK,23/04/2021,REDACTED INVOICE NUMBER,141937,2354,Revenue,970,East Of England Local Government Associat,IP33 3YU,0
Balance Sheet,Balance Sheet,Balance Sheet,Ctax 15 Jan Prior Surplus Ecc,PRECEPTS - MAY '21,30/04/2021,REDACTED INVOICE NUMBER,142499,9729,Revenue,22442,Ecc Precept,.,0
Balance Sheet,Balance Sheet,Balance Sheet,C Tax Ecc Precept,PRECEPTS - MAY '21,30/04/2021,REDACTED INVOICE NUMBER,142499,4053242,Revenue,22442,Ecc Precept,.,0
Director Corporate Resources,Council Tax & Nndr,Council Tax Collection,Grants/Contributions - Ecc,PRECEPTS - MAY '21,30/04/2021,REDACTED INVOICE NUMBER,142499,-5641,Revenue,22442,Ecc Precept,.,0
Hra Expenditure,Supervision And Management,Policy And Management,Consultancy Fees,WORKS COMPLETD - MAR '21,16/04/2021,REDACTED INVOICE NUMBER,141257,1147.5,Revenue,27607,Echelon Consultancy Limited,AL1 4TB,0
Capex Director Of Environment,Other Environmental Services,Disabled Facilities Grant,Grants - General,GRANT,30/04/2021,REDACTED INVOICE NUMBER,142215,5386.3,Capital,190252P,Ej Taylor & Sons Ltd,CM9 5PR,0
Hra Expenditure,Repairs And Maintenance,Planned Maintenance,R&M Other - Sewerage,SUBSISTENCE CHARGES - 21/22,30/04/2021,REDACTED INVOICE NUMBER,141228,1780,Revenue,1032,Environment Agency,PE2 8YD,0
Director Of Environment,Waste Management,Recycling - Dry,Purchases - General Equipment,SUBSISTENCE CHARGES - DEPOT - 21/22,30/04/2021,REDACTED INVOICE NUMBER,141603,2875,Revenue,1032,Environment Agency,PE2 8YD,0
Director Of Environment,Grounds Maintenance,Grounds Maintenance,Purchases - General Equipment,SPECIAL OFFER PRICE,20/04/2021,REDACTED INVOICE NUMBER,140731,104.7,Revenue,1050,Ernest Doe & Sons Ltd,CM9 6QH,0
Hra Expenditure,Special Services,Caretaking,Cleaning & Dom. Supplies-Other,HESELTINE HOUSE,27/04/2021,REDACTED INVOICE NUMBER,142125,55.58,Revenue,1058,Essex + Suffolk Water,DH1 9TX,0
Director Of Planning & Economy,Planning Development Managemt,Planning Development Managemt,Consultancy Fees,PLANNING CONSULTATION - BROOKFIELD CLOSE,23/04/2021,REDACTED INVOICE NUMBER,140934,650,Revenue,1075,Essex County Council,CM1 1JZ,0
Director Of Environment,"Communities, Health & Leisure",Grants To Organisations,Contributions,Safeguarding Adults,9/4/2021,REDACTED INVOICE NUMBER,132321,1130,Revenue,1075,Essex County Council,CM1 1JZ,0
Director Of Planning & Economy,Land Charges,Land Charges,Search Fees,SEARCHES - DEC '20,13/04/2021,REDACTED INVOICE NUMBER,140953,1550.78,Revenue,1075,Essex County Council,CM1 1JZ,0
Director Of Planning & Economy,Land Charges,Land Charges,Search Fees,SEARCHES - FEB '21,23/04/2021,REDACTED INVOICE NUMBER,140951,1536.15,Revenue,1075,Essex County Council,CM1 1JZ,0
Director Of Planning & Economy,Land Charges,Land Charges,Search Fees,SEARCHES - JAN '21,13/04/2021,REDACTED INVOICE NUMBER,140952,1770.23,Revenue,1075,Essex County Council,CM1 1JZ,0
Director Of Planning & Economy,Planning Development Managemt,Planning Development Managemt,Subscriptions,SUITABLE DRAINAGE SLA - 20/21,16/04/2021,REDACTED INVOICE NUMBER,140935,3100,Revenue,1075,Essex County Council,CM1 1JZ,0
Director Of Environment,Cemeteries,Cemeteries,Purchases - General Equipment,WATER PUMP HIRE - MAR '21,23/04/2021,REDACTED INVOICE NUMBER,142112,248,Revenue,1096,Essex Hire + Sales Ltd,CM15 9DZ,0
Director Corporate Resources,Corporate Fraud,Fraud,Software Support & Maintenance,SEARCHES - MAR '21,30/04/2021,REDACTED INVOICE NUMBER,142085,53.2,Revenue,1126,Experian Ltd,NG80 1ZZ,0
Capex Director Of Environment,S106 Former Elliots Nightclub,S106 Former Elliots Nightclub,Enhancements,INSTALL FOOTPATH - KGPF BOWLS GREEN,30/04/2021,REDACTED INVOICE NUMBER,141252,9480,Capital,1134,F.J.Britten Landscapes Ltd,CM3 8BG,0
Balance Sheet,Balance Sheet,Balance Sheet,Ctax 15 Jan Prior Surplus Fire,PRECEPTS - MAY '21,30/04/2021,REDACTED INVOICE NUMBER,142501,544,Revenue,22443,Fire Precept,.,0
Balance Sheet,Balance Sheet,Balance Sheet,C Tax Fire Precept,PRECEPTS - MAY '21,30/04/2021,REDACTED INVOICE NUMBER,142501,223351,Revenue,22443,Fire Precept,.,0
Balance Sheet,Balance Sheet,Balance Sheet,Nndr Fire Est Share(Precept),PRECEPTS - MAY '21,30/04/2021,REDACTED INVOICE NUMBER,142501,24472,Revenue,22443,Fire Precept,.,0
Balance Sheet,Balance Sheet,Balance Sheet,Nndr Prior Yr Surplus To Fire,PRECEPTS - MAY '21,30/04/2021,REDACTED INVOICE NUMBER,142501,-11688,Revenue,22443,Fire Precept,.,0
Director Corporate Resources,Council Tax & Nndr,Council Tax Collection,Grants/Contributions - Fire,PRECEPTS - MAY '21,30/04/2021,REDACTED INVOICE NUMBER,142501,-1869,Revenue,22443,Fire Precept,.,0
Director Of Environment,"Communities, Health & Leisure",Sports & Social Venues,Bank Charges,DIRECT DEBIT APR 2021,23/04/2021,REDACTED INVOICE NUMBER,142123,40,Revenue,27884,First Data Global Leasing (Dd Payments),SS14 3WF,0
Director Of Environment,Golf Course,Golf Course,Bank Charges,DIRECT DEBIT APR 21,16/04/2021,REDACTED INVOICE NUMBER,141639,23.19,Revenue,27884,First Data Global Leasing (Dd Payments),SS14 3WF,0
Director Of Environment,"Communities, Health & Leisure",Sports & Social Venues,Bank Charges,DIRECT DEBIT MAR 21,9/4/2021,REDACTED INVOICE NUMBER,141180,40,Revenue,27884,First Data Global Leasing (Dd Payments),SS14 3WF,0
Director Of Environment,Parking,Parking Services,Equipment & Tools - R&M,PAY & DISPLAY MAINT. 2021 / 22,16/04/2021,REDACTED INVOICE NUMBER,140526,8508,Revenue,4187,Flowbird Smart City Uk Ltd (Was Parkeon),BH12 5AG,0
Capex Director Of C Resources,Asset Management,Brentwood Leisure Centre,R&M Bldgs - General,BRENTWOOD CENTRE COVER - MAR '21,27/04/2021,REDACTED INVOICE NUMBER,140969,3150,Capital,28227,Four-Two Logistics Limited,CM22 7WE,0
Director Of Environment,Waste Management,Refuse Waste,Purchases - General Equipment,DRIVERS RECORD BOOK,30/04/2021,REDACTED INVOICE NUMBER,141949,445,Revenue,1189,Freight Transport Association Ltd,TN4 9UZ,0
Director Of Environment,Waste Management,Refuse Waste,Purchases - General Equipment,MASKS / REPORT PAD,30/04/2021,REDACTED INVOICE NUMBER,142051,112.5,Revenue,1189,Freight Transport Association Ltd,TN4 9UZ,0
Director Of Environment,Parking,Parking Services,Cash Collection,CONTRACT SERVICES - MAY '21,30/04/2021,REDACTED INVOICE NUMBER,141613,221.22,Revenue,23898,G4s Secure Solutions (Uk) Ltd,SM1 4LD,0
Hra Expenditure,Repairs And Maintenance,Planned Maintenance,Contracted Services,DOMESTIC ELECTRIC AUDIT - MAR '21,23/04/2021,REDACTED INVOICE NUMBER,141229,329,Revenue,27976,Gas Contract Services Ltd,ME2 4NZ,0
Hra Expenditure,Repairs And Maintenance,Planned Maintenance,Contracted Services,DOMESTIC GAS AUDIT - MAR '21,23/04/2021,REDACTED INVOICE NUMBER,140903,777.3,Revenue,27976,Gas Contract Services Ltd,ME2 4NZ,0
Director Housing & Enforcement,Homelessness,Temp Accommodation (Own Stock),Gas,GAS SUPPLY,27/04/2021,REDACTED INVOICE NUMBER,140915,-134.31,Revenue,1222,Gazprom Energy,M3 3GY,0
Director Corporate Resources,Asset Management,Asset Management,Gas,GAS SUPPLY,27/04/2021,REDACTED INVOICE NUMBER,142235,78.09,Revenue,1222,Gazprom Energy,M3 3GY,0
Hra Expenditure,Special Services,Communal Heating,Gas,GAS SUPPLY,27/04/2021,REDACTED INVOICE NUMBER,142180,6.9,Revenue,1222,Gazprom Energy,M3 3GY,0
Hra Expenditure,Special Services,Chichester House,Gas,GAS SUPPLY,27/04/2021,REDACTED INVOICE NUMBER,142187,789.92,Revenue,1222,Gazprom Energy,M3 3GY,0
Hra Expenditure,Special Services,Communal Heating,Gas,GAS SUPPLY,27/04/2021,REDACTED INVOICE NUMBER,142187,338.5,Revenue,1222,Gazprom Energy,M3 3GY,0
Hra Expenditure,Repairs And Maintenance,Responsive Void Repairs,Gas,GAS SUPPLY,27/04/2021,REDACTED INVOICE NUMBER,142188,160.19,Revenue,1222,Gazprom Energy,M3 3GY,0
Hra Expenditure,Special Services,Drake House,Gas,GAS SUPPLY,27/04/2021,REDACTED INVOICE NUMBER,142185,2130.81,Revenue,1222,Gazprom Energy,M3 3GY,0
Hra Expenditure,Special Services,Four Oaks,Gas,GAS SUPPLY,30/04/2021,REDACTED INVOICE NUMBER,142239,525.79,Revenue,1222,Gazprom Energy,M3 3GY,0
Hra Expenditure,Special Services,Communal Heating,Gas,GAS SUPPLY,27/04/2021,REDACTED INVOICE NUMBER,142181,8.81,Revenue,1222,Gazprom Energy,M3 3GY,0
Hra Expenditure,Special Services,Communal Heating,Gas,GAS SUPPLY,27/04/2021,REDACTED INVOICE NUMBER,142182,20.62,Revenue,1222,Gazprom Energy,M3 3GY,0
Hra Expenditure,Special Services,Communal Heating,Gas,GAS SUPPLY,27/04/2021,REDACTED INVOICE NUMBER,142177,241.85,Revenue,1222,Gazprom Energy,M3 3GY,0
Hra Expenditure,Special Services,Ingleton House,Gas,GAS SUPPLY,27/04/2021,REDACTED INVOICE NUMBER,142177,725.82,Revenue,1222,Gazprom Energy,M3 3GY,0
Hra Expenditure,Special Services,Communal Heating,Gas,GAS SUPPLY,27/04/2021,REDACTED INVOICE NUMBER,142236,48.41,Revenue,1222,Gazprom Energy,M3 3GY,0
Hra Expenditure,Special Services,Communal Heating,Gas,GAS SUPPLY,27/04/2021,REDACTED INVOICE NUMBER,142237,5.55,Revenue,1222,Gazprom Energy,M3 3GY,0
Director Corporate Resources,Office Accommodation,Office Facilities Management,Gas,GAS SUPPLY,27/04/2021,REDACTED INVOICE NUMBER,142183,106.46,Revenue,1222,Gazprom Energy,M3 3GY,0
Hra Expenditure,Special Services,Communal Heating,Gas,GAS SUPPLY,27/04/2021,REDACTED INVOICE NUMBER,142186,870.57,Revenue,1222,Gazprom Energy,M3 3GY,0
Hra Expenditure,Special Services,St Georges Court,Gas,GAS SUPPLY,27/04/2021,REDACTED INVOICE NUMBER,142184,5.55,Revenue,1222,Gazprom Energy,M3 3GY,0
Hra Expenditure,Special Services,St Georges Court,Gas,GAS SUPPLY,27/04/2021,REDACTED INVOICE NUMBER,142186,1616.81,Revenue,1222,Gazprom Energy,M3 3GY,0
Hra Expenditure,Special Services,Communal Heating,Gas,GAS SUPPLY,27/04/2021,REDACTED INVOICE NUMBER,142179,236.24,Revenue,1222,Gazprom Energy,M3 3GY,0
Hra Expenditure,Special Services,The Gables,Gas,GAS SUPPLY,27/04/2021,REDACTED INVOICE NUMBER,142179,888.73,Revenue,1222,Gazprom Energy,M3 3GY,0
Hra Expenditure,Special Services,Communal Heating,Gas,GAS SUPPLY,27/04/2021,REDACTED INVOICE NUMBER,142178,373,Revenue,1222,Gazprom Energy,M3 3GY,0
Hra Expenditure,Special Services,Oldfields,Gas,GAS SUPPLY,27/04/2021,REDACTED INVOICE NUMBER,142178,862.7,Revenue,1222,Gazprom Energy,M3 3GY,0
Hra Expenditure,Special Services,Victoria Court,Gas,GAS SUPPLY,27/04/2021,REDACTED INVOICE NUMBER,142178,1095.9,Revenue,1222,Gazprom Energy,M3 3GY,0
Director Of Environment,Open Spaces,Buildings & Stakeholders,Gas,GAS SUPPLY,27/04/2021,REDACTED INVOICE NUMBER,142175,278.74,Revenue,1222,Gazprom Energy,M3 3GY,0
Director Of Environment,Waste Management,Refuse Waste,Equipment & Tools - R&M,WASTE BAGS,30/04/2021,REDACTED INVOICE NUMBER,141601,569.05,Revenue,25265,General Business Holdings Ltd,CM8 3DH,0
Director Digital & Customer En,Digital Servs & Transformation,Ict Services,Computer Software Licences,IMPLEMENTATION SERVICES - REMOTE,27/04/2021,REDACTED INVOICE NUMBER,141172,843,Revenue,28376,Gladstone Mrm Ltd,OX10 9BT,0
Director Corporate Resources,Asset Management,Asset Management,Search Fees,LAND REG DD'S MARCH 2021,9/4/2021,REDACTED INVOICE NUMBER,141387,102,Revenue,22013,H M Land Registry,.,0
Director Of Environment,Open Spaces,Amenity Greens,Search Fees,LAND REG DD'S MARCH 2021,9/4/2021,REDACTED INVOICE NUMBER,141387,9,Revenue,22013,H M Land Registry,.,0
Director Of Planning & Economy,Planning Development Managemt,Planning Development Managemt,Search Fees,LAND REG DD'S MARCH 2021,9/4/2021,REDACTED INVOICE NUMBER,141387,51,Revenue,22013,H M Land Registry,.,0
Hra Expenditure,Supervision And Management,Rent Collection & Recovery,Search Fees,LAND REG DD'S MARCH 2021,9/4/2021,REDACTED INVOICE NUMBER,141387,18,Revenue,22013,H M Land Registry,.,0
Balance Sheet,Balance Sheet,Balance Sheet,Assize Trust Account,COST APPRAISAL - CROWN STREET,27/04/2021,REDACTED INVOICE NUMBER,139575,1450,Revenue,28405,Hamson Barron Smith Ltd,NR6 6EQ,0
Director Corporate Resources,Asset Management,Asset Management,Other Professional Fees,PROFESSIONAL FEES - WESTBURY ROAD,27/04/2021,REDACTED INVOICE NUMBER,141193,3000,Revenue,28405,Hamson Barron Smith Ltd,NR6 6EQ,0
Director Corporate Resources,Asset Management,Asset Management,Other Professional Fees,WESTBURY ROAD - REVIEW,27/04/2021,REDACTED INVOICE NUMBER,140613,-3000,Revenue,28405,Hamson Barron Smith Ltd,NR6 6EQ,0
Director Of Environment,Vehicle Fleet Management,Vehicle Fleet Management,Vehicle R&M - External,MONTHLY SERVICE,30/04/2021,REDACTED INVOICE NUMBER,141638,255,Revenue,1329,Harris Commercial Repairs Limited,RM20 4AU,0
Director Of Environment,Vehicle Fleet Management,Vehicle Fleet Management,Vehicle R&M - External,MONTHLY SERVICE - TRAILER,30/04/2021,REDACTED INVOICE NUMBER,141637,120,Revenue,1329,Harris Commercial Repairs Limited,RM20 4AU,0
Director Corporate Resources,Corporate Finance,Corporate Finance,Agency Staff,PROJECT MANAGEMENT SUPPORT,20/04/2021,REDACTED INVOICE NUMBER,141656,649,Revenue,27208,Hays Specialist Recruitment Ltd,KT3 4QF,0
Director Of Planning & Economy,Planning Policy Total,Planning Policy,Other Fees & Service,BRENTWOOD LOCAL PLAN HEARINGS,31/03/2021,REDACTED INVOICE NUMBER,140621,12325,Revenue,148960P,Hdh Planning And Development Ltd,LA2 8ET,0
Hra Expenditure,Supervision And Management,Policy And Management,Contracted Services,SEC GUARDS - DRAKE HOUSE - EASTER,23/04/2021,REDACTED INVOICE NUMBER,141476,810,Revenue,1353,Headline Security Limited,CM14 4RA,0
Hra Expenditure,Supervision And Management,Policy And Management,Contracted Services,SEC GUARDS - DRAKE HOUSE - W/C 12.4.21,27/04/2021,REDACTED INVOICE NUMBER,142042,1890,Revenue,1353,Headline Security Limited,CM14 4RA,0
Hra Expenditure,Supervision And Management,Policy And Management,Contracted Services,SEC GUARDS - DRAKE HOUSE - W/C 19.4.21,30/04/2021,REDACTED INVOICE NUMBER,142043,1890,Revenue,1353,Headline Security Limited,CM14 4RA,0
Hra Expenditure,Supervision And Management,Policy And Management,Contracted Services,SEC GUARDS - DRAKE HOUSE - W/C 5.4.21,23/04/2021,REDACTED INVOICE NUMBER,141477,1890,Revenue,1353,Headline Security Limited,CM14 4RA,0
Parish Precepts,Parish Precepts,Parish Precepts,Precept Payments,PRECEPT APR 21,6/4/2021,REDACTED INVOICE NUMBER,141216,24000,Revenue,1371,Herongate + Ingrave Parish Council,CM13 3QL,0
Hra Expenditure,Supervision And Management,Rent Collection & Recovery,Court Fees,COURT FEES,13/04/2021,REDACTED INVOICE NUMBER,141480,975,Revenue,1397,Hmcts,NP20 9FN,0
Director Of Environment,Golf Course,Golf Course,Purchases - General Equipment,MOWER SERVICE,9/4/2021,REDACTED INVOICE NUMBER,140829,503.74,Revenue,1419,Hopedima Engineering Ltd,CM14 5SU,0
Director Of Environment,"Communities, Health & Leisure",Sports & Social Venues,Contracted Services,QUADBIKE REPAIR,23/04/2021,REDACTED INVOICE NUMBER,141233,232.62,Revenue,1419,Hopedima Engineering Ltd,CM14 5SU,0
Director Of Environment,Grounds Maintenance,Grounds Maintenance,Vehicle R&M - External,VEHICLE SERVICE,16/04/2021,REDACTED INVOICE NUMBER,140987,946,Revenue,1419,Hopedima Engineering Ltd,CM14 5SU,0
Director Of Environment,Golf Course,Golf Course,Purchases - Materials,WAKER PLATE REPAIRS ,31/03/2021,REDACTED INVOICE NUMBER,140541,48.3,Revenue,1419,Hopedima Engineering Ltd,CM14 5SU,0
Director Of Environment,Env Health & Licensing Admin,Env Health & Licensing Admin,Agency Staff,PROJECT MANAGEMENT SUPPORT,30/04/2021,REDACTED INVOICE NUMBER,141231,8096,Revenue,28449,Hsg Facilities Management Ltd,CF24 5EL,0
Balance Sheet,Balance Sheet,Balance Sheet,Agency - Active Brentwood,ACTIVE BRENTWOOD,30/04/2021,REDACTED INVOICE NUMBER,142482,240,Revenue,191348P,Hutton Cricket Club,CM13 2QT,0
Director Of Environment,"Communities, Health & Leisure",Sports & Social Venues,Purchases - Materials,MATERIALS,16/04/2021,REDACTED INVOICE NUMBER,141970,152,Revenue,190057P,Hydrospec Ltd,CM13 1TG,0
Director Corporate Resources,Human Resources,Human Resources,Training Expenses,LEGIONELLA TRAINING,27/04/2021,REDACTED INVOICE NUMBER,140930,495,Revenue,27690,Hydro-X Training,S25 3QU,0
Director Corporate Resources,Human Resources,Human Resources,Training Expenses,LEGIONELLA TRAINING,27/04/2021,REDACTED INVOICE NUMBER,141258,495,Revenue,27690,Hydro-X Training,S25 3QU,0
Director Corporate Resources,Human Resources,Human Resources,Training Expenses,LEGIONELLA TRAINING,27/04/2021,REDACTED INVOICE NUMBER,141235,1320,Revenue,27690,Hydro-X Training,S25 3QU,0
Director Digital & Customer En,Digital Servs & Transformation,Ict Services,Network Maintenance,MANAGED CYBER SECURITY. APR-JUN '21,30/04/2021,REDACTED INVOICE NUMBER,141186,9000,Revenue,1467,Hytec Information Security Ltd,TW11 9AA,0
Director Of Environment,Env Health Team & Support,Env Health Team & Support,Software Support & Maintenance,IDOX UPGRADE,6/4/2021,REDACTED INVOICE NUMBER,139467,3912,Revenue,1485,Idox Software Ltd,G1 3RS,0
Director Corporate Resources,Corporate Management,Corporate Management Costs,Treasury - Brokerage Fees Gen,BROKERAGE - MAR '21,30/04/2021,REDACTED INVOICE NUMBER,141225,19068.49,Revenue,27847,Imperial Treasury Services Ltd,SG14 1PJ,0
Director Of Environment,Open Spaces,Recreation Areas,R&M Grounds - Play Equipment,PARTS,30/04/2021,REDACTED INVOICE NUMBER,141183,16.5,Revenue,27087,Inclusive Play (Uk) Ltd,EH20 9LZ,0
Parish Precepts,Parish Precepts,Parish Precepts,Precept Payments,PRECEPT APR 21,6/4/2021,REDACTED INVOICE NUMBER,141217,86919.5,Revenue,1503,Ingatestone And Fryerning Parish Council,CM4 0BE,0
Hra Expenditure,Special Services,Grounds Maintenance,R&M Grounds - Treework,TREE WORK,13/04/2021,REDACTED INVOICE NUMBER,140701,750,Revenue,1507,Ingatestone Tree Surgery,CM15 0TZ,0
Director Of Environment,Open Spaces,Recreation Areas,R&M Grounds - Treework,wood golf course,6/4/2021,REDACTED INVOICE NUMBER,140702,1400,Revenue,1507,Ingatestone Tree Surgery,CM15 0TZ,0
Capex Director Of C Resources,Asset Management,Brentwood Leisure Centre,Enhancements,ENHANCEMENTS,13/04/2021,REDACTED INVOICE NUMBER,140503,2767,Capital,28235,International Water Solutions Ltd,RM3 0HU,0
Director Of Environment,Vehicle Fleet Management,Vehicle Fleet Management,Vehicle Replacement Parts,Guard,20/04/2021,REDACTED INVOICE NUMBER,140711,1439.12,Revenue,1533,Interwaste Municipal Limited,WV10 7PA,0
Director Of Planning & Economy,Planning Development Managemt,Planning Enforcement,Other Fees & Service,PROFESSIONAL SERVICES ,27/04/2021,REDACTED INVOICE NUMBER,141654,585.78,Revenue,28484,Invicta Investigation Ltd,CT12 6SJ,0
Balance Sheet,Balance Sheet,Balance Sheet,Highways Stores,RECYCLING BAGS,30/04/2021,REDACTED INVOICE NUMBER,141250,5581.4,Revenue,27926,J & Hm Dickson Ltd,G73 1RW,0
Director Of Environment,Cemeteries,Cemeteries,Vehicle Hire,SKIP LOADER,23/04/2021,REDACTED INVOICE NUMBER,141198,410,Revenue,28509,J Matthews Plant Hire Ltd,CM4 0LJ,0
Director Of Environment,Cemeteries,Cemeteries,Vehicle Hire,SKIP LOADER ,6/4/2021,REDACTED INVOICE NUMBER,140746,410,Revenue,28509,J Matthews Plant Hire Ltd,CM4 0LJ,0
Director Corporate Resources,Design And Print Services,Design & Print Services,Other Fees & Service,PART REDESIGN OF CORPORATE BOOKLET,31/03/2021,REDACTED INVOICE NUMBER,140913,360,Revenue,173968P,J S Creates,CM1 4EP,0
Director Of Environment,Vehicle Fleet Management,Vehicle Fleet Management,Vehicle Replacement Parts,VEHICLE PARTS,20/04/2021,REDACTED INVOICE NUMBER,141227,249.8,Revenue,25305,Jennings Engineering Supplies Ltd,CM3 6LG,0
Director Of Environment,Vehicle Fleet Management,Vehicle Fleet Management,Vehicle Replacement Parts,VEHICLE PARTS,23/04/2021,REDACTED INVOICE NUMBER,141528,311.45,Revenue,25305,Jennings Engineering Supplies Ltd,CM3 6LG,0
Director Of Environment,Golf Course,Golf Course,Vehicle - Lease Rentals,DIRECT DEBIT,6/4/2021,REDACTED INVOICE NUMBER,141157,1659.53,Revenue,23424,John Deere Financial,GL4 3GG,0
Director Of Environment,Open Spaces,Bowling Greens,Vehicle - Lease Rentals,DIRECT DEBIT,6/4/2021,REDACTED INVOICE NUMBER,141157,711.24,Revenue,23424,John Deere Financial,GL4 3GG,0
Director Of Planning & Economy,Planning Development Managemt,Planning Development Managemt,Project Management Support,CONSERVATION ADVICE - FEB '21,16/04/2021,REDACTED INVOICE NUMBER,141247,6950.15,Revenue,28185,Joseph Hardy & Company Ltd,CM4 9BU,0
Capex Director Of Housing,Housing - Affordable Housing,Garage Site Development,Enhancements,SHDP PROJECT MANAGEMENT,16/04/2021,REDACTED INVOICE NUMBER,141249,3939.35,Capital,28185,Joseph Hardy & Company Ltd,CM4 9BU,0
Director Of Environment,Open Spaces,Buildings & Stakeholders,R&M Fix & Fit - General,FENCE REPAIRS - RIVER ROAD,23/04/2021,REDACTED INVOICE NUMBER,140909,1060,Revenue,1684,Just Fencing + Landscaping Services,SS12 OJX,0
Capex Director Of Environment,Environmental Initiatives,Open Space - Site Security,Enhancements,HEIGHT BARRIER - BRENTWOOD CENTRE,23/04/2021,REDACTED INVOICE NUMBER,140905,7120,Capital,1684,Just Fencing + Landscaping Services,SS12 OJX,0
Capex Director Of C Resources,Asset Management,Brentwood Leisure Centre,Enhancements,INSTALL CLAMPS - BRENTWOD CENTRE,23/04/2021,REDACTED INVOICE NUMBER,140907,1725,Capital,1684,Just Fencing + Landscaping Services,SS12 OJX,0
Capex Director Of Environment,S106 Former Elliots Nightclub,S106 Former Elliots Nightclub,Enhancements,INSTALL FENCING - KGPF,23/04/2021,REDACTED INVOICE NUMBER,140911,1550,Capital,1684,Just Fencing + Landscaping Services,SS12 OJX,0
Capex Director Of Environment,Corporate Services,King George'S Redevelopment,Enhancements,REMOVE BINS / BENCHES - KGPF,23/04/2021,REDACTED INVOICE NUMBER,140908,1370,Capital,1684,Just Fencing + Landscaping Services,SS12 OJX,0
Director Corporate Resources,Asset Management,Asset Management,R&M Bldgs - General,REMOVE HEIHT BARRIER - B/WOD CENTRE,23/04/2021,REDACTED INVOICE NUMBER,140910,1360,Revenue,1684,Just Fencing + Landscaping Services,SS12 OJX,0
Director Of Environment,Open Spaces,Buildings & Stakeholders,R&M Fix & Fit - General,REMOVE ROAD BARRIER - LARKINS,27/04/2021,REDACTED INVOICE NUMBER,140984,465,Revenue,1684,Just Fencing + Landscaping Services,SS12 OJX,0
Capex Director Of C Resources,Asset Management,Brentwood Leisure Centre,Enhancements,STEEL CONTAINERS - BRENTWOOD CENTRE,23/04/2021,REDACTED INVOICE NUMBER,140906,6230,Capital,1684,Just Fencing + Landscaping Services,SS12 OJX,0
Director Of Environment,"Communities, Health & Leisure",Sports & Social Venues,Contracted Services,CANDIDATES REGISTRATION,30/04/2021,REDACTED INVOICE NUMBER,141253,19.98,Revenue,25904,Keep Legal Consultancy Ltd,RM15 4YD,0
Director Of Environment,"Communities, Health & Leisure",Sports & Social Venues,Contracted Services,TRAINING,20/04/2021,REDACTED INVOICE NUMBER,141482,762.45,Revenue,25904,Keep Legal Consultancy Ltd,RM15 4YD,0
Parish Precepts,Parish Precepts,Parish Precepts,Precept Payments,PRECEPT APR 21,6/4/2021,REDACTED INVOICE NUMBER,141218,45011.5,Revenue,1722,Kelvedon Hatch Parish Council,CM15 0BG,0
Director Corporate Resources,Asset Management,Asset Management,Other Professional Fees,PROFESSIONAL SERVICES,30/04/2021,REDACTED INVOICE NUMBER,140992,2500,Revenue,1725,Kemsley Property Consultants,CM2 OQT,0
Director Of Environment,"Communities, Health & Leisure",Sports & Social Venues,Purchases - General Equipment,POOL / SPA SAMPLING - MAR '21,27/04/2021,REDACTED INVOICE NUMBER,141646,78.97,Revenue,28394,Kingfisher Environmental Service Ltd T/A Wcs,SW1X 7HN,0
Hra Expenditure,Supervision And Management,Policy And Management,Legal Fees,LEGAL FEES,23/04/2021,REDACTED INVOICE NUMBER,141640,6180,Revenue,189576P,Klein Consult Ltd,WA4 6PS,0
Director Of Planning & Economy,Building Control,Building Control - Chargeable,Other Professional Fees,LABC SUBSCRIPTION,13/04/2021,REDACTED INVOICE NUMBER,140945,285,Revenue,1768,Labc East Anglia,CO10 7JP,0
Director Housing & Enforcement,Homelessness,B&B Accommodation,B & B Charges (Homelessness),HOMELESSNESS PREVENTION,23/04/2021,REDACTED INVOICE NUMBER,140983,350,Revenue,24333,Lampwick Care,SS1 2AS,0
Director Housing & Enforcement,Homelessness,B&B Accommodation,B & B Charges (Homelessness),HOMELESSNESS PREVENTION,23/04/2021,REDACTED INVOICE NUMBER,141495,350,Revenue,24333,Lampwick Care,SS1 2AS,0
Director Housing & Enforcement,Homelessness,B&B Accommodation,B & B Charges (Homelessness),HOMELESSNESS PREVENTION,23/04/2021,REDACTED INVOICE NUMBER,141950,350,Revenue,24333,Lampwick Care,SS1 2AS,0
Director Housing & Enforcement,Homelessness,B&B Accommodation,B & B Charges (Homelessness),HOMELESSNESS PREVENTION,27/04/2021,REDACTED INVOICE NUMBER,142108,560,Revenue,24333,Lampwick Care,SS1 2AS,0
Director Of Environment,"Communities, Health & Leisure",Sports & Social Venues,Purchases - General Equipment,SPORTS EQUIPMENT,16/04/2021,REDACTED INVOICE NUMBER,141954,3960,Revenue,190052P,Les Mills Fitness Uk Ltd,E1 8DE,0
Director Of Environment,Golf Course,Golf Course,Bank Charges,CHIP & PIN - MAR '21,16/04/2021,REDACTED INVOICE NUMBER,141704,45.13,Revenue,27902,Lloyds Bank (Pg),.,0
Director Corporate Resources,Human Resources,Human Resources,Training Expenses,URBAN & ENVIRONMENTAL PLANNING,20/04/2021,REDACTED INVOICE NUMBER,141261,6935,Revenue,27376,London South Bank University,SE1 0AA,0
Director Of Planning & Economy,Planning Policy Total,Planning Policy,Other Fees & Service,FEB - MAR'20 - REFRESHMENTS,30/04/2021,REDACTED INVOICE NUMBER,142373,131.4,Revenue,167029P,Lunchbucks,CM15 8AT,0
Director Of Environment,Open Spaces,Countryside Recreation Mtnce,R&M Grounds - Grass Cutting,SUPPLY AND DELIVER SOFTWOOD,23/04/2021,REDACTED INVOICE NUMBER,140954,2838.4,Revenue,27240,M H Dunn & Sons Forestry Contracts,CM8 3EL,0
Director Of Environment,Dog Control,Dog Control,Kennel & Vet Fees,KENNELL COSTS,16/04/2021,REDACTED INVOICE NUMBER,141506,784,Revenue,1913,M.A. Robinson,CM15 0LH,0
Director Of Environment,Dog Control,Dog Control,Kennel & Vet Fees,KENNELL COSTS,16/04/2021,REDACTED INVOICE NUMBER,141507,560,Revenue,1913,M.A. Robinson,CM15 0LH,0
Director Of Environment,Parking,Parking Services,Enforcement,FEES,23/04/2021,REDACTED INVOICE NUMBER,131290,0,Revenue,1956,Marston Group Limited,CM16 9EB,0
Director Corporate Resources,Asset Management,Asset Management,Other Professional Fees,VALUATION,16/04/2021,REDACTED INVOICE NUMBER,141921,600,Revenue,1969,Mass & Co Ltd,CM14 4RG,0
Director Corporate Resources,Asset Management,Asset Management,Other Professional Fees,RENT REVIEW,23/04/2021,REDACTED INVOICE NUMBER,141561,675,Revenue,1969,Mass & Co Ltd,CM14 4RG,0
Director Of Planning & Economy,Economic Development Total,Economic Development,Other Fees & Service,PLATFORM ACCESS CONTRACT,31/03/2021,REDACTED INVOICE NUMBER,138746,8950,Revenue,28462,Maybe Solutions Ltd,TF9 3RW,0
Hra Expenditure,Supervision And Management,Policy And Management,Under Occupation Allowance,UNDER OCCUPATION ALLOWANCE,30/04/2021,REDACTED INVOICE NUMBER,141974,2000,Revenue,190059P,REDACTED PERSONAL DATA,REDACTED,0
Director Corporate Resources,Office Accommodation,Office Facilities Management,R&M Bldgs - General,DOOR SIGN,27/04/2021,REDACTED INVOICE NUMBER,142058,29.05,Revenue,2313,Morgan Signs Limited,CM14 4LF,0
Director Corporate Resources,Office Accommodation,Office Facilities Management,R&M Bldgs - General,GRAPHICS - TOWN HALL RECEPTION,13/04/2021,REDACTED INVOICE NUMBER,141248,54,Revenue,2313,Morgan Signs Limited,CM14 4LF,0
Director Corporate Resources,Asset Management,Asset Management,R&M Bldgs - General,SWIMMING POOL SCREENS,20/04/2021,REDACTED INVOICE NUMBER,141562,120,Revenue,2313,Morgan Signs Limited,CM14 4LF,0
Parish Precepts,Parish Precepts,Parish Precepts,Precept Payments,PRECEPT APR 21,6/4/2021,REDACTED INVOICE NUMBER,141219,20000,Revenue,2323,Mountnessing Parish Council,CM15 0TA,0
Director Of Environment,Vehicle Fleet Management,Vehicle Fleet Management,Vehicle R&M - External,VEHICLE REPAIRS,20/04/2021,REDACTED INVOICE NUMBER,141194,338,Revenue,1382,Mr K Neame,CM15 0PJ,0
Director Of Environment,Vehicle Fleet Management,Vehicle Fleet Management,Vehicle R&M - External,VEHICLE REPAIRS,9/4/2021,REDACTED INVOICE NUMBER,140904,242.97,Revenue,1382,Mr K Neame,CM15 0PJ,0
Director Digital & Customer En,Digital Servs & Transformation,Ict Services,Telephones - General,PHONE CHARGES,30/04/2021,REDACTED INVOICE NUMBER,141243,40,Revenue,4022,Multidata,SN6 8EY,0
Director Digital & Customer En,Digital Servs & Transformation,Ict Services,Telephones - General,PHONE CHARGES,30/04/2021,REDACTED INVOICE NUMBER,141244,877.16,Revenue,4022,Multidata,SN6 8EY,0
Parish Precepts,Parish Precepts,Parish Precepts,Precept Payments,PRECEPT APR 21,6/4/2021,REDACTED INVOICE NUMBER,141220,11000,Revenue,4055,Navestock Parish Council,CM3 5FB,0
Director Of Environment,Open Spaces,Countryside Recreation Mtnce,R&M Grounds - Treework,TREE PLANTING,27/04/2021,REDACTED INVOICE NUMBER,141918,450,Revenue,4063,Neil Carter Arblog Ltd,CM14 5NJ,0
Director Of Environment,Open Spaces,Amenity Greens,R&M Grounds - Treework,TREE WORKS,27/04/2021,REDACTED INVOICE NUMBER,141919,125,Revenue,4063,Neil Carter Arblog Ltd,CM14 5NJ,0
Director Of Environment,Vehicle Fleet Management,Vehicle Fleet Management,Vehicle - Tyres,VEHICLE REPAIRS,20/04/2021,REDACTED INVOICE NUMBER,141496,55,Revenue,4083,Nicks Tyre Services Ltd,CM15 9SB,0
Director Of Environment,Vehicle Fleet Management,Vehicle Fleet Management,Vehicle - Tyres,VEHICLE REPAIRS,20/04/2021,REDACTED INVOICE NUMBER,141254,55,Revenue,4083,Nicks Tyre Services Ltd,CM15 9SB,0
Director Of Environment,Vehicle Fleet Management,Vehicle Fleet Management,Vehicle - Tyres,VEHICLE REPAIRS,20/04/2021,REDACTED INVOICE NUMBER,141255,164.95,Revenue,4083,Nicks Tyre Services Ltd,CM15 9SB,0
Director Of Environment,Vehicle Fleet Management,Vehicle Fleet Management,Vehicle - Tyres,VEHICLE REPAIRS,20/04/2021,REDACTED INVOICE NUMBER,141161,55,Revenue,4083,Nicks Tyre Services Ltd,CM15 9SB,0
Director Housing & Enforcement,Housing Advice & Enabling,Housing Advice,Medical Reports,MEDICAL ADVICE,30/04/2021,REDACTED INVOICE NUMBER,141321,240,Revenue,4103,Nowmedical,W4 5LH,0
Hra Expenditure,Repairs And Maintenance,Responsive Repairs Management,R&M Fix & Fit - Electrical,HEATING AND ELECTRICAL REPAIRS,13/04/2021,REDACTED INVOICE NUMBER,114835,125909.8,Revenue,4113,Oakray Ltd,EN2 9DY,0
Hra Expenditure,Repairs And Maintenance,Responsive Repairs Management,R&M Fix & Fit - Gas Repairs,HEATING AND ELECTRICAL REPAIRS,13/04/2021,REDACTED INVOICE NUMBER,114835,73202.7,Revenue,4113,Oakray Ltd,EN2 9DY,0
Hra Expenditure,Repairs And Maintenance,Responsive Void Repairs,R&M Bldgs - General,HEATING AND ELECTRICAL REPAIRS,13/04/2021,REDACTED INVOICE NUMBER,114835,119151.26,Revenue,4113,Oakray Ltd,EN2 9DY,0
Hra Expenditure,Supervision And Management,Policy And Management,Legal Fees,HEATING AND ELECTRICAL REPAIRS,13/04/2021,REDACTED INVOICE NUMBER,141625,900,Revenue,4113,Oakray Ltd,EN2 9DY,0
Interest Payable,Interest Payable - Hra,Interest Payable - Hra,Interest - Other Payables,HEATING AND ELECTRICAL REPAIRS,13/04/2021,REDACTED INVOICE NUMBER,141625,30583.85,Revenue,4113,Oakray Ltd,EN2 9DY,0
Director Of Environment,Waste Management,Waste Collection Support,Agency Staff,PROJECT MANAGEMENT SUPPORT,23/04/2021,REDACTED INVOICE NUMBER,141165,660.45,Revenue,21933,One To One Personnel Ltd,SS1 2NE,0
Director Of Environment,Waste Management,Waste Collection Support,Agency Staff,PROJECT MANAGEMENT SUPPORT,23/04/2021,REDACTED INVOICE NUMBER,141382,785.4,Revenue,21933,One To One Personnel Ltd,SS1 2NE,0
Director Of Environment,Waste Management,Waste Collection Support,Agency Staff,PROJECT MANAGEMENT SUPPORT,31/03/2021,REDACTED INVOICE NUMBER,140516,660.45,Revenue,21933,One To One Personnel Ltd,SS1 2NE,0
Director Of Environment,Waste Management,Waste Collection Support,Agency Staff,PROJECT MANAGEMENT SUPPORT,9/4/2021,REDACTED INVOICE NUMBER,140745,392.7,Revenue,21933,One To One Personnel Ltd,SS1 2NE,0
Hra Expenditure,Special Services,Communal Lighting,Electricity,ELECTRICITY SUPPLY,27/04/2021,REDACTED INVOICE NUMBER,141730,12.68,Revenue,4145,Opus Energy (Corporate) Ltd,OX2 7JH,0
Hra Expenditure,Special Services,Communal Lighting,Electricity,ELECTRICITY SUPPLY,27/04/2021,REDACTED INVOICE NUMBER,141784,12.26,Revenue,4145,Opus Energy (Corporate) Ltd,OX2 7JH,0
Director Corporate Resources,Office Accommodation,Office Facilities Management,Electricity,ELECTRICITY SUPPLY,23/04/2021,REDACTED INVOICE NUMBER,141831,51.46,Revenue,4145,Opus Energy (Corporate) Ltd,OX2 7JH,0
Hra Expenditure,Special Services,Communal Lighting,Electricity,ELECTRICITY SUPPLY,23/04/2021,REDACTED INVOICE NUMBER,141731,42.72,Revenue,4145,Opus Energy (Corporate) Ltd,OX2 7JH,0
Hra Expenditure,Special Services,Communal Lighting,Electricity,ELECTRICITY SUPPLY,27/04/2021,REDACTED INVOICE NUMBER,141713,15.72,Revenue,4145,Opus Energy (Corporate) Ltd,OX2 7JH,0
Hra Expenditure,Special Services,Communal Lighting,Electricity,ELECTRICITY SUPPLY,23/04/2021,REDACTED INVOICE NUMBER,141736,28.16,Revenue,4145,Opus Energy (Corporate) Ltd,OX2 7JH,0
Hra Expenditure,Special Services,Communal Lighting,Electricity,ELECTRICITY SUPPLY,23/04/2021,REDACTED INVOICE NUMBER,141761,16.88,Revenue,4145,Opus Energy (Corporate) Ltd,OX2 7JH,0
Hra Expenditure,Special Services,Communal Lighting,Electricity,ELECTRICITY SUPPLY,23/04/2021,REDACTED INVOICE NUMBER,141726,59.06,Revenue,4145,Opus Energy (Corporate) Ltd,OX2 7JH,0
Hra Expenditure,Special Services,Communal Lighting,Electricity,ELECTRICITY SUPPLY,23/04/2021,REDACTED INVOICE NUMBER,141762,85.65,Revenue,4145,Opus Energy (Corporate) Ltd,OX2 7JH,0
Hra Expenditure,Special Services,Communal Lighting,Electricity,ELECTRICITY SUPPLY,23/04/2021,REDACTED INVOICE NUMBER,141702,23.44,Revenue,4145,Opus Energy (Corporate) Ltd,OX2 7JH,0
Hra Expenditure,Special Services,Communal Lighting,Electricity,ELECTRICITY SUPPLY,23/04/2021,REDACTED INVOICE NUMBER,141734,15.1,Revenue,4145,Opus Energy (Corporate) Ltd,OX2 7JH,0
Hra Expenditure,Special Services,Communal Lighting,Electricity,ELECTRICITY SUPPLY,23/04/2021,REDACTED INVOICE NUMBER,141812,36.21,Revenue,4145,Opus Energy (Corporate) Ltd,OX2 7JH,0
Hra Expenditure,Special Services,Communal Lighting,Electricity,ELECTRICITY SUPPLY,23/04/2021,REDACTED INVOICE NUMBER,141746,15.45,Revenue,4145,Opus Energy (Corporate) Ltd,OX2 7JH,0
Hra Expenditure,Special Services,Communal Lighting,Electricity,ELECTRICITY SUPPLY,23/04/2021,REDACTED INVOICE NUMBER,141722,28.15,Revenue,4145,Opus Energy (Corporate) Ltd,OX2 7JH,0
Hra Expenditure,Special Services,Communal Lighting,Electricity,ELECTRICITY SUPPLY,23/04/2021,REDACTED INVOICE NUMBER,141720,24.64,Revenue,4145,Opus Energy (Corporate) Ltd,OX2 7JH,0
Hra Expenditure,Special Services,Communal Lighting,Electricity,ELECTRICITY SUPPLY,23/04/2021,REDACTED INVOICE NUMBER,141707,7.88,Revenue,4145,Opus Energy (Corporate) Ltd,OX2 7JH,0
Hra Expenditure,Special Services,Communal Lighting,Electricity,ELECTRICITY SUPPLY,23/04/2021,REDACTED INVOICE NUMBER,141771,12,Revenue,4145,Opus Energy (Corporate) Ltd,OX2 7JH,0
Hra Expenditure,Special Services,Communal Lighting,Electricity,ELECTRICITY SUPPLY,23/04/2021,REDACTED INVOICE NUMBER,141833,5.72,Revenue,4145,Opus Energy (Corporate) Ltd,OX2 7JH,0
Hra Expenditure,Special Services,Communal Lighting,Electricity,ELECTRICITY SUPPLY,23/04/2021,REDACTED INVOICE NUMBER,141772,5.74,Revenue,4145,Opus Energy (Corporate) Ltd,OX2 7JH,0
Director Housing & Enforcement,Homelessness,Temp Accommodation (Own Stock),Electricity,ELECTRICITY SUPPLY,23/04/2021,REDACTED INVOICE NUMBER,141884,55.82,Revenue,4145,Opus Energy (Corporate) Ltd,OX2 7JH,0
Hra Expenditure,Special Services,Communal Lighting,Electricity,ELECTRICITY SUPPLY,23/04/2021,REDACTED INVOICE NUMBER,141792,614.31,Revenue,4145,Opus Energy (Corporate) Ltd,OX2 7JH,0
Hra Expenditure,Special Services,Communal Lighting,Electricity,ELECTRICITY SUPPLY,23/04/2021,REDACTED INVOICE NUMBER,141763,19.23,Revenue,4145,Opus Energy (Corporate) Ltd,OX2 7JH,0
Hra Expenditure,Special Services,Communal Lighting,Electricity,ELECTRICITY SUPPLY,27/04/2021,REDACTED INVOICE NUMBER,141714,16.83,Revenue,4145,Opus Energy (Corporate) Ltd,OX2 7JH,0
Hra Expenditure,Special Services,Communal Lighting,Electricity,ELECTRICITY SUPPLY,23/04/2021,REDACTED INVOICE NUMBER,141739,20.35,Revenue,4145,Opus Energy (Corporate) Ltd,OX2 7JH,0
Hra Expenditure,Special Services,Communal Lighting,Electricity,ELECTRICITY SUPPLY,23/04/2021,REDACTED INVOICE NUMBER,141727,64.96,Revenue,4145,Opus Energy (Corporate) Ltd,OX2 7JH,0
Hra Expenditure,Special Services,Communal Lighting,Electricity,ELECTRICITY SUPPLY,23/04/2021,REDACTED INVOICE NUMBER,141764,19.58,Revenue,4145,Opus Energy (Corporate) Ltd,OX2 7JH,0
Hra Expenditure,Special Services,Communal Lighting,Electricity,ELECTRICITY SUPPLY,23/04/2021,REDACTED INVOICE NUMBER,141737,31.05,Revenue,4145,Opus Energy (Corporate) Ltd,OX2 7JH,0
Hra Expenditure,Special Services,Communal Lighting,Electricity,ELECTRICITY SUPPLY,23/04/2021,REDACTED INVOICE NUMBER,141740,29.44,Revenue,4145,Opus Energy (Corporate) Ltd,OX2 7JH,0
Hra Expenditure,Special Services,Communal Lighting,Electricity,ELECTRICITY SUPPLY,23/04/2021,REDACTED INVOICE NUMBER,141724,20.9,Revenue,4145,Opus Energy (Corporate) Ltd,OX2 7JH,0
Hra Expenditure,Special Services,Communal Lighting,Electricity,ELECTRICITY SUPPLY,23/04/2021,REDACTED INVOICE NUMBER,141738,14.41,Revenue,4145,Opus Energy (Corporate) Ltd,OX2 7JH,0
Hra Expenditure,Special Services,Communal Lighting,Electricity,ELECTRICITY SUPPLY,23/04/2021,REDACTED INVOICE NUMBER,141725,34.39,Revenue,4145,Opus Energy (Corporate) Ltd,OX2 7JH,0
Hra Expenditure,Special Services,Communal Lighting,Electricity,ELECTRICITY SUPPLY,23/04/2021,REDACTED INVOICE NUMBER,141701,51.77,Revenue,4145,Opus Energy (Corporate) Ltd,OX2 7JH,0
Hra Expenditure,Special Services,Communal Lighting,Electricity,ELECTRICITY SUPPLY,23/04/2021,REDACTED INVOICE NUMBER,141757,47.61,Revenue,4145,Opus Energy (Corporate) Ltd,OX2 7JH,0
Hra Expenditure,Special Services,Communal Lighting,Electricity,ELECTRICITY SUPPLY,23/04/2021,REDACTED INVOICE NUMBER,141703,26.08,Revenue,4145,Opus Energy (Corporate) Ltd,OX2 7JH,0
Director Housing & Enforcement,Homelessness,Temp Accommodation (Own Stock),Electricity,ELECTRICITY SUPPLY,23/04/2021,REDACTED INVOICE NUMBER,141830,94.76,Revenue,4145,Opus Energy (Corporate) Ltd,OX2 7JH,0
Hra Expenditure,Special Services,Communal Lighting,Electricity,ELECTRICITY SUPPLY,23/04/2021,REDACTED INVOICE NUMBER,141717,18.04,Revenue,4145,Opus Energy (Corporate) Ltd,OX2 7JH,0
Hra Expenditure,Special Services,Communal Lighting,Electricity,ELECTRICITY SUPPLY,23/04/2021,REDACTED INVOICE NUMBER,141710,40.08,Revenue,4145,Opus Energy (Corporate) Ltd,OX2 7JH,0
Hra Expenditure,Special Services,Communal Lighting,Electricity,ELECTRICITY SUPPLY,23/04/2021,REDACTED INVOICE NUMBER,141711,40.05,Revenue,4145,Opus Energy (Corporate) Ltd,OX2 7JH,0
Hra Expenditure,Special Services,Communal Lighting,Electricity,ELECTRICITY SUPPLY,27/04/2021,REDACTED INVOICE NUMBER,141744,9.31,Revenue,4145,Opus Energy (Corporate) Ltd,OX2 7JH,0
Director Corporate Resources,Asset Management,Asset Management,Electricity,ELECTRICITY SUPPLY,23/04/2021,REDACTED INVOICE NUMBER,141799,54.01,Revenue,4145,Opus Energy (Corporate) Ltd,OX2 7JH,0
Hra Expenditure,Special Services,Communal Lighting,Electricity,ELECTRICITY SUPPLY,23/04/2021,REDACTED INVOICE NUMBER,141715,24.75,Revenue,4145,Opus Energy (Corporate) Ltd,OX2 7JH,0
Hra Expenditure,Special Services,Communal Lighting,Electricity,ELECTRICITY SUPPLY,23/04/2021,REDACTED INVOICE NUMBER,141747,20.6,Revenue,4145,Opus Energy (Corporate) Ltd,OX2 7JH,0
Hra Expenditure,Special Services,Communal Lighting,Electricity,ELECTRICITY SUPPLY,23/04/2021,REDACTED INVOICE NUMBER,141716,51.76,Revenue,4145,Opus Energy (Corporate) Ltd,OX2 7JH,0
Hra Expenditure,Special Services,Communal Lighting,Electricity,ELECTRICITY SUPPLY,23/04/2021,REDACTED INVOICE NUMBER,141732,33.06,Revenue,4145,Opus Energy (Corporate) Ltd,OX2 7JH,0
Hra Expenditure,Special Services,Communal Lighting,Electricity,ELECTRICITY SUPPLY,23/04/2021,REDACTED INVOICE NUMBER,141758,35.97,Revenue,4145,Opus Energy (Corporate) Ltd,OX2 7JH,0
Hra Expenditure,Special Services,Communal Lighting,Electricity,ELECTRICITY SUPPLY,23/04/2021,REDACTED INVOICE NUMBER,141721,18.57,Revenue,4145,Opus Energy (Corporate) Ltd,OX2 7JH,0
Hra Expenditure,Special Services,Communal Lighting,Electricity,ELECTRICITY SUPPLY,23/04/2021,REDACTED INVOICE NUMBER,141706,17.51,Revenue,4145,Opus Energy (Corporate) Ltd,OX2 7JH,0
Hra Expenditure,Special Services,Communal Lighting,Electricity,ELECTRICITY SUPPLY,23/04/2021,REDACTED INVOICE NUMBER,141765,32.39,Revenue,4145,Opus Energy (Corporate) Ltd,OX2 7JH,0
Hra Expenditure,Special Services,Communal Lighting,Electricity,ELECTRICITY SUPPLY,23/04/2021,REDACTED INVOICE NUMBER,141735,13.08,Revenue,4145,Opus Energy (Corporate) Ltd,OX2 7JH,0
Hra Expenditure,Special Services,Communal Lighting,Electricity,ELECTRICITY SUPPLY,23/04/2021,REDACTED INVOICE NUMBER,141759,24.24,Revenue,4145,Opus Energy (Corporate) Ltd,OX2 7JH,0
Hra Expenditure,Special Services,Communal Lighting,Electricity,ELECTRICITY SUPPLY,23/04/2021,REDACTED INVOICE NUMBER,141718,42.01,Revenue,4145,Opus Energy (Corporate) Ltd,OX2 7JH,0
Hra Expenditure,Special Services,Communal Lighting,Electricity,ELECTRICITY SUPPLY,23/04/2021,REDACTED INVOICE NUMBER,141766,18.86,Revenue,4145,Opus Energy (Corporate) Ltd,OX2 7JH,0
Hra Expenditure,Special Services,Communal Lighting,Electricity,ELECTRICITY SUPPLY,27/04/2021,REDACTED INVOICE NUMBER,141788,12.68,Revenue,4145,Opus Energy (Corporate) Ltd,OX2 7JH,0
Hra Expenditure,Special Services,Communal Lighting,Electricity,ELECTRICITY SUPPLY,23/04/2021,REDACTED INVOICE NUMBER,141773,6.02,Revenue,4145,Opus Energy (Corporate) Ltd,OX2 7JH,0
Hra Expenditure,Special Services,Communal Lighting,Electricity,ELECTRICITY SUPPLY,23/04/2021,REDACTED INVOICE NUMBER,141767,16.23,Revenue,4145,Opus Energy (Corporate) Ltd,OX2 7JH,0
Hra Expenditure,Special Services,Sheltered Welfare Services,Electricity,ELECTRICITY SUPPLY,27/04/2021,REDACTED INVOICE NUMBER,141826,10.09,Revenue,4145,Opus Energy (Corporate) Ltd,OX2 7JH,0
Hra Expenditure,Special Services,Sheltered Welfare Services,Electricity,ELECTRICITY SUPPLY,27/04/2021,REDACTED INVOICE NUMBER,141825,8.7,Revenue,4145,Opus Energy (Corporate) Ltd,OX2 7JH,0
Director Of Environment,Open Spaces,Buildings & Stakeholders,Electricity,ELECTRICITY SUPPLY,23/04/2021,REDACTED INVOICE NUMBER,141770,25.99,Revenue,4145,Opus Energy (Corporate) Ltd,OX2 7JH,0
Hra Expenditure,Special Services,Communal Lighting,Electricity,ELECTRICITY SUPPLY,27/04/2021,REDACTED INVOICE NUMBER,141775,368.02,Revenue,4145,Opus Energy (Corporate) Ltd,OX2 7JH,0
Hra Expenditure,Special Services,Communal Lighting,Electricity,ELECTRICITY SUPPLY,23/04/2021,REDACTED INVOICE NUMBER,141712,53.43,Revenue,4145,Opus Energy (Corporate) Ltd,OX2 7JH,0
Director Housing & Enforcement,Cctv,Community Safety - Cctv,Electricity,ELECTRICITY SUPPLY,23/04/2021,REDACTED INVOICE NUMBER,141828,73.83,Revenue,4145,Opus Energy (Corporate) Ltd,OX2 7JH,0
Director Of Environment,Cemeteries,Cemeteries,Electricity,ELECTRICITY SUPPLY,23/04/2021,REDACTED INVOICE NUMBER,141776,421.36,Revenue,4145,Opus Energy (Corporate) Ltd,OX2 7JH,0
Director Of Environment,Cemeteries,Cemeteries,Electricity,ELECTRICITY SUPPLY,23/04/2021,REDACTED INVOICE NUMBER,141778,39.05,Revenue,4145,Opus Energy (Corporate) Ltd,OX2 7JH,0
Director Of Environment,Cemeteries,Cemeteries,Electricity,ELECTRICITY SUPPLY,23/04/2021,REDACTED INVOICE NUMBER,141777,7.89,Revenue,4145,Opus Energy (Corporate) Ltd,OX2 7JH,0
Hra Expenditure,Special Services,Communal Lighting,Electricity,ELECTRICITY SUPPLY,23/04/2021,REDACTED INVOICE NUMBER,141779,20.02,Revenue,4145,Opus Energy (Corporate) Ltd,OX2 7JH,0
Hra Expenditure,Special Services,Communal Lighting,Electricity,ELECTRICITY SUPPLY,27/04/2021,REDACTED INVOICE NUMBER,141780,636.48,Revenue,4145,Opus Energy (Corporate) Ltd,OX2 7JH,0
Hra Expenditure,Special Services,Communal Lighting,Electricity,ELECTRICITY SUPPLY,27/04/2021,REDACTED INVOICE NUMBER,141783,8.94,Revenue,4145,Opus Energy (Corporate) Ltd,OX2 7JH,0
Hra Expenditure,Special Services,Communal Lighting,Electricity,ELECTRICITY SUPPLY,23/04/2021,REDACTED INVOICE NUMBER,141719,35.32,Revenue,4145,Opus Energy (Corporate) Ltd,OX2 7JH,0
Director Of Environment,Depot Management & Admin,Depot Management & Admin,Electricity,ELECTRICITY SUPPLY,23/04/2021,REDACTED INVOICE NUMBER,141820,1128.49,Revenue,4145,Opus Energy (Corporate) Ltd,OX2 7JH,0
Hra Expenditure,Special Services,Communal Lighting,Electricity,ELECTRICITY SUPPLY,23/04/2021,REDACTED INVOICE NUMBER,141785,30.33,Revenue,4145,Opus Energy (Corporate) Ltd,OX2 7JH,0
Hra Expenditure,Special Services,Communal Lighting,Electricity,ELECTRICITY SUPPLY,23/04/2021,REDACTED INVOICE NUMBER,141786,661.47,Revenue,4145,Opus Energy (Corporate) Ltd,OX2 7JH,0
Hra Expenditure,Special Services,Communal Lighting,Electricity,ELECTRICITY SUPPLY,23/04/2021,REDACTED INVOICE NUMBER,141834,144.86,Revenue,4145,Opus Energy (Corporate) Ltd,OX2 7JH,0
Hra Expenditure,Special Services,Communal Lighting,Electricity,ELECTRICITY SUPPLY,23/04/2021,REDACTED INVOICE NUMBER,141787,9.78,Revenue,4145,Opus Energy (Corporate) Ltd,OX2 7JH,0
Hra Expenditure,Special Services,Communal Lighting,Electricity,ELECTRICITY SUPPLY,23/04/2021,REDACTED INVOICE NUMBER,141723,141.23,Revenue,4145,Opus Energy (Corporate) Ltd,OX2 7JH,0
Hra Expenditure,"Rents, Rates & Other Charges","Rents, Rates & Other Charges",Nndr / Business Rates,ELECTRICITY SUPPLY,23/04/2021,REDACTED INVOICE NUMBER,141769,7.12,Revenue,4145,Opus Energy (Corporate) Ltd,OX2 7JH,0
Hra Expenditure,Special Services,Communal Lighting,Electricity,ELECTRICITY SUPPLY,23/04/2021,REDACTED INVOICE NUMBER,141791,102.99,Revenue,4145,Opus Energy (Corporate) Ltd,OX2 7JH,0
Hra Expenditure,Special Services,Communal Lighting,Electricity,ELECTRICITY SUPPLY,23/04/2021,REDACTED INVOICE NUMBER,141842,5.64,Revenue,4145,Opus Energy (Corporate) Ltd,OX2 7JH,0
Hra Expenditure,Special Services,Communal Lighting,Electricity,ELECTRICITY SUPPLY,23/04/2021,REDACTED INVOICE NUMBER,141741,13.42,Revenue,4145,Opus Energy (Corporate) Ltd,OX2 7JH,0
Hra Expenditure,Special Services,Communal Lighting,Electricity,ELECTRICITY SUPPLY,23/04/2021,REDACTED INVOICE NUMBER,141838,5.74,Revenue,4145,Opus Energy (Corporate) Ltd,OX2 7JH,0
Hra Expenditure,Special Services,Communal Lighting,Electricity,ELECTRICITY SUPPLY,27/04/2021,REDACTED INVOICE NUMBER,141795,131.81,Revenue,4145,Opus Energy (Corporate) Ltd,OX2 7JH,0
Hra Expenditure,Special Services,Communal Lighting,Electricity,ELECTRICITY SUPPLY,27/04/2021,REDACTED INVOICE NUMBER,141796,23.24,Revenue,4145,Opus Energy (Corporate) Ltd,OX2 7JH,0
Hra Expenditure,Special Services,Communal Lighting,Electricity,ELECTRICITY SUPPLY,23/04/2021,REDACTED INVOICE NUMBER,141728,7.22,Revenue,4145,Opus Energy (Corporate) Ltd,OX2 7JH,0
Hra Expenditure,Special Services,Communal Lighting,Electricity,ELECTRICITY SUPPLY,23/04/2021,REDACTED INVOICE NUMBER,141729,57.39,Revenue,4145,Opus Energy (Corporate) Ltd,OX2 7JH,0
Hra Expenditure,Special Services,Communal Lighting,Electricity,ELECTRICITY SUPPLY,27/04/2021,REDACTED INVOICE NUMBER,141800,353,Revenue,4145,Opus Energy (Corporate) Ltd,OX2 7JH,0
Hra Expenditure,Special Services,Communal Lighting,Electricity,ELECTRICITY SUPPLY,27/04/2021,REDACTED INVOICE NUMBER,141801,1746.37,Revenue,4145,Opus Energy (Corporate) Ltd,OX2 7JH,0
Director Corporate Resources,Asset Management,Asset Management,Electricity,ELECTRICITY SUPPLY,23/04/2021,REDACTED INVOICE NUMBER,141827,41.26,Revenue,4145,Opus Energy (Corporate) Ltd,OX2 7JH,0
Hra Expenditure,Special Services,Communal Lighting,Electricity,ELECTRICITY SUPPLY,23/04/2021,REDACTED INVOICE NUMBER,141802,-34.21,Revenue,4145,Opus Energy (Corporate) Ltd,OX2 7JH,0
Hra Expenditure,Special Services,Communal Lighting,Electricity,ELECTRICITY SUPPLY,23/04/2021,REDACTED INVOICE NUMBER,141803,596.5,Revenue,4145,Opus Energy (Corporate) Ltd,OX2 7JH,0
Hra Expenditure,Special Services,Communal Lighting,Electricity,ELECTRICITY SUPPLY,23/04/2021,REDACTED INVOICE NUMBER,141804,329.52,Revenue,4145,Opus Energy (Corporate) Ltd,OX2 7JH,0
Hra Expenditure,Special Services,Communal Lighting,Electricity,ELECTRICITY SUPPLY,23/04/2021,REDACTED INVOICE NUMBER,141805,321.06,Revenue,4145,Opus Energy (Corporate) Ltd,OX2 7JH,0
Hra Expenditure,Special Services,Communal Lighting,Electricity,ELECTRICITY SUPPLY,23/04/2021,REDACTED INVOICE NUMBER,141733,7.21,Revenue,4145,Opus Energy (Corporate) Ltd,OX2 7JH,0
Hra Expenditure,Repairs And Maintenance,Planned Maintenance,Other Professional Fees,ELECTRICITY SUPPLY,31/03/2021,REDACTED INVOICE NUMBER,140955,149.81,Revenue,4145,Opus Energy (Corporate) Ltd,OX2 7JH,0
Director Corporate Resources,Asset Management,Asset Management,Electricity,ELECTRICITY SUPPLY,23/04/2021,REDACTED INVOICE NUMBER,141823,6.71,Revenue,4145,Opus Energy (Corporate) Ltd,OX2 7JH,0
Director Of Environment,Parking,Parking Services,Electricity,ELECTRICITY SUPPLY,23/04/2021,REDACTED INVOICE NUMBER,141782,3525.68,Revenue,4145,Opus Energy (Corporate) Ltd,OX2 7JH,0
Hra Expenditure,Special Services,Communal Lighting,Electricity,ELECTRICITY SUPPLY,23/04/2021,REDACTED INVOICE NUMBER,141806,33.21,Revenue,4145,Opus Energy (Corporate) Ltd,OX2 7JH,0
Hra Expenditure,Special Services,Communal Lighting,Electricity,ELECTRICITY SUPPLY,23/04/2021,REDACTED INVOICE NUMBER,141837,5.74,Revenue,4145,Opus Energy (Corporate) Ltd,OX2 7JH,0
Director Of Environment,Open Spaces,Buildings & Stakeholders,Electricity,ELECTRICITY SUPPLY,23/04/2021,REDACTED INVOICE NUMBER,141793,121,Revenue,4145,Opus Energy (Corporate) Ltd,OX2 7JH,0
Director Of Environment,Open Spaces,Buildings & Stakeholders,Electricity,ELECTRICITY SUPPLY,23/04/2021,REDACTED INVOICE NUMBER,141794,34.86,Revenue,4145,Opus Energy (Corporate) Ltd,OX2 7JH,0
Director Of Environment,Parking,Parking Services,Electricity,ELECTRICITY SUPPLY,23/04/2021,REDACTED INVOICE NUMBER,141839,21.7,Revenue,4145,Opus Energy (Corporate) Ltd,OX2 7JH,0
Director Of Environment,Parking,Parking Services,Electricity,ELECTRICITY SUPPLY,23/04/2021,REDACTED INVOICE NUMBER,141840,21.7,Revenue,4145,Opus Energy (Corporate) Ltd,OX2 7JH,0
Director Corporate Resources,Asset Management,Asset Management,Electricity,ELECTRICITY SUPPLY,23/04/2021,REDACTED INVOICE NUMBER,141797,2420.12,Revenue,4145,Opus Energy (Corporate) Ltd,OX2 7JH,0
Hra Expenditure,Special Services,Other Special Services,Electricity,ELECTRICITY SUPPLY,23/04/2021,REDACTED INVOICE NUMBER,141781,46.59,Revenue,4145,Opus Energy (Corporate) Ltd,OX2 7JH,0
Director Of Environment,Open Spaces,Buildings & Stakeholders,Electricity,ELECTRICITY SUPPLY,23/04/2021,REDACTED INVOICE NUMBER,141810,37.46,Revenue,4145,Opus Energy (Corporate) Ltd,OX2 7JH,0
Hra Expenditure,Special Services,Communal Lighting,Electricity,ELECTRICITY SUPPLY,27/04/2021,REDACTED INVOICE NUMBER,141811,22.39,Revenue,4145,Opus Energy (Corporate) Ltd,OX2 7JH,0
Hra Expenditure,Special Services,Communal Lighting,Electricity,ELECTRICITY SUPPLY,27/04/2021,REDACTED INVOICE NUMBER,141774,7.12,Revenue,4145,Opus Energy (Corporate) Ltd,OX2 7JH,0
Hra Expenditure,Special Services,Communal Lighting,Electricity,ELECTRICITY SUPPLY,23/04/2021,REDACTED INVOICE NUMBER,141813,86.13,Revenue,4145,Opus Energy (Corporate) Ltd,OX2 7JH,0
Hra Expenditure,Special Services,Communal Lighting,Electricity,ELECTRICITY SUPPLY,23/04/2021,REDACTED INVOICE NUMBER,141814,115.54,Revenue,4145,Opus Energy (Corporate) Ltd,OX2 7JH,0
Hra Expenditure,Special Services,Communal Lighting,Electricity,ELECTRICITY SUPPLY,27/04/2021,REDACTED INVOICE NUMBER,141816,76.26,Revenue,4145,Opus Energy (Corporate) Ltd,OX2 7JH,0
Hra Expenditure,Special Services,Communal Lighting,Electricity,ELECTRICITY SUPPLY,23/04/2021,REDACTED INVOICE NUMBER,141742,63.01,Revenue,4145,Opus Energy (Corporate) Ltd,OX2 7JH,0
Director Corporate Resources,Office Accommodation,Office Facilities Management,Electricity,ELECTRICITY SUPPLY,23/04/2021,REDACTED INVOICE NUMBER,141832,35.44,Revenue,4145,Opus Energy (Corporate) Ltd,OX2 7JH,0
Hra Expenditure,Special Services,Other Special Services,Electricity,ELECTRICITY SUPPLY,23/04/2021,REDACTED INVOICE NUMBER,141817,90.02,Revenue,4145,Opus Energy (Corporate) Ltd,OX2 7JH,0
Hra Expenditure,Special Services,Communal Lighting,Electricity,ELECTRICITY SUPPLY,23/04/2021,REDACTED INVOICE NUMBER,141743,34.79,Revenue,4145,Opus Energy (Corporate) Ltd,OX2 7JH,0
Director Of Environment,Golf Course,Golf Course,Electricity,ELECTRICITY SUPPLY,23/04/2021,REDACTED INVOICE NUMBER,141836,5.03,Revenue,4145,Opus Energy (Corporate) Ltd,OX2 7JH,0
Hra Expenditure,Special Services,Communal Lighting,Electricity,ELECTRICITY SUPPLY,27/04/2021,REDACTED INVOICE NUMBER,141818,406.35,Revenue,4145,Opus Energy (Corporate) Ltd,OX2 7JH,0
Hra Expenditure,Special Services,Sheltered Welfare Services,Electricity,ELECTRICITY SUPPLY,27/04/2021,REDACTED INVOICE NUMBER,141829,16.2,Revenue,4145,Opus Energy (Corporate) Ltd,OX2 7JH,0
Hra Expenditure,Special Services,Communal Lighting,Electricity,ELECTRICITY SUPPLY,23/04/2021,REDACTED INVOICE NUMBER,141745,64.03,Revenue,4145,Opus Energy (Corporate) Ltd,OX2 7JH,0
Hra Expenditure,Special Services,Communal Lighting,Electricity,ELECTRICITY SUPPLY,27/04/2021,REDACTED INVOICE NUMBER,141819,280.28,Revenue,4145,Opus Energy (Corporate) Ltd,OX2 7JH,0
Hra Expenditure,Special Services,Communal Lighting,Electricity,ELECTRICITY SUPPLY,23/04/2021,REDACTED INVOICE NUMBER,141748,153.21,Revenue,4145,Opus Energy (Corporate) Ltd,OX2 7JH,0
Hra Expenditure,Special Services,Communal Lighting,Electricity,ELECTRICITY SUPPLY,23/04/2021,REDACTED INVOICE NUMBER,141749,30.08,Revenue,4145,Opus Energy (Corporate) Ltd,OX2 7JH,0
Hra Expenditure,Special Services,Communal Lighting,Electricity,ELECTRICITY SUPPLY,23/04/2021,REDACTED INVOICE NUMBER,141750,24.54,Revenue,4145,Opus Energy (Corporate) Ltd,OX2 7JH,0
Hra Expenditure,Special Services,Communal Lighting,Electricity,ELECTRICITY SUPPLY,23/04/2021,REDACTED INVOICE NUMBER,141751,41.27,Revenue,4145,Opus Energy (Corporate) Ltd,OX2 7JH,0
Director Of Environment,Street Services,Public Conveniences,Electricity,ELECTRICITY SUPPLY,23/04/2021,REDACTED INVOICE NUMBER,141808,169.86,Revenue,4145,Opus Energy (Corporate) Ltd,OX2 7JH,0
Director Of Environment,Street Services,Public Conveniences,Electricity,ELECTRICITY SUPPLY,23/04/2021,REDACTED INVOICE NUMBER,141809,19.48,Revenue,4145,Opus Energy (Corporate) Ltd,OX2 7JH,0
Hra Expenditure,Special Services,Communal Lighting,Electricity,ELECTRICITY SUPPLY,23/04/2021,REDACTED INVOICE NUMBER,141904,-8.87,Revenue,4145,Opus Energy (Corporate) Ltd,OX2 7JH,0
Hra Expenditure,Special Services,Communal Lighting,Electricity,ELECTRICITY SUPPLY,23/04/2021,REDACTED INVOICE NUMBER,141876,-416.75,Revenue,4145,Opus Energy (Corporate) Ltd,OX2 7JH,0
Hra Expenditure,Special Services,Communal Lighting,Electricity,ELECTRICITY SUPPLY,23/04/2021,REDACTED INVOICE NUMBER,141864,-64.19,Revenue,4145,Opus Energy (Corporate) Ltd,OX2 7JH,0
Hra Expenditure,Special Services,Communal Lighting,Electricity,ELECTRICITY SUPPLY,23/04/2021,REDACTED INVOICE NUMBER,141852,-59.67,Revenue,4145,Opus Energy (Corporate) Ltd,OX2 7JH,0
Hra Expenditure,Special Services,Communal Lighting,Electricity,ELECTRICITY SUPPLY,23/04/2021,REDACTED INVOICE NUMBER,141900,-28.87,Revenue,4145,Opus Energy (Corporate) Ltd,OX2 7JH,0
Hra Expenditure,Special Services,Communal Lighting,Electricity,ELECTRICITY SUPPLY,23/04/2021,REDACTED INVOICE NUMBER,141892,-37.31,Revenue,4145,Opus Energy (Corporate) Ltd,OX2 7JH,0
Hra Expenditure,Special Services,Communal Lighting,Electricity,ELECTRICITY SUPPLY,23/04/2021,REDACTED INVOICE NUMBER,141886,-281.89,Revenue,4145,Opus Energy (Corporate) Ltd,OX2 7JH,0
Hra Expenditure,Special Services,Communal Lighting,Electricity,ELECTRICITY SUPPLY,23/04/2021,REDACTED INVOICE NUMBER,141872,-41.47,Revenue,4145,Opus Energy (Corporate) Ltd,OX2 7JH,0
Hra Expenditure,Special Services,Communal Lighting,Electricity,ELECTRICITY SUPPLY,23/04/2021,REDACTED INVOICE NUMBER,141860,-45.64,Revenue,4145,Opus Energy (Corporate) Ltd,OX2 7JH,0
Hra Expenditure,Special Services,Communal Lighting,Electricity,ELECTRICITY SUPPLY,23/04/2021,REDACTED INVOICE NUMBER,141848,-43.8,Revenue,4145,Opus Energy (Corporate) Ltd,OX2 7JH,0
Hra Expenditure,Special Services,Communal Lighting,Electricity,ELECTRICITY SUPPLY,23/04/2021,REDACTED INVOICE NUMBER,141906,-189.67,Revenue,4145,Opus Energy (Corporate) Ltd,OX2 7JH,0
Hra Expenditure,Special Services,Communal Lighting,Electricity,ELECTRICITY SUPPLY,23/04/2021,REDACTED INVOICE NUMBER,141896,-324.88,Revenue,4145,Opus Energy (Corporate) Ltd,OX2 7JH,0
Hra Expenditure,Special Services,Communal Lighting,Electricity,ELECTRICITY SUPPLY,23/04/2021,REDACTED INVOICE NUMBER,141880,-508.79,Revenue,4145,Opus Energy (Corporate) Ltd,OX2 7JH,0
Hra Expenditure,Special Services,Communal Lighting,Electricity,ELECTRICITY SUPPLY,23/04/2021,REDACTED INVOICE NUMBER,141868,-104.62,Revenue,4145,Opus Energy (Corporate) Ltd,OX2 7JH,0
Hra Expenditure,Special Services,Communal Lighting,Electricity,ELECTRICITY SUPPLY,23/04/2021,REDACTED INVOICE NUMBER,141856,-83.15,Revenue,4145,Opus Energy (Corporate) Ltd,OX2 7JH,0
Hra Expenditure,Special Services,Communal Lighting,Electricity,ELECTRICITY SUPPLY,23/04/2021,REDACTED INVOICE NUMBER,141844,-81.22,Revenue,4145,Opus Energy (Corporate) Ltd,OX2 7JH,0
Hra Expenditure,Repairs And Maintenance,Responsive Void Repairs,Electricity,ELECTRICITY SUPPLY,23/04/2021,REDACTED INVOICE NUMBER,141878,-460.29,Revenue,4145,Opus Energy (Corporate) Ltd,OX2 7JH,0
Hra Expenditure,Special Services,Communal Lighting,Electricity,ELECTRICITY SUPPLY,23/04/2021,REDACTED INVOICE NUMBER,141866,-74.06,Revenue,4145,Opus Energy (Corporate) Ltd,OX2 7JH,0
Hra Expenditure,Special Services,Communal Lighting,Electricity,ELECTRICITY SUPPLY,23/04/2021,REDACTED INVOICE NUMBER,141854,-76.6,Revenue,4145,Opus Energy (Corporate) Ltd,OX2 7JH,0
Hra Expenditure,Special Services,Communal Lighting,Electricity,ELECTRICITY SUPPLY,23/04/2021,REDACTED INVOICE NUMBER,141879,-507.59,Revenue,4145,Opus Energy (Corporate) Ltd,OX2 7JH,0
Hra Expenditure,Special Services,Communal Lighting,Electricity,ELECTRICITY SUPPLY,23/04/2021,REDACTED INVOICE NUMBER,141867,-94.33,Revenue,4145,Opus Energy (Corporate) Ltd,OX2 7JH,0
Hra Expenditure,Special Services,Communal Lighting,Electricity,ELECTRICITY SUPPLY,23/04/2021,REDACTED INVOICE NUMBER,141855,-83.47,Revenue,4145,Opus Energy (Corporate) Ltd,OX2 7JH,0
Hra Expenditure,Special Services,Communal Lighting,Electricity,ELECTRICITY SUPPLY,23/04/2021,REDACTED INVOICE NUMBER,141843,-64.63,Revenue,4145,Opus Energy (Corporate) Ltd,OX2 7JH,0
Hra Expenditure,Special Services,Communal Lighting,Electricity,ELECTRICITY SUPPLY,23/04/2021,REDACTED INVOICE NUMBER,141901,-29.22,Revenue,4145,Opus Energy (Corporate) Ltd,OX2 7JH,0
Hra Expenditure,Special Services,Communal Lighting,Electricity,ELECTRICITY SUPPLY,23/04/2021,REDACTED INVOICE NUMBER,141893,-38.15,Revenue,4145,Opus Energy (Corporate) Ltd,OX2 7JH,0
Hra Expenditure,Special Services,Communal Lighting,Electricity,ELECTRICITY SUPPLY,23/04/2021,REDACTED INVOICE NUMBER,141887,-282.28,Revenue,4145,Opus Energy (Corporate) Ltd,OX2 7JH,0
Hra Expenditure,Special Services,Communal Lighting,Electricity,ELECTRICITY SUPPLY,23/04/2021,REDACTED INVOICE NUMBER,141873,-40.78,Revenue,4145,Opus Energy (Corporate) Ltd,OX2 7JH,0
Hra Expenditure,Special Services,Communal Lighting,Electricity,ELECTRICITY SUPPLY,23/04/2021,REDACTED INVOICE NUMBER,141861,-46.08,Revenue,4145,Opus Energy (Corporate) Ltd,OX2 7JH,0
Hra Expenditure,Special Services,Communal Lighting,Electricity,ELECTRICITY SUPPLY,23/04/2021,REDACTED INVOICE NUMBER,141849,-45.28,Revenue,4145,Opus Energy (Corporate) Ltd,OX2 7JH,0
Hra Expenditure,Special Services,Communal Lighting,Electricity,ELECTRICITY SUPPLY,23/04/2021,REDACTED INVOICE NUMBER,141902,-29.62,Revenue,4145,Opus Energy (Corporate) Ltd,OX2 7JH,0
Hra Expenditure,Special Services,Communal Lighting,Electricity,ELECTRICITY SUPPLY,23/04/2021,REDACTED INVOICE NUMBER,141894,-37.66,Revenue,4145,Opus Energy (Corporate) Ltd,OX2 7JH,0
Hra Expenditure,Special Services,Communal Lighting,Electricity,ELECTRICITY SUPPLY,23/04/2021,REDACTED INVOICE NUMBER,141888,-273.41,Revenue,4145,Opus Energy (Corporate) Ltd,OX2 7JH,0
Hra Expenditure,Special Services,Communal Lighting,Electricity,ELECTRICITY SUPPLY,23/04/2021,REDACTED INVOICE NUMBER,141874,-345.07,Revenue,4145,Opus Energy (Corporate) Ltd,OX2 7JH,0
Hra Expenditure,Special Services,Communal Lighting,Electricity,ELECTRICITY SUPPLY,23/04/2021,REDACTED INVOICE NUMBER,141862,-46.18,Revenue,4145,Opus Energy (Corporate) Ltd,OX2 7JH,0
Hra Expenditure,Special Services,Communal Lighting,Electricity,ELECTRICITY SUPPLY,23/04/2021,REDACTED INVOICE NUMBER,141850,-43.79,Revenue,4145,Opus Energy (Corporate) Ltd,OX2 7JH,0
Hra Expenditure,Special Services,Communal Lighting,Electricity,ELECTRICITY SUPPLY,23/04/2021,REDACTED INVOICE NUMBER,141905,-63.65,Revenue,4145,Opus Energy (Corporate) Ltd,OX2 7JH,0
Hra Expenditure,Special Services,Communal Lighting,Electricity,ELECTRICITY SUPPLY,23/04/2021,REDACTED INVOICE NUMBER,141877,-476,Revenue,4145,Opus Energy (Corporate) Ltd,OX2 7JH,0
Hra Expenditure,Special Services,Communal Lighting,Electricity,ELECTRICITY SUPPLY,23/04/2021,REDACTED INVOICE NUMBER,141865,-77.74,Revenue,4145,Opus Energy (Corporate) Ltd,OX2 7JH,0
Hra Expenditure,Special Services,Communal Lighting,Electricity,ELECTRICITY SUPPLY,23/04/2021,REDACTED INVOICE NUMBER,141853,-76.91,Revenue,4145,Opus Energy (Corporate) Ltd,OX2 7JH,0
Hra Expenditure,Special Services,Communal Lighting,Electricity,ELECTRICITY SUPPLY,23/04/2021,REDACTED INVOICE NUMBER,141903,-37.71,Revenue,4145,Opus Energy (Corporate) Ltd,OX2 7JH,0
Hra Expenditure,Special Services,Communal Lighting,Electricity,ELECTRICITY SUPPLY,23/04/2021,REDACTED INVOICE NUMBER,141895,-44.24,Revenue,4145,Opus Energy (Corporate) Ltd,OX2 7JH,0
Hra Expenditure,Special Services,Communal Lighting,Electricity,ELECTRICITY SUPPLY,23/04/2021,REDACTED INVOICE NUMBER,141889,-320.68,Revenue,4145,Opus Energy (Corporate) Ltd,OX2 7JH,0
Hra Expenditure,Special Services,Communal Lighting,Electricity,ELECTRICITY SUPPLY,23/04/2021,REDACTED INVOICE NUMBER,141875,-377.26,Revenue,4145,Opus Energy (Corporate) Ltd,OX2 7JH,0
Hra Expenditure,Special Services,Communal Lighting,Electricity,ELECTRICITY SUPPLY,23/04/2021,REDACTED INVOICE NUMBER,141863,-55.3,Revenue,4145,Opus Energy (Corporate) Ltd,OX2 7JH,0
Hra Expenditure,Special Services,Communal Lighting,Electricity,ELECTRICITY SUPPLY,23/04/2021,REDACTED INVOICE NUMBER,141851,-51.27,Revenue,4145,Opus Energy (Corporate) Ltd,OX2 7JH,0
Hra Expenditure,Special Services,Communal Lighting,Electricity,ELECTRICITY SUPPLY,23/04/2021,REDACTED INVOICE NUMBER,141907,-68.82,Revenue,4145,Opus Energy (Corporate) Ltd,OX2 7JH,0
Hra Expenditure,Special Services,Communal Lighting,Electricity,ELECTRICITY SUPPLY,23/04/2021,REDACTED INVOICE NUMBER,141897,-73.04,Revenue,4145,Opus Energy (Corporate) Ltd,OX2 7JH,0
Hra Expenditure,Special Services,Communal Lighting,Electricity,ELECTRICITY SUPPLY,23/04/2021,REDACTED INVOICE NUMBER,141881,-462.64,Revenue,4145,Opus Energy (Corporate) Ltd,OX2 7JH,0
Hra Expenditure,Special Services,Communal Lighting,Electricity,ELECTRICITY SUPPLY,23/04/2021,REDACTED INVOICE NUMBER,141869,-95.28,Revenue,4145,Opus Energy (Corporate) Ltd,OX2 7JH,0
Hra Expenditure,Special Services,Communal Lighting,Electricity,ELECTRICITY SUPPLY,23/04/2021,REDACTED INVOICE NUMBER,141857,-79.31,Revenue,4145,Opus Energy (Corporate) Ltd,OX2 7JH,0
Hra Expenditure,Special Services,Communal Lighting,Electricity,ELECTRICITY SUPPLY,23/04/2021,REDACTED INVOICE NUMBER,141845,-72.05,Revenue,4145,Opus Energy (Corporate) Ltd,OX2 7JH,0
Hra Expenditure,Special Services,Communal Lighting,Electricity,ELECTRICITY SUPPLY,23/04/2021,REDACTED INVOICE NUMBER,141709,-118.05,Revenue,4145,Opus Energy (Corporate) Ltd,OX2 7JH,0
Hra Expenditure,Special Services,Communal Lighting,Electricity,ELECTRICITY SUPPLY,23/04/2021,REDACTED INVOICE NUMBER,141898,-173.09,Revenue,4145,Opus Energy (Corporate) Ltd,OX2 7JH,0
Hra Expenditure,Special Services,Communal Lighting,Electricity,ELECTRICITY SUPPLY,23/04/2021,REDACTED INVOICE NUMBER,141890,-480.07,Revenue,4145,Opus Energy (Corporate) Ltd,OX2 7JH,0
Hra Expenditure,Special Services,Communal Lighting,Electricity,ELECTRICITY SUPPLY,23/04/2021,REDACTED INVOICE NUMBER,141882,-422.22,Revenue,4145,Opus Energy (Corporate) Ltd,OX2 7JH,0
Hra Expenditure,Special Services,Communal Lighting,Electricity,ELECTRICITY SUPPLY,23/04/2021,REDACTED INVOICE NUMBER,141870,-77.14,Revenue,4145,Opus Energy (Corporate) Ltd,OX2 7JH,0
Hra Expenditure,Special Services,Communal Lighting,Electricity,ELECTRICITY SUPPLY,23/04/2021,REDACTED INVOICE NUMBER,141858,-62.45,Revenue,4145,Opus Energy (Corporate) Ltd,OX2 7JH,0
Hra Expenditure,Special Services,Communal Lighting,Electricity,ELECTRICITY SUPPLY,23/04/2021,REDACTED INVOICE NUMBER,141846,-62.22,Revenue,4145,Opus Energy (Corporate) Ltd,OX2 7JH,0
Hra Expenditure,Special Services,Communal Lighting,Electricity,ELECTRICITY SUPPLY,23/04/2021,REDACTED INVOICE NUMBER,141899,-32.77,Revenue,4145,Opus Energy (Corporate) Ltd,OX2 7JH,0
Hra Expenditure,Special Services,Communal Lighting,Electricity,ELECTRICITY SUPPLY,23/04/2021,REDACTED INVOICE NUMBER,141891,-38.76,Revenue,4145,Opus Energy (Corporate) Ltd,OX2 7JH,0
Hra Expenditure,Special Services,Communal Lighting,Electricity,ELECTRICITY SUPPLY,23/04/2021,REDACTED INVOICE NUMBER,141883,-293.23,Revenue,4145,Opus Energy (Corporate) Ltd,OX2 7JH,0
Hra Expenditure,Special Services,Communal Lighting,Electricity,ELECTRICITY SUPPLY,23/04/2021,REDACTED INVOICE NUMBER,141871,-44.3,Revenue,4145,Opus Energy (Corporate) Ltd,OX2 7JH,0
Hra Expenditure,Special Services,Communal Lighting,Electricity,ELECTRICITY SUPPLY,23/04/2021,REDACTED INVOICE NUMBER,141859,-50.86,Revenue,4145,Opus Energy (Corporate) Ltd,OX2 7JH,0
Hra Expenditure,Special Services,Communal Lighting,Electricity,ELECTRICITY SUPPLY,23/04/2021,REDACTED INVOICE NUMBER,141847,-49.45,Revenue,4145,Opus Energy (Corporate) Ltd,OX2 7JH,0
Hra Expenditure,Special Services,Communal Lighting,Electricity,ELECTRICITY SUPPLY,23/04/2021,REDACTED INVOICE NUMBER,141752,21.34,Revenue,4145,Opus Energy (Corporate) Ltd,OX2 7JH,0
Hra Expenditure,Special Services,Communal Lighting,Electricity,ELECTRICITY SUPPLY,23/04/2021,REDACTED INVOICE NUMBER,141753,15,Revenue,4145,Opus Energy (Corporate) Ltd,OX2 7JH,0
Hra Expenditure,Special Services,Communal Lighting,Electricity,ELECTRICITY SUPPLY,23/04/2021,REDACTED INVOICE NUMBER,141754,26.97,Revenue,4145,Opus Energy (Corporate) Ltd,OX2 7JH,0
Hra Expenditure,Special Services,Communal Lighting,Electricity,ELECTRICITY SUPPLY,23/04/2021,REDACTED INVOICE NUMBER,141755,18.32,Revenue,4145,Opus Energy (Corporate) Ltd,OX2 7JH,0
Hra Expenditure,Special Services,Communal Lighting,Electricity,ELECTRICITY SUPPLY,23/04/2021,REDACTED INVOICE NUMBER,141756,80.79,Revenue,4145,Opus Energy (Corporate) Ltd,OX2 7JH,0
Hra Expenditure,Special Services,Communal Lighting,Electricity,ELECTRICITY SUPPLY,23/04/2021,REDACTED INVOICE NUMBER,141835,46.78,Revenue,4145,Opus Energy (Corporate) Ltd,OX2 7JH,0
Hra Expenditure,Special Services,Communal Lighting,Electricity,ELECTRICITY SUPPLY,23/04/2021,REDACTED INVOICE NUMBER,141798,123.76,Revenue,4145,Opus Energy (Corporate) Ltd,OX2 7JH,0
Hra Expenditure,Special Services,Communal Lighting,Electricity,ELECTRICITY SUPPLY,27/04/2021,REDACTED INVOICE NUMBER,141821,140.54,Revenue,4145,Opus Energy (Corporate) Ltd,OX2 7JH,0
Hra Expenditure,Special Services,Communal Lighting,Electricity,ELECTRICITY SUPPLY,23/04/2021,REDACTED INVOICE NUMBER,141760,54.88,Revenue,4145,Opus Energy (Corporate) Ltd,OX2 7JH,0
Hra Expenditure,Special Services,Communal Lighting,Electricity,ELECTRICITY SUPPLY,23/04/2021,REDACTED INVOICE NUMBER,141822,29.46,Revenue,4145,Opus Energy (Corporate) Ltd,OX2 7JH,0
Hra Expenditure,Special Services,Communal Lighting,Electricity,ELECTRICITY SUPPLY,23/04/2021,REDACTED INVOICE NUMBER,141768,27.78,Revenue,4145,Opus Energy (Corporate) Ltd,OX2 7JH,0
Director Of Environment,"Communities, Health & Leisure",Sports & Social Venues,Contracted Services,VARIOUS STAFF,23/04/2021,REDACTED INVOICE NUMBER,142050,9130.65,Revenue,28444,Opus People Solutions Group Limited,IP1 2BX,0
Director Of Environment,"Communities, Health & Leisure",Sports & Social Venues,Contracted Services,VARIOUS STAFF,30/04/2021,REDACTED INVOICE NUMBER,142350,13664.04,Revenue,28444,Opus People Solutions Group Limited,IP1 2BX,0
Director Of Environment,"Communities, Health & Leisure",Sports & Social Venues,Contracted Services,VARIOUS STAFF - B/WOOD CENTRE,9/4/2021,REDACTED INVOICE NUMBER,140978,7091.05,Revenue,28444,Opus People Solutions Group Limited,IP1 2BX,0
Director Of Environment,"Communities, Health & Leisure",Sports & Social Venues,Contracted Services,VARIOUS STAFF - B/WOOD CENTRE,16/04/2021,REDACTED INVOICE NUMBER,141529,4189.69,Revenue,28444,Opus People Solutions Group Limited,IP1 2BX,0
Director Of Environment,Golf Course,Golf Course,Vehicle - Lease Rentals,MAINTENANCE INVOICE,13/04/2021,REDACTED INVOICE NUMBER,139642,305.9,Revenue,26919,P Tuckwell Ltd (Pg Payments Only),CO7 7LG,0
Director Of Environment,Open Spaces,Bowling Greens,Vehicle - Lease Rentals,MAINTENANCE INVOICE,13/04/2021,REDACTED INVOICE NUMBER,139642,131.1,Revenue,26919,P Tuckwell Ltd (Pg Payments Only),CO7 7LG,0
Director Of Environment,Golf Course,Golf Course,Vehicle - Lease Rentals,MAINTENANCE INVOICE - JAN '21,13/04/2021,REDACTED INVOICE NUMBER,138400,305.9,Revenue,26919,P Tuckwell Ltd (Pg Payments Only),CO7 7LG,0
Director Of Environment,Open Spaces,Bowling Greens,Vehicle - Lease Rentals,MAINTENANCE INVOICE - JAN '21,13/04/2021,REDACTED INVOICE NUMBER,138400,131.1,Revenue,26919,P Tuckwell Ltd (Pg Payments Only),CO7 7LG,0
Director Of Environment,Golf Course,Golf Course,Vehicle - Lease Rentals,MAINTENANCE INVOICE - MAR '21,9/4/2021,REDACTED INVOICE NUMBER,141260,305.9,Revenue,26919,P Tuckwell Ltd (Pg Payments Only),CO7 7LG,0
Director Of Environment,Open Spaces,Bowling Greens,Vehicle - Lease Rentals,MAINTENANCE INVOICE - MAR '21,9/4/2021,REDACTED INVOICE NUMBER,141260,131.1,Revenue,26919,P Tuckwell Ltd (Pg Payments Only),CO7 7LG,0
Director Of Environment,Golf Course,Golf Course,Vehicle - Lease Rentals,TUCKWELL WARRANTY,13/04/2021,REDACTED INVOICE NUMBER,139641,31.5,Revenue,26919,P Tuckwell Ltd (Pg Payments Only),CO7 7LG,0
Director Of Environment,Open Spaces,Bowling Greens,Vehicle - Lease Rentals,TUCKWELL WARRANTY,13/04/2021,REDACTED INVOICE NUMBER,139641,13.5,Revenue,26919,P Tuckwell Ltd (Pg Payments Only),CO7 7LG,0
Director Of Environment,Golf Course,Golf Course,Vehicle - Lease Rentals,TUCKWELL WARRANTY - MAR '21,9/4/2021,REDACTED INVOICE NUMBER,141259,31.5,Revenue,26919,P Tuckwell Ltd (Pg Payments Only),CO7 7LG,0
Director Of Environment,Open Spaces,Bowling Greens,Vehicle - Lease Rentals,TUCKWELL WARRANTY - MAR '21,9/4/2021,REDACTED INVOICE NUMBER,141259,13.5,Revenue,26919,P Tuckwell Ltd (Pg Payments Only),CO7 7LG,0
Director Of Environment,Waste Management,Recycling - Dry,Waste Disposal,LATE CANCELLATION FEE,20/04/2021,REDACTED INVOICE NUMBER,141191,180,Revenue,28469,Palm Recycling Ltd,PE34 3AL,0
Director Of Planning & Economy,Planning Development Managemt,Planning Development Managemt,Agency Staff,PROJECT MANAGEMENT SUPPORT,30/04/2021,REDACTED INVOICE NUMBER,141376,1281,Revenue,26959,Park Avenue Recruitment Ltd,EC1V 9EE,0
Director Of Planning & Economy,Planning Development Managemt,Planning Development Managemt,Agency Staff,PROJECT MANAGEMENT SUPPORT,30/04/2021,REDACTED INVOICE NUMBER,141379,1453.5,Revenue,26959,Park Avenue Recruitment Ltd,EC1V 9EE,0
Director Of Planning & Economy,Planning Development Managemt,Planning Development Managemt,Agency Staff,PROJECT MANAGEMENT SUPPORT,30/04/2021,REDACTED INVOICE NUMBER,141380,1555.5,Revenue,26959,Park Avenue Recruitment Ltd,EC1V 9EE,0
Director Of Planning & Economy,Planning Development Managemt,Planning Development Managemt,Agency Staff,PROJECT MANAGEMENT SUPPORT,30/04/2021,REDACTED INVOICE NUMBER,141377,1449,Revenue,26959,Park Avenue Recruitment Ltd,EC1V 9EE,0
Director Of Planning & Economy,Planning Development Managemt,Planning Development Managemt,Agency Staff,PROJECT MANAGEMENT SUPPORT,30/04/2021,REDACTED INVOICE NUMBER,141381,816,Revenue,26959,Park Avenue Recruitment Ltd,EC1V 9EE,0
Director Housing & Enforcement,Homelessness,B&B Accommodation,B & B Charges (Homelessness),HOMELESSNESS PREVENTION,27/04/2021,REDACTED INVOICE NUMBER,142067,480,Revenue,21736,Park Hotel,IG1 4UE,0
Director Housing & Enforcement,Homelessness,B&B Accommodation,B & B Charges (Homelessness),HOMELESSNESS PREVENTION,27/04/2021,REDACTED INVOICE NUMBER,142068,1530,Revenue,21736,Park Hotel,IG1 4UE,0
Director Housing & Enforcement,Homelessness,B&B Accommodation,B & B Charges (Homelessness),HOMELESSNESS PREVENTION,27/04/2021,REDACTED INVOICE NUMBER,142066,270,Revenue,21736,Park Hotel,IG1 4UE,0
Capex Director Of Environment,Other Environmental Services,Disabled Facilities Grant,Grants - General,DISABLED FACILITIES GRANT,16/04/2021,REDACTED INVOICE NUMBER,141178,1800,Capital,26573,Paul Weightman,CM14 4PL,0
Director Of Environment,Open Spaces,Amenity Greens,R&M Grounds - Treework,TECHNICAL SUPPORT - 21/22,27/04/2021,REDACTED INVOICE NUMBER,141158,660,Revenue,24246,Pear Technology Services Limited,PO9 1HS,0
Director Of Environment,"Communities, Health & Leisure",Sports & Social Venues,Contracted Services,PROMO AND SAFETY FILMS,16/04/2021,REDACTED INVOICE NUMBER,141516,1200,Revenue,180386P,Peekaboo Films,CO7 6QT,0
Capex Director Of Environment,Other Environmental Services,Disabled Facilities Grant,Grants - General,DISABLED FACILITIES GRANT,16/04/2021,REDACTED INVOICE NUMBER,141499,765,Capital,4220,Pennells & Son,CM13 2JE,0
Hra Expenditure,Repairs And Maintenance,Responsive Repairs Management,Pest Control,PEST CONTROL,20/04/2021,REDACTED INVOICE NUMBER,141600,100.01,Revenue,4226,Pestbusters,CM15 9JU,0
Director Of Law & Governance,Electoral Services,Election Services,Stationery - General,INSERTING SYSTEM,9/4/2021,REDACTED INVOICE NUMBER,139928,753.09,Revenue,4273,Pitney Bowes Ltd,CM19 5LS,0
Balance Sheet,Balance Sheet,Balance Sheet,Ctax 15jan Prior Surpls Police,PRECEPTS - MAY '21,30/04/2021,REDACTED INVOICE NUMBER,142500,1463,Revenue,22444,Police Precept,.,0
Balance Sheet,Balance Sheet,Balance Sheet,C Tax Police Precept,PRECEPTS - MAY '21,30/04/2021,REDACTED INVOICE NUMBER,142500,630335,Revenue,22444,Police Precept,.,0
Director Corporate Resources,Council Tax & Nndr,Council Tax Collection,Grants/Contributions - Police,PRECEPTS - MAY '21,30/04/2021,REDACTED INVOICE NUMBER,142500,-4359,Revenue,22444,Police Precept,.,0
Director Of Environment,Open Spaces,Amenity Greens,R&M Grounds - Treework,PLANTS,13/04/2021,REDACTED INVOICE NUMBER,140914,614.75,Revenue,24179,Poplar Nurseries (Wholesale) Ltd,PE14 8AA,0
Balance Sheet,Balance Sheet,Balance Sheet,Highways Stores,HAND SANITISER / MASKS,13/04/2021,REDACTED INVOICE NUMBER,140391,150.54,Revenue,4300,Power Hygiene + Safety Products Limited,SS6 7UY,0
Director Corporate Resources,Asset Management,Asset Management,R&M Bldgs - General,WIPES / MASKS,27/04/2021,REDACTED INVOICE NUMBER,141168,70.27,Revenue,4300,Power Hygiene + Safety Products Limited,SS6 7UY,0
Director Of Environment,"Communities, Health & Leisure",Sports & Social Venues,Purchases - General Equipment,SPORTS EQUIPMENT,9/4/2021,REDACTED INVOICE NUMBER,141532,3280.23,Revenue,189530P,Ppl Prs Ltd,LEI 1QG,0
Director Of Environment,Parking,Parking Services,R&M Other - Car Parks,LIFT REPAIRS - MSCP,30/04/2021,REDACTED INVOICE NUMBER,141616,45,Revenue,4308,Precision Lift Services Ltd,SS14 3BZ,0
Capex Director Of C Resources,Asset Management,Strategic Prop Acquisitions,Other Professional Fees,PROFESSIONAL FEES,16/04/2021,REDACTED INVOICE NUMBER,141975,2250,Capital,190060P,Project And Building Consultancy Ltd,EC4V 6AB,0
Director Corporate Resources,Asset Management,Asset Management,R&M Bldgs - General,WINDOW CLEANING - PEPPERILL HOUSE,30/04/2021,REDACTED INVOICE NUMBER,141484,40,Revenue,4352,Purkis,SS12 0LX,0
Director Digital & Customer En,Digital Servs & Transformation,Ict Services,Internet Services,SSL Certificates,20/04/2021,REDACTED INVOICE NUMBER,140713,180,Revenue,4360,Quovadis Online Security Ltd,PE22 OTW,0
Director Of Environment,Waste Management,Recycling - Dry,Waste Disposal,WASTE DISPOSAL,20/04/2021,REDACTED INVOICE NUMBER,140712,230,Revenue,27330,R D Williams & Sons (Haulage) Ltd,PE28 0UA,0
Director Of Environment,Waste Management,Recycling - Dry,Waste Disposal,WASTE TRANSFER,9/4/2021,REDACTED INVOICE NUMBER,139795,920,Revenue,27330,R D Williams & Sons (Haulage) Ltd,PE28 0UA,0
Director Of Environment,Waste Management,Recycling - Dry,Waste Disposal,WASTE TRANSFER,9/4/2021,REDACTED INVOICE NUMBER,140040,230,Revenue,27330,R D Williams & Sons (Haulage) Ltd,PE28 0UA,0
Director Of Environment,Waste Management,Recycling - Dry,Waste Disposal,WASTE TRANSFER,9/4/2021,REDACTED INVOICE NUMBER,140409,920,Revenue,27330,R D Williams & Sons (Haulage) Ltd,PE28 0UA,0
Director Of Law & Governance,Legal Services & Data Protect,Legal Services & Data Protect,Planning Fees,PROFESSIONAL FEES,20/04/2021,REDACTED INVOICE NUMBER,140990,8375,Revenue,2809,Radcliffe Chambers,WC2A 3QB,0
Director Of Law & Governance,Legal Services & Data Protect,Legal Services & Data Protect,Legal Fees,PROFESSIONAL FEES,27/04/2021,REDACTED INVOICE NUMBER,140989,5250,Revenue,2809,Radcliffe Chambers,WC2A 3QB,0
Director Of Law & Governance,Legal Services & Data Protect,Legal Services & Data Protect,Legal Fees,PROFESSIONAL FEES,27/04/2021,REDACTED INVOICE NUMBER,140988,2500,Revenue,2809,Radcliffe Chambers,WC2A 3QB,0
Director Of Planning & Economy,Planning Development Managemt,Planning Development Managemt,Advertising - General,ADVERT PLACEMENT,20/04/2021,REDACTED INVOICE NUMBER,140790,266.2,Revenue,27928,Reach Publishing Services Ltd,E14 5AP,0
Director Of Planning & Economy,Planning Development Managemt,Planning Development Managemt,Advertising - General,ADVERT PLACEMENT,27/04/2021,REDACTED INVOICE NUMBER,141176,266.2,Revenue,27928,Reach Publishing Services Ltd,E14 5AP,0
Director Of Planning & Economy,Planning Development Managemt,Planning Development Managemt,Advertising - General,ADVERT PLACEMENT,30/04/2021,REDACTED INVOICE NUMBER,141510,435.6,Revenue,27928,Reach Publishing Services Ltd,E14 5AP,0
Director Housing & Enforcement,Homelessness,Private Sector Acc Leased,Rent/Hire Of Buildings,PRIVATE SECTOR LEASING,30/04/2021,REDACTED INVOICE NUMBER,141314,700,Revenue,3265,REDACTED PERSONAL DATA,REDACTED,0
Director Housing & Enforcement,Homelessness,Private Sector Acc Leased,Rent/Hire Of Buildings,PRIVATE SECTOR LEASING,16/04/2021,REDACTED INVOICE NUMBER,141329,650,Revenue,909,REDACTED PERSONAL DATA,REDACTED,0
Director Housing & Enforcement,Homelessness,Private Sector Acc Leased,Rent/Hire Of Buildings,PRIVATE SECTOR LEASING,30/04/2021,REDACTED INVOICE NUMBER,141312,600,Revenue,2339,REDACTED PERSONAL DATA,REDACTED,0
Director Housing & Enforcement,Homelessness,Private Sector Acc Leased,Rent/Hire Of Buildings,PRIVATE SECTOR LEASING,30/04/2021,REDACTED INVOICE NUMBER,142217,725,Revenue,2968,REDACTED PERSONAL DATA,REDACTED,0
Director Of Environment,Open Spaces,Sports Pitches,Purchases - Materials,CONSUMABLES,16/04/2021,REDACTED INVOICE NUMBER,140540,1104,Revenue,4449,Rigby Taylor Ltd,BL6 5HP,0
Director Of Environment,Open Spaces,Sports Pitches,Purchases - Materials,CONSUMABLES,16/04/2021,REDACTED INVOICE NUMBER,140618,131.4,Revenue,4449,Rigby Taylor Ltd,BL6 5HP,0
Director Of Environment,Open Spaces,Sports Pitches,Purchases - Materials,SPORTS FIELD RENOVATION ,13/04/2021,REDACTED INVOICE NUMBER,140490,3125,Revenue,4449,Rigby Taylor Ltd,BL6 5HP,0
Balance Sheet,Balance Sheet,Balance Sheet,Fuel Stores,DIESEL,20/04/2021,REDACTED INVOICE NUMBER,140747,9866.03,Revenue,28483,Rix Petroleum Ltd,HU8 7JR,0
Hra Expenditure,Repairs And Maintenance,Planned Maintenance,Emergency Accommodation,CONSULTANCY DAY,23/04/2021,REDACTED INVOICE NUMBER,141179,1425,Revenue,27008,Rowans Fire Ltd,DN22 9NQ,0
Director Of Environment,Vehicle Fleet Management,Vehicle Fleet Management,Purchases - General Equipment,SERVICE CHARGE - 12.3.21 - 11.4.21,9/4/2021,REDACTED INVOICE NUMBER,140379,247.68,Revenue,4527,Safetykleen Uk Ltd,SS15 6TR,0
Director Of Environment,Vehicle Fleet Management,Vehicle Fleet Management,Purchases - General Equipment,WASTE OIL,27/04/2021,REDACTED INVOICE NUMBER,141241,140,Revenue,4527,Safetykleen Uk Ltd,SS15 6TR,0
Director Of Planning & Economy,Economic Development Total,Economic Development,Other Fees & Service,PROFESSIONAL FEES,23/04/2021,REDACTED INVOICE NUMBER,142214,7200,Revenue,24162,Savills (Uk) Ltd,CB2 8PA,0
Director Of Environment,Cemeteries,Cemeteries,R&M Grounds - Treework,TREE WORKS,30/04/2021,REDACTED INVOICE NUMBER,142021,1300,Revenue,26924,Sds Tree Services,CM4 0RX,0
Director Of Environment,Open Spaces,Countryside Recreation Mtnce,R&M Grounds - Grass Cutting,TREE WORKS,30/04/2021,REDACTED INVOICE NUMBER,142022,450,Revenue,26924,Sds Tree Services,CM4 0RX,0
Hra Expenditure,Special Services,Grounds Maintenance,R&M Grounds - Treework,TREE WORKS,30/04/2021,REDACTED INVOICE NUMBER,142023,450,Revenue,26924,Sds Tree Services,CM4 0RX,0
Capex Director Of Housing,Housing - Affordable Housing,Coram Green,Enhancements,CONSTRUCTION WORKS EXECUTED,16/04/2021,REDACTED INVOICE NUMBER,140359,33193.33,Capital,28406,Seh French Ltd,IP1 5LT,0
Balance Sheet,Balance Sheet,Balance Sheet,Contractor Retentions Account,VAL 2. CORAM GREEN C541,30/04/2021,REDACTED INVOICE NUMBER,142035,-2404.27,Revenue,28406,Seh French Ltd,IP1 5LT,0
Capex Director Of Housing,Housing - Affordable Housing,Coram Green,Enhancements,VAL 2. CORAM GREEN C541,30/04/2021,REDACTED INVOICE NUMBER,142035,80142.27,Capital,28406,Seh French Ltd,IP1 5LT,0
Director Of Environment,Street Services,Street Cleansing,Agency Staff,PROJECT MANAGEMENT SUPPORT,30/04/2021,REDACTED INVOICE NUMBER,142040,164.4,Revenue,4575,Sewell Staffing Limited T/A Sector Recruitme,CM15 0AU,0
Director Of Environment,Waste Management,Waste Collection Support,Agency Staff,PROJECT MANAGEMENT SUPPORT,30/04/2021,REDACTED INVOICE NUMBER,142041,6072.35,Revenue,4575,Sewell Staffing Limited T/A Sector Recruitme,CM15 0AU,0
Director Of Environment,Waste Management,Waste Collection Support,Agency Staff,PROJECT MANAGEMENT SUPPORT,30/04/2021,REDACTED INVOICE NUMBER,142040,414.18,Revenue,4575,Sewell Staffing Limited T/A Sector Recruitme,CM15 0AU,0
Director Of Environment,Street Services,Street Cleansing,Agency Staff,PROJECT MANAGEMENT SUPPORT,30/04/2021,REDACTED INVOICE NUMBER,142038,596.58,Revenue,4575,Sewell Staffing Limited T/A Sector Recruitme,CM15 0AU,0
Director Of Environment,Waste Management,Waste Collection Support,Agency Staff,PROJECT MANAGEMENT SUPPORT,30/04/2021,REDACTED INVOICE NUMBER,142039,6299.95,Revenue,4575,Sewell Staffing Limited T/A Sector Recruitme,CM15 0AU,0
Director Of Environment,Waste Management,Waste Collection Support,Agency Staff,PROJECT MANAGEMENT SUPPORT,30/04/2021,REDACTED INVOICE NUMBER,142038,324.54,Revenue,4575,Sewell Staffing Limited T/A Sector Recruitme,CM15 0AU,0
Director Of Environment,Street Services,Street Cleansing,Agency Staff,PROJECT MANAGEMENT SUPPORT,30/04/2021,REDACTED INVOICE NUMBER,142036,556.37,Revenue,4575,Sewell Staffing Limited T/A Sector Recruitme,CM15 0AU,0
Director Of Environment,Waste Management,Waste Collection Support,Agency Staff,PROJECT MANAGEMENT SUPPORT,30/04/2021,REDACTED INVOICE NUMBER,142036,616.18,Revenue,4575,Sewell Staffing Limited T/A Sector Recruitme,CM15 0AU,0
Director Of Environment,Waste Management,Waste Collection Support,Agency Staff,PROJECT MANAGEMENT SUPPORT,30/04/2021,REDACTED INVOICE NUMBER,142034,6459.62,Revenue,4575,Sewell Staffing Limited T/A Sector Recruitme,CM15 0AU,0
Director Of Environment,Street Services,Street Cleansing,Agency Staff,PROJECT MANAGEMENT SUPPORT,30/04/2021,REDACTED INVOICE NUMBER,142032,727.38,Revenue,4575,Sewell Staffing Limited T/A Sector Recruitme,CM15 0AU,0
Director Of Environment,Waste Management,Waste Collection Support,Agency Staff,PROJECT MANAGEMENT SUPPORT,30/04/2021,REDACTED INVOICE NUMBER,142037,6854.17,Revenue,4575,Sewell Staffing Limited T/A Sector Recruitme,CM15 0AU,0
Director Of Environment,Vehicle Fleet Management,Vehicle Fleet Management,Vehicle - Lease Rentals,LEASE RENTAL,30/04/2021,REDACTED INVOICE NUMBER,141189,804,Revenue,4591,Sg Equipment Finance Limited,TW9 2PR,0
Director Of Environment,Vehicle Fleet Management,Vehicle Fleet Management,Vehicle - Lease Rentals,LEASE RENTAL,30/04/2021,REDACTED INVOICE NUMBER,141190,180,Revenue,4591,Sg Equipment Finance Limited,TW9 2PR,0
Director Of Environment,Vehicle Fleet Management,Vehicle Fleet Management,Vehicle - Lease Rentals,LEASE RENTAL,30/04/2021,REDACTED INVOICE NUMBER,141188,180,Revenue,4591,Sg Equipment Finance Limited,TW9 2PR,0
Director Of Law & Governance,Legal Services & Data Protect,Legal Services & Data Protect,Planning Fees,PLANNING FEES,23/04/2021,REDACTED INVOICE NUMBER,141251,2755,Revenue,4599,Sharpe Pritchard,WC1X 0BJ,0
Director Corporate Resources,Office Accommodation,Office Facilities Management,Contracted Services,SHREDDING,30/04/2021,REDACTED INVOICE NUMBER,141512,53.43,Revenue,23601,Shred Station Ltd,NR13 6LH,0
Director Of Environment,Parking,Parking Services,Equipment & Tools - R&M,SIGNS,23/04/2021,REDACTED INVOICE NUMBER,140751,522,Revenue,4621,Signway Supplies (Datchet Ltd),RG24 8UG,0
Director Digital & Customer En,Digital Servs & Transformation,Ict Services,Internet Services,SUBSCRIPTION SERVICE FEE MAY'21-MAY'22,30/04/2021,REDACTED INVOICE NUMBER,141385,1814.08,Revenue,4628,Siteimprove Ltd,SE1 9SG,0
Director Of Planning & Economy,Planning Policy Total,Planning Policy,Other Fees & Service,PROFESSIONAL SERVICES - MAR '21,30/04/2021,REDACTED INVOICE NUMBER,142374,115,Revenue,149022P,Slr Consulting Limited,HP18 9PH,0
Director Of Environment,Vehicle Fleet Management,Vehicle Fleet Management,Vehicle R&M - External,VEHICLE REPAIRS,23/04/2021,REDACTED INVOICE NUMBER,140809,320,Revenue,4635,Smart Glass Essex,RM14 1HS,0
Balance Sheet,Balance Sheet,Balance Sheet,Highways Stores,CLOTHING / BOOTS,27/04/2021,REDACTED INVOICE NUMBER,140260,2087.5,Revenue,24887,Smi Group,GU27 2QH,0
Balance Sheet,Balance Sheet,Balance Sheet,Highways Stores,CLOTHING / MASKS,27/04/2021,REDACTED INVOICE NUMBER,137624,623.9,Revenue,24887,Smi Group,GU27 2QH,0
Director Corporate Resources,Human Resources,Human Resources,Training Expenses,REMOTE COACHING - JAN '21,30/04/2021,REDACTED INVOICE NUMBER,142233,200,Revenue,4648,Solace Group,WF8 1NT,0
Director Of Law & Governance,Legal Services & Data Protect,Legal Services & Data Protect,Training Expenses,REMOTE COACHING SESSIONS,9/4/2021,REDACTED INVOICE NUMBER,141504,200,Revenue,4648,Solace Group,WF8 1NT,0
Director Digital & Customer En,Digital Servs & Transformation,Ict Services,Managed Services,NERDIO MANAGER LICENSE - FEB '21,30/04/2021,REDACTED INVOICE NUMBER,140948,52.55,Revenue,25036,Sol-Tec Ltd,RG1 8EQ,0
Capex Director Digital & C.E,Ict Services,Ict Strategy,Enhancements,Senior Engineer Day,20/04/2021,REDACTED INVOICE NUMBER,140700,2850,Capital,25036,Sol-Tec Ltd,RG1 8EQ,0
Director Of Environment,"Communities, Health & Leisure",Sports & Social Venues,Consultancy Fees,BASIC FEE - DEC 20,16/04/2021,REDACTED INVOICE NUMBER,141648,22000,Revenue,28440,Sports And Leisure Management,LE10 3EY,0
Director Of Environment,"Communities, Health & Leisure",Sports & Social Venues,Consultancy Fees,BASIC FEE - FEB '21,16/04/2021,REDACTED INVOICE NUMBER,141650,22000,Revenue,28440,Sports And Leisure Management,LE10 3EY,0
Director Of Environment,"Communities, Health & Leisure",Sports & Social Venues,Consultancy Fees,BASIC FEE - JAN '21,16/04/2021,REDACTED INVOICE NUMBER,141649,22000,Revenue,28440,Sports And Leisure Management,LE10 3EY,0
Director Of Environment,"Communities, Health & Leisure",Sports & Social Venues,Consultancy Fees,BASIC FEE - MAR '21,16/04/2021,REDACTED INVOICE NUMBER,141651,22000,Revenue,28440,Sports And Leisure Management,LE10 3EY,0
Director Of Planning & Economy,Economic Development Total,Economic Development,Other Fees & Service,SPRINGBOARD INSTALLATION FEE,16/04/2021,REDACTED INVOICE NUMBER,140919,3400,Revenue,28485,Springboard Research Ltd,MK14 6PH,0
Director Of Environment,Waste Management,Recycling - Dry,Advertising - General,RECYCLING ANIMATION FILM,20/04/2021,REDACTED INVOICE NUMBER,141700,688,Revenue,173366P,Starr Brothers Films,CM1 1RQ,0
Director Of Environment,"Communities, Health & Leisure",Sports & Social Venues,Purchases - Furniture & Furnis,LIFEGUARD CHAIR,27/04/2021,REDACTED INVOICE NUMBER,142220,4271,Revenue,28489,Steel Line Ltd,S13 9NR,0
Director Of Environment,Vehicle Fleet Management,Vehicle Fleet Management,Vehicle Replacement Parts,VEHICLE PARTS,20/04/2021,REDACTED INVOICE NUMBER,141517,71.83,Revenue,4739,Steve Allan,RM3 0QS,0
Director Of Environment,Vehicle Fleet Management,Vehicle Fleet Management,Vehicle Replacement Parts,VEHICLE PARTS,20/04/2021,REDACTED INVOICE NUMBER,141521,132.74,Revenue,4739,Steve Allan,RM3 0QS,0
Director Of Environment,Vehicle Fleet Management,Vehicle Fleet Management,Vehicle Replacement Parts,VEHICLE PARTS,20/04/2021,REDACTED INVOICE NUMBER,141522,57.58,Revenue,4739,Steve Allan,RM3 0QS,0
Director Of Environment,Vehicle Fleet Management,Vehicle Fleet Management,Vehicle Replacement Parts,VEHICLE PARTS,20/04/2021,REDACTED INVOICE NUMBER,141523,116.34,Revenue,4739,Steve Allan,RM3 0QS,0
Director Of Environment,Vehicle Fleet Management,Vehicle Fleet Management,Vehicle Replacement Parts,VEHICLE PARTS,20/04/2021,REDACTED INVOICE NUMBER,141524,25.31,Revenue,4739,Steve Allan,RM3 0QS,0
Director Of Environment,Vehicle Fleet Management,Vehicle Fleet Management,Vehicle Replacement Parts,VEHICLE PARTS,20/04/2021,REDACTED INVOICE NUMBER,141525,263.79,Revenue,4739,Steve Allan,RM3 0QS,0
Director Of Environment,Vehicle Fleet Management,Vehicle Fleet Management,Vehicle Replacement Parts,VEHICLE PARTS,20/04/2021,REDACTED INVOICE NUMBER,141526,171.09,Revenue,4739,Steve Allan,RM3 0QS,0
Director Of Environment,Vehicle Fleet Management,Vehicle Fleet Management,Vehicle Replacement Parts,VEHICLE PARTS,27/04/2021,REDACTED INVOICE NUMBER,141527,10.38,Revenue,4739,Steve Allan,RM3 0QS,0
Director Of Environment,Health & Food Safety,Food Safety Enforcement,Analytical Services,FOOD HYGEINE,23/04/2021,REDACTED INVOICE NUMBER,140977,837,Revenue,4742,Stewart Harris Agnew Partnership,E12 5EQ,0
Parish Precepts,Parish Precepts,Parish Precepts,Precept Payments,PRECEPT APR 21,6/4/2021,REDACTED INVOICE NUMBER,141221,11997.5,Revenue,4747,Stondon Massey Parish Council,CM15 0EL,0
Director Corporate Resources,Asset Management,Asset Management,R&M Bldgs - General,PLUMBING WORKS,30/04/2021,REDACTED INVOICE NUMBER,141951,118.1,Revenue,4791,T Jones,CM13 1NS,0
Director Corporate Resources,Asset Management,Asset Management,R&M Bldgs - General,PLUMBING WORKS - B/WOOD CENTRE,23/04/2021,REDACTED INVOICE NUMBER,141518,70.87,Revenue,4791,T Jones,CM13 1NS,0
Director Of Environment,Cemeteries,Cemeteries,R&M Bldgs - General,"PLUMBING WORKS - CEMETERY, LONDON ROAD",16/04/2021,REDACTED INVOICE NUMBER,141502,341.46,Revenue,4791,T Jones,CM13 1NS,0
Director Corporate Resources,Asset Management,Asset Management,R&M Bldgs - General,PLUMBING WORKS - MERRYMEADE HOUSE,16/04/2021,REDACTED INVOICE NUMBER,141505,548.74,Revenue,4791,T Jones,CM13 1NS,0
Director Corporate Resources,Asset Management,Asset Management,R&M Bldgs - General,PLUMBING WORKS - TOILETS,31/03/2021,REDACTED INVOICE NUMBER,140797,141.7,Revenue,4791,T Jones,CM13 1NS,0
Capex Director Of C Resources,Asset Management,Brentwood Leisure Centre,R&M Bldgs - General,MAINTENANCE / MONITORING,23/04/2021,REDACTED INVOICE NUMBER,140789,10374.55,Capital,28358,T R Fire And Security Ltd,CO12 5AH,0
Balance Sheet,Balance Sheet,Balance Sheet,Highways Stores,COMPOSTABLE,23/04/2021,REDACTED INVOICE NUMBER,140744,2428.8,Revenue,357,The Compost Bag Company Limited,PR26 7PF,0
Balance Sheet,Balance Sheet,Balance Sheet,Highways Stores,COMPOSTABLE LINERS,27/04/2021,REDACTED INVOICE NUMBER,140949,2428.8,Revenue,357,The Compost Bag Company Limited,PR26 7PF,0
Hra Expenditure,Repairs And Maintenance,Planned Maintenance,Customer Surveys,DOMESTIC MANAGEMENT SURVEYS,23/04/2021,REDACTED INVOICE NUMBER,141331,4605,Revenue,27949,The Hazard Management & Environmental Service,PE28 9LJ,0
Director Of Law & Governance,Democratic Services & Support,Member Advice & Support,Training Expenses,LEADERSHIP ACADEMY PROGRAMME FEE,9/4/2021,REDACTED INVOICE NUMBER,141365,600,Revenue,4871,The Improvement + Development Agency,EC1M 5LG,0
Director Of Planning & Economy,Planning Policy Total,Planning Policy,Project Management Support,PROJECT MANAGEMENT SUPPORT,23/04/2021,REDACTED INVOICE NUMBER,140925,1005,Revenue,4890,The Oyster Partnership,SW1Y 4QX,0
Director Of Planning & Economy,Planning Policy Total,Planning Policy,Project Management Support,PROJECT MANAGEMENT SUPPORT,27/04/2021,REDACTED INVOICE NUMBER,141464,2546,Revenue,4890,The Oyster Partnership,SW1Y 4QX,0
Director Of Planning & Economy,Planning Development Managemt,Planning Development Managemt,Agency Staff,PROJECT MANAGEMENT SUPPORT,23/04/2021,REDACTED INVOICE NUMBER,140924,1152,Revenue,4890,The Oyster Partnership,SW1Y 4QX,0
Director Of Planning & Economy,Planning Development Managemt,Planning Development Managemt,Agency Staff,PROJECT MANAGEMENT SUPPORT,27/04/2021,REDACTED INVOICE NUMBER,141463,1188,Revenue,4890,The Oyster Partnership,SW1Y 4QX,0
Director Of Planning & Economy,Planning Policy Total,Planning Policy,Project Management Support,PROJECT MANAGEMENT SUPPORT,23/04/2021,REDACTED INVOICE NUMBER,140926,2294,Revenue,4890,The Oyster Partnership,SW1Y 4QX,0
Director Of Planning & Economy,Planning Policy Total,Planning Policy,Project Management Support,PROJECT MANAGEMENT SUPPORT,27/04/2021,REDACTED INVOICE NUMBER,141460,2775,Revenue,4890,The Oyster Partnership,SW1Y 4QX,0
Director Of Planning & Economy,Planning Policy Total,Planning Policy,Project Management Support,PROJECT MANAGEMENT SUPPORT,27/04/2021,REDACTED INVOICE NUMBER,141461,930,Revenue,4890,The Oyster Partnership,SW1Y 4QX,0
Director Of Planning & Economy,Planning Development Managemt,Planning Development Managemt,Agency Staff,PROJECT MANAGEMENT SUPPORT,27/04/2021,REDACTED INVOICE NUMBER,141465,1460.63,Revenue,4890,The Oyster Partnership,SW1Y 4QX,0
Director Of Planning & Economy,Planning Development Managemt,Planning Development Managemt,Agency Staff,PROJECT MANAGEMENT SUPPORT,23/04/2021,REDACTED INVOICE NUMBER,140929,3063.76,Revenue,4890,The Oyster Partnership,SW1Y 4QX,0
Director Of Planning & Economy,Planning Development Managemt,Planning Development Managemt,Agency Staff,PROJECT MANAGEMENT SUPPORT,23/04/2021,REDACTED INVOICE NUMBER,140928,1577,Revenue,4890,The Oyster Partnership,SW1Y 4QX,0
Director Of Planning & Economy,Planning Development Managemt,Planning Development Managemt,Agency Staff,PROJECT MANAGEMENT SUPPORT,27/04/2021,REDACTED INVOICE NUMBER,141462,1501,Revenue,4890,The Oyster Partnership,SW1Y 4QX,0
Director Of Planning & Economy,Economic Development Total,Economic Development,Other Fees & Service,BRENTWOOD BANNERS,23/04/2021,REDACTED INVOICE NUMBER,141483,270,Revenue,25788,The Styleworks,CM13 1XG,0
Capex Director Of Environment,Corporate Services,King George'S Redevelopment,External Printing,HOARDING - KGPF,16/04/2021,REDACTED INVOICE NUMBER,140090,2425,Capital,25788,The Styleworks,CM13 1XG,0
Director Of Law & Governance,Electoral Services,Register Of Electors,Stationery - General,SCHOLFIELDS ELECTION LAW,13/04/2021,REDACTED INVOICE NUMBER,141226,288,Revenue,4926,Thomson Reuters,EC3N 1DL,0
Director Of Environment,Street Services,Street Cleansing,Purchases - General Equipment,MATERIALS,27/04/2021,REDACTED INVOICE NUMBER,141520,24.73,Revenue,4983,Travis Perkins Trading Co. Ltd,CM14 5PN,0
Director Of Law & Governance,Legal Services & Data Protect,Legal Services & Data Protect,Legal Fees,TAXI COSTS,9/4/2021,REDACTED INVOICE NUMBER,140715,24.3,Revenue,4984,Treble Twenty Cars + Couriers Ltd,CM14 4LF,0
Director Of Law & Governance,Legal Services & Data Protect,Legal Services & Data Protect,Legal Fees,TAXI COSTS,9/4/2021,REDACTED INVOICE NUMBER,140991,90,Revenue,4984,Treble Twenty Cars + Couriers Ltd,CM14 4LF,0
Director Of Environment,Open Spaces,Countryside Recreation Mtnce,R&M Grounds - Treework,GROUND MAINTENANCE EQUIPMENT,16/04/2021,REDACTED INVOICE NUMBER,140607,824.86,Revenue,27590,Tudor Environmental,CV3 4FR,0
Director Corporate Resources,Office Accommodation,Office Accommodation,Postage Costs Direct,IMail Eco Business Class Mono,16/04/2021,REDACTED INVOICE NUMBER,141944,8.64,Revenue,5008,Ukmail,SL1 4LZ,0
Director Corporate Resources,Office Accommodation,Office Accommodation,Postage Costs Direct,IMail Premium,6/4/2021,REDACTED INVOICE NUMBER,141181,2227.76,Revenue,5008,Ukmail,SL1 4LZ,0
Director Corporate Resources,Office Accommodation,Office Accommodation,Postage Costs Direct,IMail Premium,6/4/2021,REDACTED INVOICE NUMBER,141182,74.2,Revenue,5008,Ukmail,SL1 4LZ,0
Director Corporate Resources,Office Accommodation,Office Accommodation,Postage Costs Direct,POSTAGE CHARGES,30/04/2021,REDACTED INVOICE NUMBER,142526,10.73,Revenue,5008,Ukmail,SL1 4LZ,0
Director Corporate Resources,Office Accommodation,Office Accommodation,Postage Costs Direct,POSTAL CHARGES,16/04/2021,REDACTED INVOICE NUMBER,141912,51.91,Revenue,5008,Ukmail,SL1 4LZ,0
Director Corporate Resources,Office Accommodation,Office Accommodation,Postage Costs Direct,POSTAL CHARGES,16/04/2021,REDACTED INVOICE NUMBER,141930,136.32,Revenue,5008,Ukmail,SL1 4LZ,0
Director Corporate Resources,Office Accommodation,Office Accommodation,Postage Costs Direct,POSTAL CHARGES ,16/04/2021,REDACTED INVOICE NUMBER,141913,29.28,Revenue,5008,Ukmail,SL1 4LZ,0
Director Corporate Resources,Office Accommodation,Office Accommodation,Postage Costs Direct,POSTAL CHARGES - APR '21,23/04/2021,REDACTED INVOICE NUMBER,142229,2150.56,Revenue,5008,Ukmail,SL1 4LZ,0
Director Corporate Resources,Office Accommodation,Office Accommodation,Postage Costs Direct,POSTAL CHARGES - MAR '21,20/04/2021,REDACTED INVOICE NUMBER,142086,73.84,Revenue,5008,Ukmail,SL1 4LZ,0
Director Of Environment,Vehicle Fleet Management,Vehicle Fleet Management,Vehicle - Tyres,TYRE CONTRACT - MAR '21,30/04/2021,REDACTED INVOICE NUMBER,141184,5592.93,Revenue,5026,Vaculug Technologies Ltd,NG31 8HE,0
Director Of Environment,Street Services,Street Cleansing,Waste Disposal,DISPOSAL,30/04/2021,REDACTED INVOICE NUMBER,141611,2773.85,Revenue,27396,Veolia Es Uk,N1 9JY,0
Director Of Environment,Env Health Team & Support,Env Health Team & Support,Agency Staff,PROJECT MANAGEMENT SUPPORT,16/04/2021,REDACTED INVOICE NUMBER,141936,1428,Revenue,25948,Vivid Resourcing Limited,EC1V 4QJ,0
Director Of Environment,Env Health Team & Support,Env Health Team & Support,Agency Staff,PROJECT MANAGEMENT SUPPORT,27/04/2021,REDACTED INVOICE NUMBER,142218,1596,Revenue,25948,Vivid Resourcing Limited,EC1V 4QJ,0
Director Of Environment,Env Health Team & Support,Env Health Team & Support,Agency Staff,PROJECT MANAGEMENT SUPPORT,16/04/2021,REDACTED INVOICE NUMBER,140743,1638,Revenue,25948,Vivid Resourcing Limited,EC1V 4QJ,0
Director Of Environment,Env Health Team & Support,Env Health Team & Support,Agency Staff,PROJECT MANAGEMENT SUPPORT,23/04/2021,REDACTED INVOICE NUMBER,141156,1606.5,Revenue,25948,Vivid Resourcing Limited,EC1V 4QJ,0
Director Of Environment,Env Health Team & Support,Env Health Team & Support,Agency Staff,PROJECT MANAGEMENT SUPPORT,16/04/2021,REDACTED INVOICE NUMBER,141478,1438.5,Revenue,25948,Vivid Resourcing Limited,EC1V 4QJ,0
Director Of Environment,Open Spaces,Buildings & Stakeholders,Electricity,ELECTRICITY SUPPLY,27/04/2021,REDACTED INVOICE NUMBER,141908,326.19,Revenue,5070,Warley Primary School,CM14 5LF,0
Director Of Environment,Vehicle Fleet Management,Vehicle Fleet Management,Vehicle R&M - External,Periodic maintenance,16/04/2021,REDACTED INVOICE NUMBER,140718,151.84,Revenue,25911,Watling Jcb Ltd,LE8 6LJ,0
Hra Expenditure,"Rents, Rates & Other Charges","Rents, Rates & Other Charges",Water,WATER SUPPLY,20/04/2021,REDACTED INVOICE NUMBER,141626,271.05,Revenue,171,Wave - Business. Was Anglian Water,CM20 9HA,0
Director Of Environment,Cemeteries,Cemeteries,Water,WATER SUPPLY,30/04/2021,REDACTED INVOICE NUMBER,142254,42.48,Revenue,171,Wave - Business. Was Anglian Water,CM20 9HA,0
Director Of Environment,Cemeteries,Cemeteries,Water,WATER SUPPLY,30/04/2021,REDACTED INVOICE NUMBER,142408,1955.9,Revenue,171,Wave - Business. Was Anglian Water,CM20 9HA,0
Director Of Environment,Cemeteries,Cemeteries,Water,WATER SUPPLY,23/04/2021,REDACTED INVOICE NUMBER,142256,88.07,Revenue,171,Wave - Business. Was Anglian Water,CM20 9HA,0
Hra Expenditure,"Rents, Rates & Other Charges","Rents, Rates & Other Charges",Water,WATER SUPPLY,23/04/2021,REDACTED INVOICE NUMBER,141371,100.56,Revenue,171,Wave - Business. Was Anglian Water,CM20 9HA,0
Hra Expenditure,"Rents, Rates & Other Charges","Rents, Rates & Other Charges",Water,WATER SUPPLY,23/04/2021,REDACTED INVOICE NUMBER,142211,100.56,Revenue,171,Wave - Business. Was Anglian Water,CM20 9HA,0
Hra Expenditure,"Rents, Rates & Other Charges","Rents, Rates & Other Charges",Water,WATER SUPPLY,30/04/2021,REDACTED INVOICE NUMBER,142255,72.63,Revenue,171,Wave - Business. Was Anglian Water,CM20 9HA,0
Hra Expenditure,"Rents, Rates & Other Charges","Rents, Rates & Other Charges",Water,WATER SUPPLY,23/04/2021,REDACTED INVOICE NUMBER,141372,100.56,Revenue,171,Wave - Business. Was Anglian Water,CM20 9HA,0
Hra Expenditure,"Rents, Rates & Other Charges","Rents, Rates & Other Charges",Water,WATER SUPPLY,23/04/2021,REDACTED INVOICE NUMBER,141369,731.21,Revenue,171,Wave - Business. Was Anglian Water,CM20 9HA,0
Balance Sheet,Balance Sheet,Balance Sheet,Fuel Stores,DIESEL,9/4/2021,REDACTED INVOICE NUMBER,140386,9889,Revenue,25187,Wessex Petroleum Ltd T/A Wp Group,SO15 2BE,0
Parish Precepts,Parish Precepts,Parish Precepts,Precept Payments,PRECEPT APR 21,6/4/2021,REDACTED INVOICE NUMBER,141222,16250,Revenue,5090,West Horndon Parish Council,CM13 3TU,0
Director Of Environment,Vehicle Fleet Management,Vehicle Fleet Management,Vehicle Replacement Parts,VEHICLE PARTS,20/04/2021,REDACTED INVOICE NUMBER,140985,381.4,Revenue,5142,Wright Parts,RM13 8NH,0
Director Digital & Customer En,Digital Servs & Transformation,Ict Services,Photocopier Charges,RENTAL CHARGE - MAY - JUL '21,30/04/2021,REDACTED INVOICE NUMBER,140961,2155,Revenue,5149,Xerox (Uk) Ltd,UB8 1HS,0
Director Digital & Customer En,Digital Servs & Transformation,Ict Services,Photocopier Charges,SERVICE AGREEMENT - JAN - MAR '21,30/04/2021,REDACTED INVOICE NUMBER,142244,73.47,Revenue,5149,Xerox (Uk) Ltd,UB8 1HS,0
Director Digital & Customer En,Digital Servs & Transformation,Ict Services,Photocopier Charges,SERVICE AGREEMENT - JAN - MAR '21,30/04/2021,REDACTED INVOICE NUMBER,142243,249.83,Revenue,5149,Xerox (Uk) Ltd,UB8 1HS,0
Director Digital & Customer En,Digital Servs & Transformation,Ict Services,Photocopier Charges,SERVICE AGREEMENT - JAN - MAR '21,30/04/2021,REDACTED INVOICE NUMBER,142242,237.79,Revenue,5149,Xerox (Uk) Ltd,UB8 1HS,0
Director Digital & Customer En,Digital Servs & Transformation,Ict Services,Photocopier Charges,SERVICE AGREEMENT - JAN - MAR '21,30/04/2021,REDACTED INVOICE NUMBER,142241,273.15,Revenue,5149,Xerox (Uk) Ltd,UB8 1HS,0
Director Digital & Customer En,Digital Servs & Transformation,Ict Services,Photocopier Charges,SERVICE AGREEMENT - JAN - MAR '21,30/04/2021,REDACTED INVOICE NUMBER,142240,19.27,Revenue,5149,Xerox (Uk) Ltd,UB8 1HS,0
Director Digital & Customer En,Digital Servs & Transformation,Ict Services,Photocopier Charges,SERVICE AGREEMENT (VAT ONLY),6/4/2021,REDACTED INVOICE NUMBER,140898,0,Revenue,5149,Xerox (Uk) Ltd,UB8 1HS,0
Balance Sheet,Balance Sheet,Balance Sheet,Insurance Account,ENGINEERING INSPECTION POLICY,9/4/2021,REDACTED INVOICE NUMBER,140940,12154.34,Revenue,5169,Zurich Insurance Plc,PO15 7JZ,0
Balance Sheet,Balance Sheet,Balance Sheet,Insurance Account,FIRE GEN. COMMERCIAL PROPERTIES - 21/22,9/4/2021,REDACTED INVOICE NUMBER,140941,42199.94,Revenue,5169,Zurich Insurance Plc,PO15 7JZ,0
Balance Sheet,Balance Sheet,Balance Sheet,Insurance Account,FIRE GENERAL INDUSTRIAL COMMERCIAL POLIC,9/4/2021,REDACTED INVOICE NUMBER,140942,10424.37,Revenue,5169,Zurich Insurance Plc,PO15 7JZ,0
Director Of Environment,"Communities, Health & Leisure",Sports & Social Venues,Premises Insurance Claims,INSURED RECOVERY - MAR '21,20/04/2021,REDACTED INVOICE NUMBER,141661,87,Revenue,5169,Zurich Insurance Plc,PO15 7JZ,0
Hra Expenditure,"Rents, Rates & Other Charges","Rents, Rates & Other Charges",Insurances - General Claims,INSURED RECOVERY - MAR '21,20/04/2021,REDACTED INVOICE NUMBER,141661,800,Revenue,5169,Zurich Insurance Plc,PO15 7JZ,0
Balance Sheet,Balance Sheet,Balance Sheet,Insurance Account,LOCAL AUTHORITY COMB POLICY - 21/22,9/4/2021,REDACTED INVOICE NUMBER,140939,378052.43,Revenue,5169,Zurich Insurance Plc,PO15 7JZ,0
Balance Sheet,Balance Sheet,Balance Sheet,Insurance Account,TERRORISM - IND / COMM - 21/22,9/4/2021,REDACTED INVOICE NUMBER,140943,4946.75,Revenue,5169,Zurich Insurance Plc,PO15 7JZ,0
Balance Sheet,Balance Sheet,Balance Sheet,Insurance Account,TERRORISM POLICY - 21/22,9/4/2021,REDACTED INVOICE NUMBER,140944,1875.94,Revenue,5169,Zurich Insurance Plc,PO15 7JZ,0
Balance Sheet,Balance Sheet,Balance Sheet,Insurance Account,TERRORISM SELECT POLICY - 21/22,9/4/2021,REDACTED INVOICE NUMBER,140938,10482.42,Revenue,5169,Zurich Insurance Plc,PO15 7JZ,0
Balance Sheet,Balance Sheet,Balance Sheet,Insurance Account,Trustee Indemnity Renewal 21/22,16/04/2021,REDACTED INVOICE NUMBER,141351,868,Revenue,5169,Zurich Insurance Plc,PO15 7JZ,0
